Workbook

Sheet Welcome
F9: If prompted, click 'Enable Contents'
E12: Welcome to the Mitigation Goal Standard Tool | S12: MGS Tool v1.0
E13: An accounting and reporting standard for national and subnational greenhouse gas reduction goals | S13: 1st December 2016
B17: The objective of this tool is to help the user through the steps required to design and assess a mitgation goal, including accounting and reporting.
B18: The tabs across the top are organized by chapter to help you work through the steps detailed within the Mitigation Goal Standard.
B20: This tool uses macros. If prompted, click 'Enable Content' to turn on macros otherwise this tool will not
B21: function properly. If macros still appear to be disabled on your version of Excel, open a blank Excel
B22: workbook and follow these | E22: instructions. | G22: Save and close Excel then open this MGS Tool file as before.
B24: How to use this tool on an Apple/Mac computer: To run this tool on an Apple/Mac computer you will first
B25: need to install a Windows virtual machine. | G25: Click here for more information.
B27: Performance will be improved if no other Excel workbooks are open when using this tool.
B29: Although this tool caters for many different uses of the standard, it may still be necessary
B30: to undertake more complex caclculations outside of the tool. In these cases, summary results
B31: can still be used within the tool.
B33: How to use this tool:
B34: The navigation tabs at the top of each page approximately align with Chapters 4 to 11 in the standard.
B35: Navigate through the tabs from left to right filling in the relevant information as you progress.
B36: There is an option to print out each page. A summary is provided on the reporting page.
B38: Start by clicking on the 'Define Goal Boundaries' page.
B40: Data entry fields are color-coded as follows to guide you:
E41: light blue: numerical or text data entry
E42: orange: option selection (dropdown data entry field)
E43: light gray: data which you cannot edit on the current page
B45: You can open the relevant chapter of the standard by clicking on the orange buttons on
B46: each page. Access the chapters which describe the background, concepts and principles below.
M48: For further information about the Mitigation Goal Standard, please contact Kelly Levin
M49: If you want to report technical problems with this tool, please contact Craig Simmons
L57: Designed and built by

Sheet Define Goal Boundaries
C10: Defining the goal boundary refers to the geographic area, sectors (including the land sector), in-jurisdiction and out-of-juridiction emissions and removals, and greenhouse gases covered by the mitigation goal.
B12: Which inventory method or guidelines have you used? | C12: IPCC Guidelines
E14: global warming potentials (GWPs)
B15: Which global warming potential (GWP) values have you used? | C15: IPCC Fifth Assessment Report | E15: CO2 | F15: CH4 | G15: N2O | H15: SF6 | I15: NF3
B16: Enter the GWP values you are using here | E16: 1 | F16: 28 | G16: 265 | H16: 23500 | I16: 16100
B18: The % of total GHG inventory emissions that are included in the goal boundary | C18: 1 | D18: Note: In the base year or start year of the baseline scenario, including the land sector, if relevant
B20: ="Geographic area(s) included in the goal boundary" & CHAR(10) & " " & CHAR(10) -> Geographic area(s) included in the goal boundary | L20: =C20 -> 0
B23: ="Any geographic areas excluded from the goal boundary" & CHAR(10) & " " & CHAR(10) -> Any geographic areas excluded from the goal boundary | L23: =C23 -> 0
C26: sector/sub-sectors included | D26: definition (additional information)
B27: Sectors and subsectors included in the goal boundary,
B28: including definitions of covered sectors and subsectors
B57: ="Any sectors excluded from the goal boundary, with justification" & CHAR(10) & " " & CHAR(10) -> Any sectors excluded from the goal boundary, with justification | L57: =C57 -> 0
B59: ="Any out-of-sector emissions included in the sectoral goal boundary (for users with sectoral goals)" & CHAR(10) & " " & CHAR(10) -> Any out-of-sector emissions included in the sectoral goal boundary (for users with sectoral goals) | L59: =C59 -> 0
B61: Treatment of emissions and removals from land sector | C61: Do not account for the land sector
B63: Are out-of-jurisdiction emissions included? | C63: no
B65: Which out-of-jurisdiction emissions are included
B66: and excluded from the goal boundary?
B68: Are all seven Kyoto Protocol gases included in goal boundary? | C68: yes
B70: ="List which gases are included in the goal boundary and a justification for why certain gases are excluded" & CHAR(10) & " " & CHAR(10) -> List which gases are included in the goal boundary and a justification for why certain gases are excluded | L70: =C70 -> 0
B72: Optional reporting information
B74: ="Rationale for any excluded territories and an indication of the magnitude of emissions (in MtCO2e) associated with the excluded territories (optional reporting information)" & CHAR(10) -> Rationale for any excluded territories and an indication of the magnitude of emissions (in MtCO2e) associated with the excluded territories (optional reporting information) | L74: =C74 -> 0
B76: Do sector definitions deviate from the most recent IPCC Guidelines? | C76: no
B77: (optional reporting information)
B79: Please provide an explanation for why IPCC defined sectors were not used and information on the alternative sector definitions, including an explanation of how non-IPCC sector definitions correspond to IPCC definitions | L79: =C79 -> 0
B81: ="The goal level for non-land sectors and the goal level with the effect of the land sector included (optional reporting information)" & CHAR(10) & " " & CHAR(10) -> The goal level for non-land sectors and the goal level with the effect of the land sector included (optional reporting information) | L81: =C81 -> 0

Sheet Describe Goal Type
L9: Note that if you want to assess multiple goal types or many variations on a single goal you can save multiple versions of this workbook using the 'Save' button.
B10: Select your goal type | C10: Base year emissions
B12: Define goal time frame | L12: Example
C13: The goal is to reduce emissions by a specified quantity relative to | L13: The goal is to reduce emissions by a specified % relative to
C14: historical emissions for | E14: base year | F14: 2010 | G14: to | H14: 2006 | L14: historical emissions for | N14: base year | O14: 1990
C15: by | E15: target year | F15: 2020 | G15: to | H15: 2023 | L15: by | N15: target year | O15: 2020
C16: multi-year goal type | E16: annual multi-year goal
C17: The goal is to reduce emissions to an absolute emissions level | L17: The goal is to reduce emissions to zero
C18: by | E18: target year | F18: 2011 | G18: to | H18: 2014 | L18: by | N18: target year | O18: 2050
C19: multi-year goal type | E19: cumulative multi-year goal
C20: The goal is to reduce emissions intensity by a specified % relative to
C21: historical emissions intensity for | E21: base year | F21: 2002 | G21: to | H21: 2003 | L21: The goal is to reduce emissions by 40% per unit of GDP relative to
C22: by | E22: target year | F22: 2010 | G22: to | H22: 2016 | L22: historical emissions intensity for | N22: base year | O22: 1990
C23: multi-year goal type | E23: annual multi-year goal | L23: by | N23: target year | O23: 2020
C24: unit of variable (used to calculate intensity) | E24: $000's
C25: The goal is to reduce emissions by a specified quantity relative to a projected | L25: The goal is to reduce emissions by 30% relative to projected
C26: baseline scenario emissions for | E26: target year | F26: 2015 | G26: to | H26: 2016 | L26: baseline scenario emissions for | N26: target year | O26: 2020
C27: This baseline scenario is | E27: dynamic | L27: This baseline scenario is | N27: static
C28: multi-year goal type | E28: annual multi-year goal
C29: start year of baseline scenario | E29: 2010
B32: Example | L32: =IF(AND(goal_type_value=4, E27="dynamic"), "Please enter the baseline scenario recalculation policy, including which exogenous drivers will trigger a recalculation","") -> 

Sheet Transferable Emission Units
E11: Is it permissible to use transferable emissions units to meet the mitigation goal? | G11: no
E13: What type of transferable emissions units are permissible? | G13: Emissions allowances
E15: Will all offset credits meet the quality principles set out in the standard? | G15: yes | H15: Note this is a requirement of the standard
E17: Will all allowances come from quality emission trading schemes? | G17: yes | H17: Note this is a requirement of the standard
E19: Any limit on the quantity of units that can be applied towards the goal? | G19: yes
E21: Please enter details of the quantity limit (MtCO2e)
I22: Quality Principles: offset credits
E23: The anticipated amount of units to be used to meet the goal (MtCO2e) | I23: Offset credits applied towards goal achievement
I24: shall be:
E25: The maximum amount of units to be used from time periods before the goal (MtCO2e) | I25: Real | K25: Verified Additional
I26: Transparent | K26: Owned unambiguously
E27: Anticipated amount of units to be used for time periods before the goal (MtCO2e) | I27: Permanent | K27: Addresses leakage
I28: Quality features: emission trading schemes
E29: Anticipated issuance of units to be sold to other jurisdictions (if known) (MtCO2e) | I29: Rigorous monitoring and verification protocols
I30: Transparent tracking and reporting of units
E31: Anticipated net transfers of allowance units between trading schemes (if known) (MtCO2e) | I31: Stringent caps
B33: Examples of programs and units include:
B34: Program | C34: Unit | G34: What types of transferable emissions units are eligible?
B35: Emission Allowances | G35: Program | J35: Unit
B36: California Cap & Trade Program | C36: California Cap & Trade Program allowance
B37: EU Emission Trading Scheme | C37: European Union Allowance (EUA)
B38: Kyoto Protocol International Emissions Trading | C38: AAU (assigned amount unit)
B39: New Zealand ETS | C39: NZU (New Zealand units)
B40: Quebec Cap and Trade System
B41: Regional Greenhouse Gas Initiative
B42: Offset credits
B43: Clean Development Mechanism (CDM) | C43: Certified emission reduction
B44: Gold Standard | C44: Gold Standard voluntary emission reductions
B45: Joint Implementation (JI) | C45: Emission reduction units
B46: Verified Carbon Standard | C46: Verified emission reduction
E58: What vintages of units are eligible to be applied towards the goal? | H58: to
E60: ="Mechanisms in place to prevent double counting of units" -> Mechanisms in place to prevent double counting of units | Q60: =G60 -> 0
E62: Further comments (optional) | Q62: =G62 -> 0

Sheet DefineGoalLevel(byi)
B10: Defining the goal level is the final step in the goal design process. | G10: ="The goal level for non-land sectors and the goal level" -> The goal level for non-land sectors and the goal level
B11: The goal level represents the quantity of emission reductions, or emissions and removals, | G11: ="with the effect of the land sector included (optional)" -> with the effect of the land sector included (optional)
B12: within the goal boundary in the target year or period that the jurisdiction commits to achieving.
B13: You have previously selected a base year intensity goal with a base year of 2002 and with a target year of 2010.
B14: Please state your goal level as a PERCENTAGE OR ABSOLUTE REDUCTION IN YOUR EMISSIONS INTENSITY to be achieved in your target year relative to the intensity in your base year .
C16: unit of variable
C17: $000's
B18: Target Year | C18: Goal Level | D18: Units
B19: 2010 | C19: 0 | D19: MtCO2e/level of output

Sheet DefineGoalLevel(bs)
B10: Defining the goal level is the final step in the goal design process. | G10: ="The goal level for non-land sectors and" -> The goal level for non-land sectors and
B11: The goal level represents the quantity of emission reductions, or emissions and removals, within the goal boundary in the target year | G11: ="the goal level with the effect of the land" -> the goal level with the effect of the land
B12: or period that the jurisdiction commits to achieving. | G12: ="sector included (optional)" -> sector included (optional)
B13: You have previously selected a baseline scenario goal with a target year of 2015.
B14: Please state your goal level as a PERCENTAGE OR ABSOLUTE REDUCTION against your projected baseline scenario emissions in your target year.
B17: Target Year | C17: Goal Level | D17: Units
B18: 2015 | C18: 12 | D18: MtCO2e

Sheet DefineGoalLevel(fl)
B10: Defining the goal level is the final step in the goal design process. | G10: ="The goal level for non-land sectors" -> The goal level for non-land sectors
B11: The goal level represents the quantity of emission reductions, or emissions and removals, within the goal boundary in the target year | G11: ="and the goal level with the effect of " -> and the goal level with the effect of
B12: or period that the jurisdiction commits to achieving. | G12: ="the land sector included (optional)" -> the land sector included (optional)
B13: You have previously selected a fixed-level goal with a target year of 2011.
B14: Please state your goal level the absolute quantity of emissions and removals to be achieved in your target year.
B15: =IF(AND(mygt=3, target_period_value =2),"Average annual emissions are calculated below for each year in the target period. However, this does not imply that these emissions levels must be met for each year of the target period","") -> 
B17: Target Year | C17: Goal Level | D17: Units | H17: Target Year
B18: 2011 | C18: 15 | D18: MtCO2e

Sheet DefineGoalLevel(bye)
B10: Defining the goal level is the final step in the goal design process. | H10: ="The goal level for non-land sectors and" -> The goal level for non-land sectors and
B11: The goal level represents the quantity of emission reductions, or emissions and removals, within the goal boundary in the target year | H11: ="the goal level with the effect of the" -> the goal level with the effect of the
B12: or period that the jurisdiction commits to achieving. | H12: ="land sector included (optional)" -> land sector included (optional)
B13: You have previously selected a base year emissions goal with a base year of 2010 and with a target year of 2020.
B14: Please state your goal level as a PERCENTAGE OR ABSOLUTE REDUCTION against your base year emissions in your target year.
B17: Target Year | C17: Goal Level | D17: Units
B18: 2020 | C18: 0 | D18: MtCO2e

Sheet Base(fl)
AZ6: delete row | BA6: delete row
B10: You have chosen a fixed-level goal type which does not have a base year/period or baseline scenario emissions.
B12: If you wish to calculate the change in emissions since the start of the goal period (equation 8.2), you should use emissions from the year the goal was adopted (enter these below).
B14: Year goal adopted | C14: 2005
B15: =IF(land_sector <> 4,"Total GHG emissions (excluding land sector) in year goal adopted (MtCO2e)", "Total GHG emissions in year goal adopted (MtCO2e)") -> Total GHG emissions in year goal adopted (MtCO2e) | C15: 0
B16: Net land sector emissions in year goal adopted (MtCO2e) | C16: -20
B17: Out-of_jurisdiction emissions (excluding land sector) | C17: 8
B18: Out-of_jurisdiction emissions (net land sector) | C18: 10
B19: =IF(land_sector=3,"Total GHG emissions (excluding land sector) in year goal adopted (MtCO2e)",IF(land_sector=4,"Total GHG emissions in year goal adopted (MtCO2e)","Total GHG emissions (including land sector) in year goal adopted (MtCO2e)")) -> Total GHG emissions in year goal adopted (MtCO2e) | C19: =IF(OR(land_sector = 3, land_sector = 4), C15, C15+land_sector_adopted_year_emissions) -> 0

Sheet Baseline
B9: BASELINE SCENARIO EMISSIONS
B10: Use this page to describe how your baseline emissions scenario was developed and enter your estimated baseline scenario emissions.
B13: ="The model used to develop the goal baseline scenario" & CHAR(10) & " " & CHAR(10) & "" & CHAR(10) & " " & CHAR(10) -> The model used to develop the goal baseline scenario | R13: =C13 -> 
B15: ="All sources of data used to develop the baseline scenario" & CHAR(10) & "including data for key drivers (projected and historical), emission factors, and assumptions" & CHAR(10) & " " & CHAR(10) -> All sources of data used to develop the baseline scenario including data for key drivers (projected and historical), emission factors, and assumptions | R15: =C15 -> 
B17: ="Key emissions drivers included in the baseline scenario" & CHAR(10) & " " & CHAR(10) -> Key emissions drivers included in the baseline scenario | R17: =C17 -> 
B19: ="Assumptions for each key emissions driver"&CHAR(10)&"included in the baseline scenario" & CHAR(10) & " " & CHAR(10) -> Assumptions for each key emissions driver included in the baseline scenario | R19: =C19 -> 
B21: ="All sources of data used to develop the baseline scenario, including data for key drivers (projected and historical), emission factors, and assumptions" & CHAR(10) & " " & CHAR(10) -> All sources of data used to develop the baseline scenario, including data for key drivers (projected and historical), emission factors, and assumptions | R21: =C21 -> 
B23: ="Justification for the choice of whether to develop new baseline data and assumptions or to use published baseline data and assumptions" & CHAR(10) & " " & CHAR(10) -> Justification for the choice of whether to develop new baseline data and assumptions or to use published baseline data and assumptions | R23: =C23 -> 
B25: ="The cut-off year for the inclusion of policies–-that is, the year after which no new policies or actions are included in the baseline scenario" & CHAR(10) & " " & CHAR(10) -> The cut-off year for the inclusion of policies–-that is, the year after which no new policies or actions are included in the baseline scenario | R25: =C25 -> 
B27: ="Key policies and actions included in the baseline scenario" & CHAR(10) & " " & CHAR(10) & CHAR(10) -> Key policies and actions included in the baseline scenario | R27: =C27 -> 
B29: ="Any additional methods and assumptions used to estimate the effects of key included policies and actions on emissions" & CHAR(10) & " " & CHAR(10) -> Any additional methods and assumptions used to estimate the effects of key included policies and actions on emissions | R29: =C29 -> 
B31: ="Any significant policies excluded from the baseline scenario, with justification" & CHAR(10) & " " & CHAR(10) -> Any significant policies excluded from the baseline scenario, with justification | R31: =C31 -> 
B33: ="A quantitative estimate or qualitative description of the uncertainty of the results, as well as the range of results from sensitivity analysis for key parameters and assumptions" & CHAR(10) -> A quantitative estimate or qualitative description of the uncertainty of the results, as well as the range of results from sensitivity analysis for key parameters and assumptions | R33: =C33 -> 0
B35: ="For those users that treat land sector as an offset and apply a forward-looking baseline accounting method:" & CHAR(10) & CHAR(10) & "All calculation methods used, including any use of special accounting provisions, such as those associated with natural disturbances" -> For those users that treat land sector as an offset and apply a forward-looking baseline accounting method: All calculation methods used, including any use of special accounting provisions, such as those associated with natural disturbances | R35: =C35 ->  | AL35: =C35 -> 
B37: ="The data sources and calculation methods used for the start year or start period" & CHAR(10) & " " & CHAR(10) & CHAR(10) -> The data sources and calculation methods used for the start year or start period | R37: =C37 -> 0
B39: BASELINE SCENARIO EMISSIONS
B40: Enter your estimated baseline scenario emissions below. One column for each baseline scenario year. | E40: =IF(land_sector<>4, "Note that land sector emissions in the baseline scenario are entered in the Reporting Year Emissions page","") -> 
A41: 1 | B41: Click on the 'delete row' or 'add row' button to edit the number of rows to allow more sectors to be added (optional) or just report total baseline scenario emissions.
E42: Please enter data below (in Mt) for each baseline scenario year
C43: Baseline scenario year | E43: =baseline_start_year -> 2010 | F43: =IF(target_period_value = 1, IF(AND(E43>= baseline_start_year, E43<target_start_year), E43+1,""), IF(AND(E43>= baseline_start_year, E43<target_end_year), E43+1,"")) -> 2011 | G43: 2012 | H43: 2013 | I43: 2014 | J43: 2015 | K43: 2016 | L43: 2017 | M43: 2018 | N43: 2019
B45: =IF(jurisdiction <> yes_set_separate_goals,"Baseline scenario emissions", "Baseline scenario emissions (in-jurisdiction)") -> Baseline scenario emissions | C45: =IF(land_sector=3,"Total net emissions (excl. net land sector)",IF(land_sector=4,"Total net emissions","Total net emissions - incl. net land sector (in MtCO2e)")) -> Total net emissions | E45: =IF(E43<>"",IF(OR(land_sector=4,land_sector=3),SUM(E49:E50),SUM(E49:E50)+E46),"") -> 10 | F45: 15 | G45: 24 | H45: 25 | I45: 23 | J45: 22 | K45: 0 | L45: 0 | M45: 0 | N45: 0
C46: Net land sector emissions (in MtCO2 equivalents) | E46: 5 | F46: 5 | G46: 5 | H46: 5 | I46: 5 | J46: 5 | M46: 0
B48: Total baseline emissions (sector breakdown is optional) | C48: Description (optional) | E48: MtCO2e | F48: MtCO2e | G48: MtCO2e | H48: MtCO2e | I48: MtCO2e | J48: MtCO2e | K48: MtCO2e | L48: MtCO2e | M48: MtCO2e | N48: MtCO2e
B49: Total emissions | E49: 10 | F49: 15 | G49: 24 | H49: 25 | I49: 23 | J49: 22
O50: add row
A51: OOJ | B51: Out-of-Jurisdiction baseline scenario emissions | C51: Total net emissions (in MtCO2e) | E51: =IF(E43<>"",IF(OR(land_sector = 3,land_sector = 4), SUM(E55:E56),SUM(E55:E56)+E52),"") -> 0 | F51: 0 | G51: 0 | H51: 0 | I51: 0 | J51: 0 | K51: 0 | L51: 0 | M51: 0 | N51: 0
A52: OOJ | C52: =C46 -> Net land sector emissions (in MtCO2 equivalents) | E52: 8 | F52: 7 | G52: 6 | H52: 5 | I52: 4 | J52: 3
A53: OOJ
A54: OOJ | B54: Total baseline emissions (sector breakdown is optional) | C54: Description (optional) | E54: MtCO2e | F54: MtCO2e | G54: MtCO2e | H54: MtCO2e | I54: MtCO2e | J54: MtCO2e | K54: MtCO2e | L54: MtCO2e | M54: MtCO2e | N54: MtCO2e
A55: OOJ | B55: Total Emissions
A56: OOJ | O56: add row
A58: x | B58: Ignore below this line - will be removed in beta version
B61: baseline_year_lookup | C61: 2 | D61: 3 | E61: 4 | F61: 5 | G61: 6 | H61: 7 | I61: 8 | J61: 9 | K61: 10 | L61: 11 | M61: 12 | N61: 13
B62: Year | D62: 3 | E62: Total - IJ | F62: Total OOJ | G62: Land Sector
B63: =E43 -> 2010 | E63: =E45 -> 10 | F63: =E51 -> 0 | G63: =E46 -> 5
B64: =F43 -> 2011 | E64: =F45 -> 15 | F64: =F51 -> 0 | G64: =F46 -> 5
B65: =G43 -> 2012 | E65: =G45 -> 24 | F65: =G51 -> 0 | G65: =G46 -> 5
B66: =H43 -> 2013 | E66: =H45 -> 25 | F66: =H51 -> 0 | G66: =H46 -> 5
B67: =I43 -> 2014 | E67: =I45 -> 23 | F67: =I51 -> 0 | G67: =I46 -> 5
B68: =J43 -> 2015 | E68: =J45 -> 22 | F68: =J51 -> 0 | G68: =J46 -> 5
B69: =K43 -> 2016 | E69: =K45 -> 0 | F69: =K51 -> 0 | G69: =K46 -> 0
B70: =L43 -> 2017 | E70: =L45 -> 0 | F70: =L51 -> 0 | G70: =L46 -> 0
B71: =M43 -> 2018 | E71: =M45 -> 0 | F71: =M51 -> 0 | G71: =M46 -> 0
B72: =N43 -> 2019 | E72: =N45 -> 0 | F72: =N51 -> 0 | G72: =N46 -> 0

Sheet Baseline(range)
B9: RANGE OF ADDITIONAL BASELINE SCENARIO EMISSIONS
B10: You can use this page to document a range of informational or plausible baseline scenario emissions (optional).
B13: For plausible baseline scenario emissions, describe where the goal baseline scenario is located within the range (optional)
B15: More detailed information relating to the modeling of plausible baseline scenario emissions (optional)
B17: More detail information relating to the modeling of informational baseline scenarios (optional)
B19: INVENTORIES
B20: Enter your plausible or informational baseline scenario emissions below.
B21: Click on the 'delete row' or 'add row' button to edit the number of rows in your inventory. Use the 'add column' button to include more greenhouse gases. Clicking on 'delete column' removes the associated column.
A23: 1 | B23: Baseline scenario name (optional) | C23: baseline scenaro 92
B24: Baseline scenario year | C24: 1991
K25: delete column
B26: Total net emissions (in MtCO2 equivalents) | C26: =SUM(E94:K94) -> 0 | E26: Please enter data below (in Mt or kg) for each GHG as indicated below | K26: add column
E27: Mt | F27: Mt | G27: kg | H27: kg | I27: kg | J27: kg | K27: kg
B28: Sectors | C28: Description (optional) | E28: CO2 | F28: CH4 | G28: N2O | H28: SF6 | I28: NF3 | J28: CFC-12 | K28: CFC-12
L30: delete row
L31: delete row
L32: delete row
L33: delete row
L34: delete row
L35: delete row
L36: delete row
L37: delete row
L38: add row
A40: LB | B40: Please enter emissions (as positive numbers) by land use category (in Mt) | E40: Mt
A41: LB | B41: Land sector emissions (land-based accounting) | C41: Description (optional) | E41: CO2
A42: LB | B42: Forestland
A43: LB | B43: Cropland
A44: LB | B44: Grassland
A45: LB | B45: Wetland
A46: LB | B46: Settlement | E46: 100
A47: LB | B47: Other land
A48: LB | C48: emissions - land sector (land-based) | E48: =SUM(E42:E47) -> 100
A49: LB
A50: LB | B50: Please enter removals (as negative numbers) by land use category (in Mt) | E50: Mt
A51: LB | B51: Land sector removals (land-based accounting) | C51: Description (optional) | E51: CO2
A52: LB | B52: Forestland
A53: LB | B53: Cropland
A54: LB | B54: Grassland | E54: -100000
A55: LB | B55: Wetland
A56: LB | B56: Settlement
A57: LB | B57: Other land
A58: LB | C58: removals - land sector (land-based) | E58: =SUM(E52:E57) -> -100000
A60: AB
A61: AB | B61: Please enter emissions (as positive numbers) by land use activity (in Mt) | E61: Mt
A62: AB | B62: Land sector emissions (activity-based accounting) | C62: Description (optional) | E62: CO2
A63: AB | B63: afforestation/reforestation
A64: AB | B64: deforestation
A65: AB | B65: soil carbon management
A66: AB | B66: protected area management
A67: AB | B67: cropland/fertilizer/manure application
A68: AB | E68: 0
A69: AB | E69: 3333
A70: AB | E70: 333
A71: AB
A72: AB
A73: AB | C73: emissions - land sector (activity based) | E73: =SUM(E63:E72) -> 3666
A74: AB
A75: AB | B75: Please enter removals (as negative numbers) by land use activity (in Mt) | E75: Mt
A76: AB | B76: Land sector removals (activity-based accounting) | C76: Description (optional) | E76: CO2
A77: AB
A78: AB | B78: agroforestry | E78: -3
A79: AB
A80: AB | B80: other (please enter description) | E80: -3
A81: AB | E81: -3
A82: AB
A83: AB
A84: AB
A85: AB
A86: AB
A87: AB
A88: AB | C88: removals - land sector (activity based) | E88: =SUM(E77:E87) -> -9
B90: Total sources (GHG emissions in Mt) | E90: =IF(OR(land_sector =4, land_sector =2),SUM(E29:E38),IF(land_method = 1,SUM(E29:E38 )+E48,SUM(E29:E38)+E73)) -> 0 | F90: =SUM(F29:F38) -> 0 | G90: =SUM(G29:G38)/1000000000 -> 0 | H90: =SUM(H29:H38)/1000000000 -> 0 | I90: =SUM(I29:I38)/1000000000 -> 0 | J90: =SUM(J29:J38)/1000000000 -> 0 | K90: =SUM(K29:K38)/1000000000 -> 0
B91: Total sinks (GHG removals in Mt) | E91: =IF(OR(land_sector =4, land_sector =2),0,IF(land_method = 1,E58,E88)) -> 0
B92: Net emissions (in Mt) | E92: =E90+E91 -> 0 | F92: =F90 -> 0 | G92: 0 | H92: 0 | I92: 0 | J92: 0 | K92: 0
B93: GWP values | E93: ='Define Goal Boundaries'!E16 -> 1 | F93: ='Define Goal Boundaries'!F16 -> 28 | G93: ='Define Goal Boundaries'!G16 -> 265 | H93: ='Define Goal Boundaries'!H16 -> 23500 | I93: ='Define Goal Boundaries'!I16 -> 16100 | J93: =VLOOKUP(J28,PFC_HFC_lookup,4, FALSE) -> 10200 | K93: =VLOOKUP(K28,PFC_HFC_lookup,4, FALSE) -> 10200
B94: Net emissions (in MtCO2 equivalents) | E94: =E92*E93 -> 0 | F94: 0 | G94: 0 | H94: 0 | I94: 0 | J94: 0 | K94: 0
A98: 2 | B98: Baseline scenario name | C98: baseline scenario 2
B99: Baseline scenario year | C99: =IF(target_start_year>bs_start_year, target_start_year,bs_start_year+1) -> 2020
B101: Total net emissions (in MtCO2 equivalents) | C101: =SUM(E169:K169) -> 0 | E101: Please enter data below (in Mt or kg) for each GHG as indicated below
E102: Mt | F102: Mt | G102: kg | H102: kg | I102: kg | J102: kg | K102: kg
B103: Sectors | C103: Description (optional) | E103: CO2 | F103: CH4 | G103: N2O | H103: SF6 | I103: NF3 | J103: =J28 -> CFC-12 | K103: =K28 -> CFC-12
L105: delete row
L106: delete row
L107: delete row
L108: delete row
L109: delete row
L110: delete row
L111: delete row
L112: delete row
L113: add row
A115: LB | B115: Please enter emissions (as positive numbers) by land use category (in Mt) | E115: Mt
A116: LB | B116: Land sector emissions (land-based accounting) | C116: Description (optional) | E116: CO2
A117: LB | B117: Forestland
A118: LB | B118: Cropland
A119: LB | B119: Grassland
A120: LB | B120: Wetland
A121: LB | B121: Settlement | E121: 100
A122: LB | B122: Other land
A123: LB | C123: emissions - land sector (land-based) | E123: =SUM(E117:E122) -> 100
A124: LB
A125: LB | B125: Please enter removals (as negative numbers) by land use category (in Mt) | E125: Mt
A126: LB | B126: Land sector removals (land-based accounting) | C126: Description (optional) | E126: CO2
A127: LB | B127: Forestland
A128: LB | B128: Cropland
A129: LB | B129: Grassland | E129: -100000
A130: LB | B130: Wetland
A131: LB | B131: Settlement
A132: LB | B132: Other land
A133: LB | C133: removals - land sector (land-based) | E133: =SUM(E127:E132) -> -100000
A135: AB
A136: AB | B136: Please enter emissions (as positive numbers) by land use activity (in Mt) | E136: Mt
A137: AB | B137: Land sector emissions (activity-based accounting) | C137: Description (optional) | E137: CO2
A138: AB | B138: afforestation/reforestation
A139: AB | B139: deforestation
A140: AB | B140: soil carbon management
A141: AB | B141: protected area management
A142: AB | B142: cropland/fertilizer/manure application
A143: AB | E143: 0
A144: AB | E144: 3333
A145: AB | E145: 333
A146: AB
A147: AB
A148: AB | C148: emissions - land sector (activity based) | E148: =SUM(E138:E147) -> 3666
A149: AB
A150: AB | B150: Please enter removals (as negative numbers) by land use activity (in Mt) | E150: Mt
A151: AB | B151: Land sector removals (activity-based accounting) | C151: Description (optional) | E151: CO2
A152: AB
A153: AB | B153: agroforestry | E153: -3
A154: AB
A155: AB | B155: other (please enter description) | E155: -3
A156: AB | E156: -3
A157: AB
A158: AB
A159: AB
A160: AB
A161: AB
A162: AB
A163: AB | C163: removals - land sector (activity based) | E163: =SUM(E152:E162) -> -9
B165: Total sources (GHG emissions in Mt) | E165: =IF(OR(land_sector =4, land_sector =2),SUM(E104:E113),IF(land_method = 1,SUM(E104:E113 )+E123,SUM(E104:E113)+E148)) -> 0 | F165: =SUM(F104:F113) -> 0 | G165: =SUM(G104:G113)/1000000000 -> 0 | H165: =SUM(H104:H113)/1000000000 -> 0 | I165: =SUM(I104:I113)/1000000000 -> 0 | J165: =SUM(J104:J113)/1000000000 -> 0 | K165: =SUM(K104:K113)/1000000000 -> 0
B166: Total sinks (GHG removals in Mt) | E166: =IF(OR(land_sector =4, land_sector =2),0,IF(land_method = 1,E133,E163)) -> 0
B167: Net emissions (in Mt) | E167: =E165+E166 -> 0 | F167: =F165 -> 0 | G167: 0 | H167: 0 | I167: 0 | J167: 0 | K167: 0
B168: GWP values | E168: ='Define Goal Boundaries'!E16 -> 1 | F168: ='Define Goal Boundaries'!F16 -> 28 | G168: ='Define Goal Boundaries'!G16 -> 265 | H168: ='Define Goal Boundaries'!H16 -> 23500 | I168: ='Define Goal Boundaries'!I16 -> 16100 | J168: =J93 -> 10200 | K168: =K93 -> 10200
B169: Net emissions (in MtCO2 equivalents) | E169: =E167*E168 -> 0 | F169: 0 | G169: 0 | H169: 0 | I169: 0 | J169: 0 | K169: 0
A173: 3 | B173: Baseline scenario name | C173: baseline scenario 3
B174: Baseline scenario year | C174: =C99+1 -> 2021
B176: Total net emissions (in MtCO2 equivalents) | C176: =SUM(E244:K244) -> 0 | E176: Please enter data below (in Mt or kg) for each GHG as indicated below
E177: Mt | F177: Mt | G177: kg | H177: kg | I177: kg | J177: kg | K177: kg
B178: Sectors | C178: Description (optional) | E178: CO2 | F178: CH4 | G178: N2O | H178: SF6 | I178: NF3 | J178: =J28 -> CFC-12 | K178: =K28 -> CFC-12
L180: delete row
L181: delete row
L182: delete row
L183: delete row
L184: delete row
L185: delete row
L186: delete row
L187: delete row
L188: add row
A190: LB | B190: Please enter emissions (as positive numbers) by land use category (in Mt) | E190: Mt
A191: LB | B191: Land sector emissions (land-based accounting) | C191: Description (optional) | E191: CO2
A192: LB | B192: Forestland
A193: LB | B193: Cropland
A194: LB | B194: Grassland
A195: LB | B195: Wetland
A196: LB | B196: Settlement | E196: 100
A197: LB | B197: Other land
A198: LB | C198: emissions - land sector (land-based) | E198: =SUM(E192:E197) -> 100
A199: LB
A200: LB | B200: Please enter removals (as negative numbers) by land use category (in Mt) | E200: Mt
A201: LB | B201: Land sector removals (land-based accounting) | C201: Description (optional) | E201: CO2
A202: LB | B202: Forestland
A203: LB | B203: Cropland
A204: LB | B204: Grassland | E204: -100000
A205: LB | B205: Wetland
A206: LB | B206: Settlement
A207: LB | B207: Other land
A208: LB | C208: removals - land sector (land-based) | E208: =SUM(E202:E207) -> -100000
A210: AB
A211: AB | B211: Please enter emissions (as positive numbers) by land use activity (in Mt) | E211: Mt
A212: AB | B212: Land sector emissions (activity-based accounting) | C212: Description (optional) | E212: CO2
A213: AB | B213: afforestation/reforestation
A214: AB | B214: deforestation
A215: AB | B215: soil carbon management
A216: AB | B216: protected area management
A217: AB | B217: cropland/fertilizer/manure application
A218: AB | E218: 0
A219: AB | E219: 3333
A220: AB | E220: 333
A221: AB
A222: AB
A223: AB | C223: emissions - land sector (activity based) | E223: =SUM(E213:E222) -> 3666
A224: AB
A225: AB | B225: Please enter removals (as negative numbers) by land use activity (in Mt) | E225: Mt
A226: AB | B226: Land sector removals (activity-based accounting) | C226: Description (optional) | E226: CO2
A227: AB
A228: AB | B228: agroforestry | E228: -3
A229: AB
A230: AB | B230: other (please enter description) | E230: -3
A231: AB | E231: -3
A232: AB
A233: AB
... 480 more rows

Sheet Base year
B9: BASE YEAR
B10: =IF(base_period_value = 2, "Use this page to define the emissions for each year in your base period", "Use this page to define your base year emissions") -> Use this page to define your base year emissions
B11: =IF(base_period_value = 2, "Note that you cannot have more than one inventory for each year. ","") & " Click on the 'delete row' or 'add row' button to edit the number of rows in your inventory." -> Click on the 'delete row' or 'add row' button to edit the number of rows in your inventory.
B12: Add more gases by clicking on the 'add column' button. Remove columns by clicking on the 'delete column' button.
A13: HIDE | B13: =IF(land_sector = 4, "Calculation methods used for base year emissions calculations", "Users that include land sector emissions and removals in base year emissions shall report land sector emissions and removals separately for each selected land-use category," & " activity, pool, and flux, as well as calculation methods used, including any use of special accounting provisions e.g. natural disturbances (see also 'Land Sector Accounting')") -> Calculation methods used for base year emissions calculations
B15: =IF(goal_type_value = 3, "Data sources used to determine the level of output", "Description (optional)") -> Description (optional) | F15: =IF(base_period_value<>1,IF(land_sector<>3,"Average base period emissions (in MtCO2e)","Average base period emissions (in MtCO2e) excl. net land sector"),"") ->  | G15: =E839 -> 0
A17: LAN | B17: Users that include land sector emissions and removals in base year emissions shall report land sector emissions and removals separately for each selected land-use category, activity, pool, and flux, as well as calculation methods used, including any use of special accounting provisions, such as those associated with natural disturbances (see also Land Sector Accounting)
A19: 1 | B19: Inventory year | C19: =base_start_year -> 2010
A20: OOJ | B20: Out-of-jurisdiction net emissions excluding land sector (in MtCO2e) | C20: 300
A21: OOL | B21: Out-of-juridiction emissions - net land sector (in MtCO2e) | C21: 100
A22: BYI | B22: Level of output for base year | C22: 0 | E22: (base year intensity goal only)
A23: BYI | B23: unit of variable | C23: ='Describe Goal Type'!E24 -> $000's
A24: BYI | B24: Base year emissions intensity | C24: =J826 -> 0
K25: delete column | L25: delete column
B26: =IF(land_sector<>3,IF(land_sector=4,"Total net emissions (in MtCO2 equivalents)","Total net emissions (in MtCO2e including land sector)")," Total net emissions (in MtCO2e excluding net land sector)") -> Total net emissions (in MtCO2 equivalents) | C26: =IF(land_sector<>3, SUM(E94:L94), IF(land_method=1,SUM(E94:L94)-E57-E47,SUM(E94:L94)-E72-E87)) -> 0 | E26: Please enter data below (in Mt or kg) for each GHG as indicated below. | K26: add column | L26: add column
B27: Select the required inventory sectors from the dropdown list in the cells below | E27: Mt | F27: Mt | G27: Mt | H27: kg | I27: kg | J27: kg | K27: kg | L27: kg
B28: Sectors | C28: Description (optional) | E28: CO2 | F28: CH4 | G28: N2O | H28: SF6 | I28: NF3 | J28: Other | K28: Other | L28: Other
M30: delete row
M31: delete row
M32: delete row
M33: delete row
M34: delete row
M35: delete row
M36: delete row
M37: delete row
M38: add row
A39: LB | B39: Please enter emissions (as positive numbers) by land use category (in Mt) | E39: Mt
A40: LB | B40: Land sector emissions (land-based accounting) | C40: Description (optional) | E40: CO2
A41: LB | B41: Forestland
A42: LB | B42: Cropland
A43: LB | B43: Grassland
A44: LB | B44: Wetland
A45: LB | B45: Settlement
A46: LB | B46: Other land
A47: LB | C47: emissions - land sector (land-based) | E47: =SUM(E41:E46) -> 0
A48: LB
A49: LB | B49: Please enter removals (as negative numbers) by land use category (in Mt) | E49: Mt
A50: LB | B50: Land sector removals (land-based accounting) | C50: Description (optional) | E50: CO2
A51: LB | B51: Forestland
A52: LB | B52: Cropland
A53: LB | B53: Grassland | E53: -100
A54: LB | B54: Wetland
A55: LB | B55: Settlement
A56: LB | B56: Other land
A57: LB | C57: removals - land sector (land-based) | E57: =SUM(E51:E56) -> -100
A58: LB
A60: AB | B60: Please enter emissions (as positive numbers) by land use activity (in Mt) | E60: Mt
A61: AB | B61: Land sector emissions (activity-based accounting) | C61: Description (optional) | E61: CO2
A62: AB
A63: AB
A64: AB | E64: 10
A65: AB
A66: AB
A67: AB
A68: AB
A69: AB
A70: AB
A71: AB
A72: AB | C72: emissions - land sector (activity based) | E72: =SUM(E62:E71) -> 10
A73: AB
A74: AB | B74: Please enter removals (as negative numbers) by land use activity (in Mt) | E74: Mt
A75: AB | B75: Land sector removals (activity-based accounting) | C75: Description (optional) | E75: CO2
A76: AB
A77: AB
A78: AB
A79: AB
A80: AB
A81: AB | E81: -20
A82: AB
A83: AB
A84: AB
A85: AB
A86: AB
A87: AB | C87: removals - land sector (activity based) | E87: =SUM(E76:E86) -> -20
A88: AB
B90: Total sources (GHG emissions in Mt) | E90: =IF(land_sector =4,SUM(E29:E38),IF(land_method = 1,SUM(E29:E38 )+E47,SUM(E29:E38)+E72)) -> 0 | F90: =SUM(F29:F38) -> 0 | G90: =SUM(G29:G38) -> 0 | H90: =SUM(H29:H38)/1000000000 -> 0 | I90: =SUM(I29:I38)/1000000000 -> 0 | J90: =SUM(J29:J38)/1000000000 -> 0 | K90: =SUM(K29:K38)/1000000000 -> 0 | L90: =SUM(L29:L38)/1000000000 -> 0
B91: Total sinks (GHG removals in Mt) | E91: =IF(land_sector =4,0,IF(land_method = 1,E57,E87)) -> 0
B92: Net emissions (in Mt) | E92: =E90+E91 -> 0 | F92: =F90 -> 0 | G92: 0 | H92: 0 | I92: 0 | J92: 0 | K92: 0 | L92: 0
B93: GWP values | E93: ='Define Goal Boundaries'!E$16 -> 1 | F93: ='Define Goal Boundaries'!$F$16 -> 28 | G93: ='Define Goal Boundaries'!$G$16 -> 265 | H93: ='Define Goal Boundaries'!$H$16 -> 23500 | I93: ='Define Goal Boundaries'!$I$16 -> 16100 | J93: =VLOOKUP(J28,PFC_HFC_lookup,4, FALSE) -> 0 | K93: =VLOOKUP(K28,PFC_HFC_lookup,4, FALSE) -> 0 | L93: =VLOOKUP(L28,PFC_HFC_lookup,4, FALSE) -> 0
B94: Net emissions (in MtCO2 equivalents) | E94: =E92*E93 -> 0 | F94: 0 | G94: 0 | H94: 0 | I94: 0 | J94: 0 | K94: =K92*K93 -> 0 | L94: =L92*L93 -> 0
A97: 2 | B97: Inventory year | C97: =base_start_year+1 -> 2011
A98: OOJ | B98: Out-of-jurisdiction net emissions excluding land sector (in MtCO2e) | C98: 40
A99: OOL | B99: Out-of-juridiction emissions - net land sector (in MtCO2e) | C99: 50
A100: BYI | B100: Level of output for base year | C100: 50 | E100: (base year intensity goal only)
A101: BYI | B101: unit of variable | C101: =C23 -> $000's
A102: BYI | B102: Base year emissions intensity | C102: =J827 -> 1.8
B104: =B26 -> Total net emissions (in MtCO2 equivalents) | C104: =IF(land_sector<>3, SUM(E174:L174), IF(land_method=1,SUM(E174:L174)-E137-E127,SUM(E174:L174)-E152-E167)) -> 90 | E104: Please enter data below (in Mt or kg) for each GHG as indicated below.
E105: Mt | F105: Mt | G105: Mt | H105: kg | I105: kg | J105: kg | K105: kg | L105: kg
B106: Sectors | C106: Description (optional) | E106: CO2 | F106: CH4 | G106: N2O | H106: SF6 | I106: NF3 | J106: =J28 -> Other | K106: =K28 -> Other | L106: =L28 -> Other
M108: delete row
E109: 90 | M109: delete row
M110: delete row
M111: delete row
M112: delete row
M113: delete row
M114: delete row
M115: delete row
M116: delete row
M117: delete row
M118: add row
A119: LB | B119: Please enter emissions (as positive numbers) by land use category (in Mt) | E119: Mt
A120: LB | B120: Land sector emissions (land-based accounting) | C120: Description (optional) | E120: CO2
A121: LB | B121: Forestland
A122: LB | B122: Cropland
A123: LB | B123: Grassland
A124: LB | B124: Wetland
A125: LB | B125: Settlement
A126: LB | B126: Other land
A127: LB | C127: emissions - land sector (land-based) | E127: =SUM(E121:E126) -> 0
A128: LB
A129: LB | B129: Please enter removals (as negative numbers) by land use category (in Mt) | E129: Mt
A130: LB | B130: Land sector removals (land-based accounting) | C130: Description (optional) | E130: CO2
A131: LB | B131: Forestland
A132: LB | B132: Cropland
A133: LB | B133: Grassland
A134: LB | B134: Wetland
A135: LB | B135: Settlement
A136: LB | B136: Other land
A137: LB | C137: removals - land sector (land-based) | E137: =SUM(E131:E136) -> 0
A138: LB
A140: AB | B140: Please enter emissions (as positive numbers) by land use activity (in Mt) | E140: Mt
A141: AB | B141: Land sector emissions (activity-based accounting) | C141: Description (optional) | E141: CO2
A142: AB
A143: AB
A144: AB
A145: AB
A146: AB
A147: AB | E147: 0
A148: AB
A149: AB
A150: AB
A151: AB
A152: AB | C152: emissions - land sector (activity based) | E152: =SUM(E142:E151) -> 0
A153: AB
A154: AB | B154: Please enter removals (as negative numbers) by land use activity (in Mt) | E154: Mt
A155: AB | B155: Land sector removals (activity-based accounting) | C155: Description (optional) | E155: CO2
A156: AB
A157: AB
A158: AB
A159: AB
A160: AB
A161: AB
A162: AB
A163: AB | E163: -15
A164: AB
A165: AB
A166: AB
A167: AB | C167: removals - land sector (activity based) | E167: =SUM(E156:E166) -> -15
A168: AB
B170: Total sources (GHG emissions in Mt) | E170: =IF(land_sector =4, SUM(E107:E118),IF(land_method = 1,SUM(E107:E118 )+E127,SUM(E107:E118)+E152)) -> 90 | F170: =SUM(F107:F118) -> 0 | G170: =SUM(G107:G118) -> 0 | H170: =SUM(H107:H118)/1000000000 -> 0 | I170: =SUM(I107:I118)/1000000000 -> 0 | J170: =SUM(J107:J118)/1000000000 -> 0 | K170: =SUM(K107:K118)/1000000000 -> 0 | L170: =SUM(L107:L118)/1000000000 -> 0
B171: Total sinks (GHG removals in Mt) | E171: =IF(land_sector =4,0,IF(land_method = 1,E137,E167)) -> 0
B172: Net emissions (in Mt) | E172: =E170+E171 -> 90 | F172: =F170 -> 0 | G172: 0 | H172: 0 | I172: 0 | J172: 0 | K172: 0 | L172: 0
B173: GWP values | E173: =E93 -> 1 | F173: 28 | G173: 265 | H173: 23500 | I173: 16100 | J173: 0 | K173: =K93 -> 0 | L173: =L93 -> 0
B174: Net emissions (in MtCO2 equivalents) | E174: =E172*E173 -> 90 | F174: 0 | G174: 0 | H174: 0 | I174: 0 | J174: 0 | K174: =K172*K173 -> 0 | L174: =L172*L173 -> 0
A177: 3 | B177: Inventory year | C177: =base_start_year+2 -> 2012
A178: OOJ | B178: Out-of-jurisdiction net emissions excluding land sector (in MtCO2e)
A179: OOL | B179: Out-of-juridiction emissions - net land sector (in MtCO2e)
A180: BYI | B180: Level of output for base year | C180: 122 | E180: (base year intensity goal only)
A181: BYI | B181: unit of variable | C181: =C23 -> $000's
A182: BYI | B182: Base year emissions intensity | C182: =ROUND(J828,2) -> 0
B184: =B26 -> Total net emissions (in MtCO2 equivalents) | C184: =IF(land_sector<>3, SUM(E255:L255), IF(land_method=1,SUM(E255:L255)-E217-E207,SUM(E255:L255)-E232-E247)) -> 0 | E184: Please enter data below (in Mt or kg) for each GHG as indicated below.
E185: Mt | F185: Mt | G185: Mt | H185: kg | I185: kg | J185: kg | K185: kg | L185: kg
B186: Sectors | C186: Description (optional) | E186: CO2 | F186: CH4 | G186: N2O | H186: SF6 | I186: NF3 | J186: =J28 -> Other | K186: =K28 -> Other | L186: =L28 -> Other
M188: delete row
M189: delete row
M190: delete row
M191: delete row
M192: delete row
M193: delete row
M194: delete row
M195: delete row
M196: delete row
M197: delete row
M198: add row
A199: LB | B199: Please enter emissions (as positive numbers) by land use category (in Mt) | E199: Mt
A200: LB | B200: Land sector emissions (land-based accounting) | C200: Description (optional) | E200: CO2
A201: LB | B201: Forestland
A202: LB | B202: Cropland
A203: LB | B203: Grassland
A204: LB | B204: Wetland
A205: LB | B205: Settlement
A206: LB | B206: Other land
A207: LB | C207: emissions - land sector (land-based) | E207: =SUM(E201:E206) -> 0
A208: LB
A209: LB | B209: Please enter removals (as negative numbers) by land use category (in Mt) | E209: Mt
A210: LB | B210: Land sector removals (land-based accounting) | C210: Description (optional) | E210: CO2
A211: LB | B211: Forestland
A212: LB | B212: Cropland
A213: LB | B213: Grassland
A214: LB | B214: Wetland
A215: LB | B215: Settlement
A216: LB | B216: Other land
A217: LB | C217: removals - land sector (land-based) | E217: =SUM(E211:E216) -> 0
A218: LB
A220: AB | B220: Please enter emissions (as positive numbers) by land use activity (in Mt) | E220: Mt
A221: AB | B221: Land sector emissions (activity-based accounting) | C221: Description (optional) | E221: CO2
A222: AB
A223: AB
A224: AB
A225: AB
... 568 more rows

Sheet Reporting year
B10: Use this page to define your reporting year emissions (including any land sector accounting). Create one inventory for each reporting year. Scroll down to see the other inventories.
B11: Reporting your annual emissions allows you to track progress towards your goal. Progress against your allowable target year emissions is shown on the 'Assessing Progress' page.
B12: Note that you cannot have more than one inventory for each year. Click on the 'delete row' or 'add row' button to edit the number of rows in your inventory.
B13: Add more gases by clicking on the 'add column' button. Remove columns by clicking on the 'delete column' button. Note that you must have a minimum of two additional columns for gases.
B15: =IF(goal_type_value=3,"All sources of data used to derive reporting year emissions (including the data sources used to determined the level of output)","All sources of data used to derive reporting year emissions") -> All sources of data used to derive reporting year emissions
B17: Any emissions recalculations, including recalculations of base year emissions, base year emissions intensity, baseline scenario emissions, and allowable emissions or emissions intensity, and the recalculated values alongside the original values
B19: Any revisions to the goal boundary and any changes to the goal type, goal level, or a change from a single-year to a multi-year goal, and any recalculations made, including recalculated and original values
A21: DBS | B21: Any recalculations made during the goal period, which drivers were updated, updated values alongside original values, and recalculated emissions alongside the original values.
B23: Users that include the land sector in the goal boundary or treat it as a sectoral goal, shall report emissions and removals separately (see below) for each selected land use category, activity, pool , and flux, as relevant and report here all calculation methods used, including any use of special accounting provisions e.g. those associated with natural disturbances
B25: INVENTORIES
A27: 1 | B27: Inventory name (optional)
B28: Inventory year | C28: 2012
B29: =IF(jurisdiction=yes_set_separate_goals, "Out-of-jurisdiction emissions (excl. land sector in MtCO2 equivalents)", "") ->  | C29: 3
B30: =IF(AND(jurisdiction=yes_set_separate_goals, land_sector<>4),"Out-of-jurisdiction emissions (net land sector in MtCO2 equivalents)","") ->  | K30: delete column
B31: =IF(land_sector<>3,IF(land_sector=4,"Total net emissions (in MtCO2 equivalents)","Total net emissions (in MtCO2e including land sector)")," Total net emissions (in MtCO2e excluding net land sector)") -> Total net emissions (in MtCO2 equivalents) | C31: =IF(land_sector<>3, SUM(E95:K95), IF(land_method=1,SUM(E95:K95)-E59-E49,SUM(E95:K95)-E74-E89)) -> 0 | E31: Please enter data below (in Mt or kg) for each GHG as indicated below | K31: add column
E32: Mt | F32: Mt | G32: Mt | H32: kg | I32: kg | J32: kg | K32: kg
B33: Sectors | C33: Description (optional) | E33: CO2 | F33: CH4 | G33: N2O | H33: SF6 | I33: NF3 | J33: Other | K33: Other
L35: delete row
L36: delete row
L37: delete row
L38: delete row
L39: delete row
L40: add row
A41: LB | B41: Please enter emissions (as positive numbers) by land use category (in Mt) | E41: land sector emissions | G41: land sector emissions in the baseline scenario
A42: LB | B42: Land sector emissions (land-based accounting) | C42: Description (optional) | E42: MtCO2 | G42: MtCO2
A43: LB | B43: Forestland
A44: LB | B44: Cropland | E44: 12 | G44: 10
A45: LB | B45: Grassland
A46: LB | B46: Wetland | G46: 0
A47: LB | B47: Settlement
A48: LB | B48: Other land
A49: LB | C49: emissions - land sector (land-based) | E49: =SUM(E43:E48) -> 12 | G49: =SUM(G43:G48) -> 10
A50: LB
A51: LB | B51: Please enter removals (as negative numbers) by land use category (in Mt) | E51: land sector removals | G51: land sector removals in the baseline scenario
A52: LB | B52: Land sector removals (land-based accounting) | C52: Description (optional) | E52: MtCO2 | G52: MtCO2
A53: LB | B53: Forestland
A54: LB | B54: Cropland | E54: -10 | G54: 0
A55: LB | B55: Grassland
A56: LB | B56: Wetland | G56: 0
A57: LB | B57: Settlement
A58: LB | B58: Other land
A59: LB | C59: removals - land sector (land-based) | E59: =SUM(E53:E58) -> -10 | G59: =SUM(G53:G58) -> 0
A61: AB
A62: AB | B62: Please enter emissions (as positive numbers) by land use activity (in Mt) | E62: land sector emissions | G62: baseline scenario land sector emissions
A63: AB | B63: Land sector emissions (activity-based accounting) | C63: Description (optional) | E63: MtCO2 | G63: MtCO2
A64: AB | B64: afforestation/reforestation
A65: AB | B65: deforestation
A66: AB | B66: soil carbon management
A67: AB | B67: protected area management
A68: AB | B68: cropland/fertilizer/manure application | E68: 0
A69: AB
A70: AB
A71: AB
A72: AB
A73: AB
A74: AB | C74: emissions - land sector (activity based) | E74: =SUM(E64:E73) -> 0 | G74: =SUM(G64:G73) -> 0
A75: AB
A76: AB | B76: Please enter removals (as negative numbers) by land use activity (in Mt) | E76: land sector removals | G76: baseline scenario land sector removals
A77: AB | B77: Land sector removals (activity-based accounting) | C77: Description (optional) | E77: MtCO2 | G77: MtCO2
A78: AB | B78: agroforestry
A79: AB
A80: AB | B80: other (please enter description)
A81: AB
A82: AB | E82: -20 | G82: -10
A83: AB
A84: AB
A85: AB
A86: AB
A87: AB
A88: AB
A89: AB | C89: removals - land sector (activity based) | E89: =SUM(E78:E88) -> -20 | G89: =SUM(G78:G88) -> -10
B91: Total sources (GHG emissions in Mt) | E91: =IF(land_sector =4,SUM(E34:E40),IF(land_method = 1,SUM(E34:E40 )+E49,SUM(E34:E40)+E74)) -> 0 | F91: =SUM(F34:F40) -> 0 | G91: =SUM(G34:G40) -> 0 | H91: =SUM(H34:H40)/1000000000 -> 0 | I91: =SUM(I34:I40)/1000000000 -> 0 | J91: =SUM(J34:J40)/1000000000 -> 0 | K91: =SUM(K34:K40)/1000000000 -> 0
B92: Total sinks (GHG removals in Mt) | E92: =IF(land_sector =4,0,IF(land_method = 1,E59,E89)) -> 0
B93: Net emissions (in Mt) | E93: =E91+E92 -> 0 | F93: =F91 -> 0 | G93: 0 | H93: 0 | I93: 0 | J93: 0 | K93: 0
B94: GWP values | E94: ='Define Goal Boundaries'!E16 -> 1 | F94: ='Define Goal Boundaries'!F16 -> 28 | G94: ='Define Goal Boundaries'!G16 -> 265 | H94: ='Define Goal Boundaries'!H16 -> 23500 | I94: ='Define Goal Boundaries'!I16 -> 16100 | J94: =VLOOKUP(J33,PFC_HFC_lookup,4, FALSE) -> 0 | K94: =VLOOKUP(K33,PFC_HFC_lookup,4, FALSE) -> 0
B95: Net emissions (in MtCO2 equivalents) | E95: =E93*E94 -> 0 | F95: 0 | G95: 0 | H95: 0 | I95: 0 | J95: 0 | K95: =K93*K94 -> 0
A99: 2 | B99: Inventory name (optional)
B100: Inventory year
B101: =IF(jurisdiction=yes_set_separate_goals, "Out-of-jurisdiction emissions (excl. land sector in MtCO2 equivalents)", "") -> 
B102: =IF(AND(jurisdiction=yes_set_separate_goals, land_sector<>4),"Out-of-jurisdiction emissions (net land sector in MtCO2 equivalents)","") -> 
B103: =B31 -> Total net emissions (in MtCO2 equivalents) | C103: =IF(land_sector<>3, SUM(E172:K172), IF(land_method=1,SUM(E172:K172)-E136-E126,SUM(E172:K172)-E151-E166)) -> 0 | E103: =E31 -> Please enter data below (in Mt or kg) for each GHG as indicated below
E104: =E32 -> Mt | F104: =F32 -> Mt | G104: Mt | H104: kg | I104: kg | J104: kg | K104: kg
B105: Sectors | C105: Description (optional) | E105: CO2 | F105: CH4 | G105: N2O | H105: SF6 | I105: NF3 | J105: =J33 -> Other | K105: =K33 -> Other
L107: delete row
L108: delete row
L109: delete row
L110: delete row
L111: delete row
L112: delete row
L113: delete row
L114: delete row
L115: delete row
L116: delete row
L117: add row
A118: LB | B118: Please enter emissions (as positive numbers) by land use category (in Mt) | E118: land sector emissions | G118: land sector emissions baseline scenario
A119: LB | B119: Land sector emissions (land-based accounting) | C119: Description (optional) | E119: MtCO2 | G119: MtCO2
A120: LB | B120: Forestland
A121: LB | B121: Cropland
A122: LB | B122: Grassland
A123: LB | B123: Wetland
A124: LB | B124: Settlement
A125: LB | B125: Other land
A126: LB | C126: emissions - land sector (land-based) | E126: =SUM(E120:E125) -> 0 | G126: =SUM(G120:G125) -> 0
A127: LB
A128: LB | B128: Please enter removals (as negative numbers) by land use category (in Mt) | E128: land sector removals | G128: land sector removals baseline scenario
A129: LB | B129: Land sector removals (land-based accounting) | C129: Description (optional) | E129: MtCO2 | G129: MtCO2
A130: LB | B130: Forestland
A131: LB | B131: Cropland | G131: -30
A132: LB | B132: Grassland | E132: -40
A133: LB | B133: Wetland
A134: LB | B134: Settlement
A135: LB | B135: Other land
A136: LB | C136: removals - land sector (land-based) | E136: =SUM(E130:E135) -> -40 | G136: =SUM(G130:G135) -> -30
A138: AB
A139: AB | B139: Please enter emissions (as positive numbers) by land use activity (in Mt) | E139: land sector emissions | G139: baseline scenario land sector emissions
A140: AB | B140: Land sector emissions (activity-based accounting) | C140: Description (optional) | E140: MtCO2 | G140: MtCO2
A141: AB | B141: afforestation/reforestation
A142: AB | B142: deforestation
A143: AB | B143: soil carbon management
A144: AB | B144: protected area management
A145: AB | B145: cropland/fertilizer/manure application
A146: AB
A147: AB
A148: AB
A149: AB
A150: AB
A151: AB | C151: emissions - land sector (activity based) | E151: =SUM(E141:E150) -> 0 | G151: =SUM(G141:G150) -> 0
A152: AB
A153: AB | B153: Please enter removals (as negative numbers) by land use activity (in Mt) | E153: land sector removals | G153: baseline scenario land sector removals
A154: AB | B154: Land sector removals (activity-based accounting) | C154: Description (optional) | E154: MtCO2 | G154: MtCO2
A155: AB | B155: agroforestry
A156: AB
A157: AB | B157: other (please enter description)
A158: AB
A159: AB
A160: AB
A161: AB
A162: AB
A163: AB
A164: AB
A165: AB
A166: AB | C166: removals - land sector (activity based) | E166: =SUM(E155:E165) -> 0 | G166: =SUM(G155:G165) -> 0
B168: Total sources (GHG emissions in Mt) | E168: =IF(land_sector =4,SUM(E106:E117),IF(land_method = 1,SUM(E106:E117 )+E126,SUM(E106:E117)+E151)) -> 0 | F168: =SUM(F106:F117) -> 0 | G168: =SUM(G106:G117) -> 0 | H168: =SUM(H106:H117)/1000000000 -> 0 | I168: =SUM(I106:I117)/1000000000 -> 0 | J168: =SUM(J106:J117)/1000000000 -> 0 | K168: =SUM(K106:K117)/1000000000 -> 0
B169: Total sinks (GHG removals in Mt) | E169: =IF(land_sector =4,0,IF(land_method = 1,E136,E166)) -> 0
B170: Net emissions (in Mt) | E170: =E168+E169 -> 0 | F170: =F168 -> 0 | G170: 0 | H170: 0 | I170: 0 | J170: 0 | K170: 0
B171: GWP values | E171: =E94 -> 1 | F171: 28 | G171: 265 | H171: 23500 | I171: 16100 | J171: 0 | K171: 0
B172: Net emissions (in MtCO2 equivalents) | E172: =E170*E171 -> 0 | F172: 0 | G172: 0 | H172: 0 | I172: 0 | J172: 0 | K172: =K170*K171 -> 0
A176: 3 | B176: Inventory name (optional)
B177: Inventory year
B178: =IF(jurisdiction=yes_set_separate_goals, "Out-of-jurisdiction emissions (excl. land sector in MtCO2 equivalents)", "") -> 
B179: =IF(AND(jurisdiction=yes_set_separate_goals, land_sector<>4),"Out-of-jurisdiction emissions (net land sector in MtCO2 equivalents)","") -> 
B180: =B31 -> Total net emissions (in MtCO2 equivalents) | C180: =IF(land_sector<>3, SUM(E249:K249), IF(land_method=1,SUM(E249:K249)-E213-E203,SUM(E249:K249)-E228-E243)) -> 0 | E180: =E31 -> Please enter data below (in Mt or kg) for each GHG as indicated below
E181: =E32 -> Mt | F181: =F32 -> Mt | G181: Mt | H181: kg | I181: kg | J181: kg | K181: kg
B182: Sectors | C182: Description (optional) | E182: CO2 | F182: CH4 | G182: N2O | H182: SF6 | I182: NF3 | J182: =J33 -> Other | K182: =K33 -> Other
L184: delete row
L185: delete row
L186: delete row
L187: delete row
L188: delete row
L189: delete row
L190: delete row
L191: delete row
L192: delete row
L193: delete row
L194: add row
A195: LB | B195: Please enter emissions (as positive numbers) by land use category (in Mt) | E195: land sector emissions | G195: land sector emissions baseline scenario
A196: LB | B196: Land sector emissions (land-based accounting) | C196: Description (optional) | E196: MtCO2 | G196: MtCO2
A197: LB | B197: Forestland
A198: LB | B198: Cropland
A199: LB | B199: Grassland
A200: LB | B200: Wetland
A201: LB | B201: Settlement
A202: LB | B202: Other land
A203: LB | C203: emissions - land sector (land-based) | E203: =SUM(E197:E202) -> 0 | G203: =SUM(G197:G202) -> 0
A204: LB
A205: LB | B205: Please enter removals (as negative numbers) by land use category (in Mt) | E205: land sector removals | G205: land sector removals baseline scenario
A206: LB | B206: Land sector removals (land-based accounting) | C206: Description (optional) | E206: MtCO2 | G206: MtCO2
A207: LB | B207: Forestland
A208: LB | B208: Cropland
A209: LB | B209: Grassland
A210: LB | B210: Wetland
A211: LB | B211: Settlement
A212: LB | B212: Other land
A213: LB | C213: removals - land sector (land-based) | E213: =SUM(E207:E212) -> 0 | G213: =SUM(G207:G212) -> 0
A215: AB
A216: AB | B216: Please enter emissions (as positive numbers) by land use activity (in Mt) | E216: land sector emissions | G216: baseline scenario land sector emissions
A217: AB | B217: Land sector emissions (activity-based accounting) | C217: Description (optional) | E217: MtCO2 | G217: MtCO2
A218: AB | B218: afforestation/reforestation
A219: AB | B219: deforestation
A220: AB | B220: soil carbon management
A221: AB | B221: protected area management
A222: AB | B222: cropland/fertilizer/manure application
A223: AB
A224: AB
A225: AB
A226: AB
A227: AB
A228: AB | C228: emissions - land sector (activity based) | E228: =SUM(E218:E227) -> 0 | G228: =SUM(G218:G227) -> 0
A229: AB
A230: AB | B230: Please enter removals (as negative numbers) by land use activity (in Mt) | E230: land sector removals | G230: baseline scenario land sector removals
... 552 more rows

Sheet Land
B10: Your goal boundaries do not include land sector accounting. If you want to include land sector accounting then change your goal boundaries.
B11: To enter or edit your land sector emissions, go to the 'Base Year or Baseline Scenario Emissions' page.
C14: Report on any use of managed land as a proxy including your definition of managed land and the locations of managed and unmanaged lands | H14: . | J14: =E14 -> 0
C16: ="Land sector categories or activities included in land sector accounting" & CHAR(10) & "(select from the list below or type in" & CHAR(10) & " the categories or activities directly)" & CHAR(10) -> Land sector categories or activities included in land sector accounting (select from the list below or type in the categories or activities directly) | J16: =E16 -> 0
C17: (select from list)
C18: =CHAR(10) &"Carbon pools, GHG fluxes and categories/activities included"&CHAR(10)&"within the elected land use categories or suites of activities" -> Carbon pools, GHG fluxes and categories/activities included within the elected land use categories or suites of activities | J18: =E18 -> 
C20: If any specific category, subcategory, or activity is accounted for with a different approach from the rest of the sector, the rationale for treating the category, subcategory or activity differently; the new accounting method chosen and reasons for choosing it; and the potential impacts of the different approach on the land sector and goal accounting | J20: =E20 -> 0
C22: What % of total inventory emissions from the land sector is included in the goal boundary? | E22: 1
C23: (in the base year or period or the baseline scenario as relevant)
C25: Are harvested wood products, including wood & paper products, included in accounting? | E25: no
C27: ="If harvest wood products are accounted, which accounting approach has been used?" & CHAR(10) & "(e.g. relevant IPCC methodology and/or good practice guidance)" -> If harvest wood products are accounted, which accounting approach has been used? (e.g. relevant IPCC methodology and/or good practice guidance) | J27: =E27 -> 0
C30: Chosen land sector accounting method | E30: forward-looking baseline
C32: ="Potential risks associated with the chosen accounting method and how the risks are minimized" & CHAR(10) & CHAR(10) & " " -> Potential risks associated with the chosen accounting method and how the risks are minimized | J32: =E32 -> 0
C34: If part or all of a land category or a land-use activity from the goal boundary is excluded to minimze potential risks, the exclusion, the reason for the exclusion, and the reason for any alternative accounting approach chosen | J34: =E34 -> 0
C36: Have you set a cap on removals? | E36: no
C38: Please report the level of the cap (in MtCO2e)
C40: If the goal level is adjusted, the new level of the goal | J40: =E40 -> 0
C42: If you have made any changes to the land sector accounting approach during the goal period, added a land category, subcategory or activity or changed the treatment of an existing category, subcategory or activity, carbon pool or GHG fluxes or revised your goal level to compensate for non-additional emissions or emission reductions, please note what changes were made and the resulting recalculations. | J42: =E42 -> 0
C44: If you have changed your land sector accounting approach during the goal period, please report the reasons for changing appproaches and the quantiative and qualitative effects on the land sector and overall goal accounting | J44: =E44 -> 0
C46: ="Any changes to included land sector categories, activities, carbon pools, or GHG fluxes that signficantly affect net land sector emissions" &CHAR(10)& " " -> Any changes to included land sector categories, activities, carbon pools, or GHG fluxes that signficantly affect net land sector emissions | J46: =E46 -> 0
C48: ="Any changes to the treatment of the land sector or the goal level (to compensate for non-additional emissions or removals)" & CHAR(10) & CHAR(10) & " " -> Any changes to the treatment of the land sector or the goal level (to compensate for non-additional emissions or removals) | J48: =E48 -> 0
C50: Have you adopted a natural disturbance mechanism? | E50: no
C52: All lands subject to natural disturbance mechanism, including their georeferenced location, year, and types of disturbances | J52: =E52 -> 0
C54: ="How annual emissions resulting from disturbances and the subsequent removals in those areas are estimated" & CHAR(10) & CHAR(10) & " " -> How annual emissions resulting from disturbances and the subsequent removals in those areas are estimated | J54: =E54 -> 0
C56: Demonstration that no land-use change has occurred on lands for which the mechanism is applied, and explanation of the methods and criteria for identifying any future land-use changes on those land areas during the goal period | J56: =E56 -> 0
C58: Demonstration that the occurrences were beyond the control of, and not materially influenced by, the user during the goal period, by demonstrating practicable efforts to prevent, manage, or control the occurrences that led to the application of the mechanism | J58: =E58 -> 0
C60: ="Demonstration of efforts taken to rehabilitate, where" &CHAR(10) & "practicable, the land for which the mechanism applied" & CHAR(10) -> Demonstration of efforts taken to rehabilitate, where practicable, the land for which the mechanism applied | J60: =E60 -> 0
C62: Demonstration that emissions associated with salvage logging on forestland subject to natural disturbance will not be/were not excluded from accounting | J62: =E62 -> 0
C64: Optional reporting information | J64: =E66 -> 0
C66: ="How has land-use data uncertainty been addressed? (optional)" & CHAR(10) & CHAR(10) & " " -> How has land-use data uncertainty been addressed? (optional)

Sheet Assessing Progress(bye)
B10: BASE YEAR EMISSIONS GOAL | N10: =IF(N39<>"", N39,"") ->  | O10: =IF(O39<>"", O39,"") ->  | P10: =IF(P39<>"", P39,"") -> 
B11: =IF(land_sector=1, "Land sector included in the goal boundary",IF(land_sector =2, "Land sector is treated as a sectoral goal", IF(land_sector = 3, "Land sector is treated as an offset", IF(land_sector =4,"with land sector not accounted for","")))) & IF(land_sector=3,IF(land_accounting=1," accounted relative to base year/period",". Note: you should be accounting your land sector emissions relative to the base year/period."),"") -> with land sector not accounted for
B12: =IF(OR(land_sector=1,land_sector=3),IF(land_method=1,"You have previously chosen to use a land-based accounting approach","You have previously chosen to use an activity-based accounting approach"),"") -> 
B13: =IF(jurisdiction=yes_set_single_goal,"Goal includes out-of-jurisdiction emissions",IF(jurisdiction=yes_set_separate_goals,"Separate goal is set for out-of-jurisdiction emissions","")) -> 
B16: ="Goal level = " & ROUND(E67,1) & " MtCO2e" -> Goal level = 0 MtCO2e
B17: =IF(base_period_value = 1, "Base year emissions = ", "Average base period emissions = ") & ROUND(E57,1) & " MtCO2e" -> Base year emissions = 0 MtCO2e
AC18: Goal Type
AC20: =goal_type_value -> 1
A21: land sector
A22: =land_sector -> 4 | AC22: Base year start
A23: land method | AC23: =base_start_year -> 2010
A24: =land_method -> 1 | AC24: Base end year
A25: land accounting | AC25: =base_end_year -> 2006
A26: =land_accounting -> 3 | AC26: Target start year
A27: =base_start_year & " base start year" -> 2010 base start year | AC27: =target_start_year -> 2020
A28: =base_end_year & " base end year" -> 2006 base end year | AC28: Target end year
A29: =target_start_year & " target start year" -> 2020 target start year | AC29: =target_end_year -> 2023
A30: =target_end_year & " target end year" -> 2023 target end year | AC30: MYTG
AC31: =mygt -> 0
AC32: target period
AC33: =target_period_value -> 1
AC34: base period
AC35: =base_period_value -> 1
AC36: land sector
AC38: =land_sector -> 4
D45: Information on Equations | F45: (figures in MtCO2e) | G45: 2010 | H45: 2011 | I45: 2012 | J45: 2013 | K45: 2014 | L45: 2015 | M45: 2016 | N45: 2017 | O45: 2018 | P45: 2019 | Q45: 2020
F46: =IF(land_sector <>3, "Reporting year emissions", "Reporting year emissions") -> Reporting year emissions | I46: =IF($I$78="yes",VLOOKUP(2012,data_lookup_table, 16, FALSE),"") -> 0 | DN46: =IF(AND(OR(DN45>base_end_year, base_period_value=1),DN73="yes"),IF(DN50<0, VLOOKUP(DN45,data_lookup_table,16,FALSE)+DN50,VLOOKUP(DN45,data_lookup_table,16,FALSE)+DN50),"") ->  | DO46: =IF(AND(OR(DO45>base_end_year, base_period_value=1),DO73="yes"),IF(DO50<0, VLOOKUP(DO45,data_lookup_table,16,FALSE)+DO50,VLOOKUP(DO45,data_lookup_table,16,FALSE)+DO50),"") ->  | DP46: =IF(AND(OR(DP45>base_end_year, base_period_value=1),DP73="yes"),IF(DP50<0, VLOOKUP(DP45,data_lookup_table,16,FALSE)+DP50,VLOOKUP(DP45,data_lookup_table,16,FALSE)+DP50),"") -> 
A47: HIDE | F47: Land Sector (land-based accounting) | G47: 0 | H47: 0 | I47: 0 | J47: 0 | K47: 0 | L47: 0 | M47: 0 | N47: 0 | O47: 0 | P47: 0 | Q47: 0
A48: HIDE | F48: Land Sector (activity-based accounting) | G48: 0 | H48: 0 | I48: 0 | J48: 0 | K48: 0 | L48: 0 | M48: 0 | N48: 0 | O48: 0 | P48: 0 | Q48: 0
A49: LAN | D49: =IF(land_sector = 3, "Equation 8.3","") ->  | F49: Net land sector emissions in reporting year (land as offset) | I49: =IF($I$78="yes",$I$47,"") -> 0
A50: LAN | D50: =IF( land_sector = 3, IF(land_accounting = 1, "Equation 8.4",IF(land_accounting=2, "Equation 8.5",IF(land_accounting = 3, "Equation 8.6",""))),"") ->  | F50: =IF(land_sector=3,IF(land_accounting=1,"Change in net land sector emissions (relative to base year/period)",IF(land_accounting=2,"Change in net land sector emissions (without reference to base year/period)","Change in net land sector emissions (forward-looking baseline)")),"") ->  | G50: 0 | H50: 0 | I50: 0 | J50: 0 | K50: 0 | L50: 0 | M50: 0 | N50: 0 | O50: 0 | P50: 0 | Q50: 0 | R50: 0 | S50: 0 | T50: 0 | U50: =IF($U$78="yes",IF(land_accounting=1,$U$49-$E$60,IF(land_accounting = 2,$U$49, IF(land_accounting = 3,$U$49-VLOOKUP($U$45,data_lookup_table,34,FALSE)))),IF($U$73="yes",0,"")) ->  | V50: 0 | W50: 0 | X50: 0 | Y50: 0 | Z50: =IF(AND(land_sector=3,OR(base_period_value = 1, Z45>base_end_year), Z73="yes"), IF(land_accounting=1,Z49-$E$60,IF(land_accounting = 2, Z49, IF(land_accounting = 3, Z49-VLOOKUP(Z45,data_lookup_table,34,FALSE)))),IF(Z73="yes",0,"")) ->  | AM50: =IF(AND(land_sector=3,OR(base_period_value = 1, AM45>base_end_year), AM73="yes"), IF(land_accounting=1,AM49-$E$60,IF(land_accounting = 2, AM49, IF(land_accounting = 3, AM49-VLOOKUP(AM45,data_lookup_table,34,FALSE)))),IF(AM73="yes",0,"")) ->  | BS50: =IF(AND(land_sector=3,OR(base_period_value = 1, BS45>base_end_year), BS73="yes"), IF(land_accounting=1,BS49-$E$60,IF(land_accounting = 2, BS49, IF(land_accounting = 3, BS49-VLOOKUP(BS45,data_lookup_table,34,FALSE)))),IF(BS73="yes",0,"")) ->  | CY50: =IF(AND(land_sector=3,OR(base_period_value = 1, CY45>base_end_year), CY73="yes"), IF(land_accounting=1,CY49-$E$60,IF(land_accounting = 2, CY49, IF(land_accounting = 3, CY49-VLOOKUP(CY45,data_lookup_table,34,FALSE)))),IF(CY73="yes",0,"")) -> 
D51: =IF(land_sector <> 3, "Equation 8.2","Equation 8.7") -> Equation 8.2 | E51: =E61 -> 0 | F51: Changes in emissions since start of goal period | I51: =IF($I$78="yes",$I$46-$G$57+$I$50,"") -> 0 | Z51: =IF(AND(Z73="yes",OR(base_period_value=1,Z45>base_end_year)),Z46-Z50-$E$58+Z50,"") ->  | AY51: =IF(AND(AY73="yes",OR(base_period_value=1,AY45>base_end_year)),AY46-AY50-$E$58+AY50,"") ->  | CE51: =IF(AND(CE73="yes",OR(base_period_value=1,CE45>base_end_year)),CE46-CE50-$E$58+CE50,"") ->  | DK51: =IF(AND(DK73="yes",OR(base_period_value=1,DK45>base_end_year)),DK46-DK50-$E$58+DK50,"") -> 
D52: =IF(land_sector = 3, "Equation 8.10", "Equation 8.9") -> Equation 8.9 | F52: Additional reductions needed to meet the goal level | I52: =IF($I$78="yes",$I$46-$E$67+$I$50,"") -> 0 | Z52: =IF(AND(Z46<>"", OR(base_period_value = 1,Z45>base_end_year)),Z46-Z50-$E$67+Z50,"") ->  | AM52: =IF(AND(AM46<>"", OR(base_period_value = 1,AM45>base_end_year)),AM46-AM50-$E$67+AM50,"") ->  | BS52: =IF(AND(BS46<>"", OR(base_period_value = 1,BS45>base_end_year)),BS46-BS50-$E$67+BS50,"") ->  | CY52: =IF(AND(CY46<>"", OR(base_period_value = 1,CY45>base_end_year)),CY46-CY50-$E$67+CY50,"") -> 
A53: HIDE | F53: Out-of-jurisdiction emissions (excluding net land sector emission | Z53: =IF(AND(Z73="yes",Z45<>""),IF(jurisdiction =yes_set_separate_goals,VLOOKUP(Z45,data_lookup_table,32,FALSE),0),"") ->  | AM53: =IF(AND(AM73="yes",AM45<>""),IF(jurisdiction =yes_set_separate_goals,VLOOKUP(AM45,data_lookup_table,32,FALSE),0),"") ->  | BS53: =IF(AND(BS73="yes",BS45<>""),IF(jurisdiction =yes_set_separate_goals,VLOOKUP(BS45,data_lookup_table,32,FALSE),0),"") ->  | CY53: =IF(AND(CY73="yes",CY45<>""),IF(jurisdiction =yes_set_separate_goals,VLOOKUP(CY45,data_lookup_table,32,FALSE),0),"") -> 
A54: HIDE | Z54: =IF(AND(Z73="yes",Z45<>""),IF(jurisdiction =yes_set_separate_goals,VLOOKUP(Z45,data_lookup_table,33,FALSE),0),"") ->  | AM54: =IF(AND(AM73="yes",AM45<>""),IF(jurisdiction =yes_set_separate_goals,VLOOKUP(AM45,data_lookup_table,33,FALSE),0),"") ->  | BS54: =IF(AND(BS73="yes",BS45<>""),IF(jurisdiction =yes_set_separate_goals,VLOOKUP(BS45,data_lookup_table,33,FALSE),0),"") ->  | CY54: =IF(AND(CY73="yes",CY45<>""),IF(jurisdiction =yes_set_separate_goals,VLOOKUP(CY45,data_lookup_table,33,FALSE),0),"") -> 
A55: OOJ | F55: =IF(land_sector = 3,"Out-of-jurisdication emissions (excluding net land sector emissions)", "Out-of-jurisdication emissions (including any net land sector emissions") -> Out-of-jurisdication emissions (including any net land sector emissions | Z55: =IF(AND(Z53<>"",Z56<>""),IF(land_sector=3,Z53,Z53+Z56),"") ->  | AM55: =IF(AND(AM53<>"",AM56<>""),IF(land_sector=3,AM53,AM53+AM56),"") ->  | BS55: =IF(AND(BS53<>"",BS56<>""),IF(land_sector=3,BS53,BS53+BS56),"") ->  | CY55: =IF(AND(CY53<>"",CY56<>""),IF(land_sector=3,CY53,CY53+CY56),"") -> 
A56: OOL | F56: Out-of_jurisdiction emissions (net land sector emissions) | Z56: =IF(AND(Z73="yes",Z45<>""),IF(jurisdiction =yes_set_separate_goals,VLOOKUP(Z45,data_lookup_table,33,FALSE),0),"") ->  | AM56: =IF(AND(AM73="yes",AM45<>""),IF(jurisdiction =yes_set_separate_goals,VLOOKUP(AM45,data_lookup_table,33,FALSE),0),"") ->  | BS56: =IF(AND(BS73="yes",BS45<>""),IF(jurisdiction =yes_set_separate_goals,VLOOKUP(BS45,data_lookup_table,33,FALSE),0),"") ->  | CY56: =IF(AND(CY73="yes",CY45<>""),IF(jurisdiction =yes_set_separate_goals,VLOOKUP(CY45,data_lookup_table,33,FALSE),0),"") -> 
E57: =AVERAGEIF(G57:DM57,"<>""""""" ) -> 0 | F57: =IF(land_sector<>3,IF(base_period_value=1,"Base year emissions","Base period emissions"),IF(base_period_value=1,"Base year emissions","Base period emissions")) -> Base year emissions | G57: 0
A58: HIDE | E58: =AVERAGEIF(G58:DM58,"<>""""""" ) -> 0 | F58: Base year emissions (excl. net land sector emissions as offset) | G58: 0
A59: HIDE | F59: Change in net land sector emissions
A60: LAN | E60: =IFERROR(AVERAGEIF(G60:DM60,"<>"""""""),0) -> 0 | F60: =IF(land_sector=3, IF(goal_type_value = 4, "Net land sector emissions (base year scenario)", "Net land sector emissions (base year/period)"),"") ->  | G60: 0
A61: HIDE | E61: =IF(land_sector = 3, E57, E57) -> 0 | F61: =IF(base_period_value<>1,"Average base period emissions","Base year emissions level") -> Base year emissions level | G61: =$E$57 -> 0 | H61: 0 | I61: 0 | J61: 0 | K61: 0 | L61: 0 | M61: 0 | N61: 0 | O61: 0 | P61: 0 | Q61: 0 | R61: =$E$57 -> 0 | S61: 0 | T61: 0 | U61: =$E$57 -> 0 | V61: =$E$57 -> 0 | W61: =$E$57 -> 0 | X61: 0 | Y61: 0 | Z61: =IF(Z45<>"",$E$61,NA()) ->  | AM61: =IF(AM45<>"",$E$61,NA()) ->  | BS61: =IF(BS45<>"",$E$61,NA()) ->  | CY61: =IF(CY45<>"",$E$61,NA()) -> 
A62: HIDE | F62: Out-of-jurisdiction emissions (excluding land sector) | Z62: =IF(Z74="yes",IF(jurisdiction = yes_set_separate_goals,VLOOKUP(Z45,data_lookup_table,7,FALSE),0),"") ->  | AM62: =IF(AM74="yes",IF(jurisdiction = yes_set_separate_goals,VLOOKUP(AM45,data_lookup_table,7,FALSE),0),"") ->  | BS62: =IF(BS74="yes",IF(jurisdiction = yes_set_separate_goals,VLOOKUP(BS45,data_lookup_table,7,FALSE),0),"") ->  | CY62: =IF(CY74="yes",IF(jurisdiction = yes_set_separate_goals,VLOOKUP(CY45,data_lookup_table,7,FALSE),0),"") -> 
A63: OOJ | F63: =IF(land_sector=3,"Out-of-jurisdiction emissions (excluding net land sector emissions)",IF(land_sector = 4, "Out-of-jurisdiction emissions", "Out-of-jurisdiction emissions (including any net land sector emissions)")) -> Out-of-jurisdiction emissions | DN63: =IF(jurisdiction =yes_set_separate_goals,VLOOKUP(DN45,data_lookup_table,7,FALSE),"") ->  | DO63: =IF(jurisdiction =yes_set_separate_goals,VLOOKUP(DO45,data_lookup_table,7,FALSE),"") ->  | DP63: =IF(jurisdiction =yes_set_separate_goals,VLOOKUP(DP45,data_lookup_table,7,FALSE),"") ->  | DQ63: =IF(jurisdiction =yes_set_separate_goals,VLOOKUP(DQ45,data_lookup_table,7,FALSE),"") ->  | DR63: =IF(jurisdiction =yes_set_separate_goals,VLOOKUP(DR45,data_lookup_table,7,FALSE),"") -> 
A64: HIDE | F64: not used
A65: OOL | F65: Out-of_jurisdiction emissions (net land sector) | DN65: =IF(jurisdiction =yes_set_separate_goals,VLOOKUP(DN45,data_lookup_table,12,FALSE),"") ->  | DO65: =IF(jurisdiction =yes_set_separate_goals,VLOOKUP(DO45,data_lookup_table,12,FALSE),"") ->  | DP65: =IF(jurisdiction =yes_set_separate_goals,VLOOKUP(DP45,data_lookup_table,12,FALSE),"") ->  | DQ65: =IF(jurisdiction =yes_set_separate_goals,VLOOKUP(DQ45,data_lookup_table,12,FALSE),"") ->  | DR65: =IF(jurisdiction =yes_set_separate_goals,VLOOKUP(DR45,data_lookup_table,12,FALSE),"") -> 
A66: HIDE | F66: Reporting year emissions to display when land as offset | Z66: =IF(AND(OR(Z45>base_end_year, base_period_value=1),Z73="yes"),IF(Z50<0, VLOOKUP(Z45,data_lookup_table,16,FALSE)+Z50,VLOOKUP(Z45,data_lookup_table,16,FALSE)),"") ->  | AN66: =IF(AND(OR(AN45>base_end_year, base_period_value=1),AN73="yes"),IF(AN50<0, VLOOKUP(AN45,data_lookup_table,16,FALSE)+AN50,VLOOKUP(AN45,data_lookup_table,16,FALSE)),"") ->  | BT66: =IF(AND(OR(BT45>base_end_year, base_period_value=1),BT73="yes"),IF(BT50<0, VLOOKUP(BT45,data_lookup_table,16,FALSE)+BT50,VLOOKUP(BT45,data_lookup_table,16,FALSE)),"") ->  | CZ66: =IF(AND(OR(CZ45>base_end_year, base_period_value=1),CZ73="yes"),IF(CZ50<0, VLOOKUP(CZ45,data_lookup_table,16,FALSE)+CZ50,VLOOKUP(CZ45,data_lookup_table,16,FALSE)),"") -> 
E67: =IF(mygt=1,AVERAGEIF(G67:DM67,"<>"""""""),VLOOKUP(target_start_year,data_lookup_table,4,FALSE)) -> 0 | F67: =IF(target_period_value = 1, "Allowable target year emissions", "Allowable target period emissions") -> Allowable target year emissions | Q67: 0
A68: HIDE | F68: ="Goal level" -> Goal level | H68: =$E$67 -> 0 | I68: 0 | J68: 0 | K68: 0 | L68: 0 | M68: 0 | N68: 0 | O68: 0 | P68: 0 | Q68: 0 | R68: =$E$67 -> 0 | S68: 0 | T68: 0 | U68: =$E$67 -> 0 | V68: =$E$67 -> 0 | W68: =$E$67 -> 0 | X68: 0 | Y68: 0 | Z68: =IF(Z45<>"",$E$67,NA()) ->  | AM68: =IF(AM45<>"",$E$67,NA()) ->  | BS68: =IF(BS45<>"",$E$67,NA()) ->  | CY68: =IF(CY45<>"",$E$67,NA()) -> 
A69: OOJ | F69: =IF(target_period_value = 1, "Allowable target year emissions (out-of-jurisdiction emissions)", "Allowable target period emissions (out-of-jurisdiction)") -> Allowable target year emissions (out-of-jurisdiction emissions) | Q69: 0 | R69: 0 | S69: 0 | T69: 0 | U69: 3 | V69: 290 | Z69: =IF(AND(Z75="yes",OR(Z45<>0,Z45<>"")),IF(AND(Z45>=target_start_year,Z45<=target_end_year),VLOOKUP(Z45,data_lookup_table,35,FALSE),""),"") ->  | AM69: =IF(AND(AM75="yes",OR(AM45<>0,AM45<>"")),IF(AND(AM45>=target_start_year,AM45<=target_end_year),VLOOKUP(AM45,data_lookup_table,35,FALSE),""),"") ->  | BS69: =IF(AND(BS75="yes",OR(BS45<>0,BS45<>"")),IF(AND(BS45>=target_start_year,BS45<=target_end_year),VLOOKUP(BS45,data_lookup_table,35,FALSE),""),"") ->  | CY69: =IF(AND(CY75="yes",OR(CY45<>0,CY45<>"")),IF(AND(CY45>=target_start_year,CY45<=target_end_year),VLOOKUP(CY45,data_lookup_table,35,FALSE),""),"") -> 
A70: TEU | D70: Equation 8.11 | F70: Emissions reductions needed to achieve goal with use of units | I70: =IF($I$78="yes",$I$52+$I$71-$I$72,"") -> 0 | Z70: =IFERROR(IF(AND(teus_allowed=2,Z45>=base_end_year,Z45<=target_end_year), Z52+Z71-Z72,""),"") ->  | AM70: =IFERROR(IF(AND(teus_allowed=2,AM45>=base_end_year,AM45<=target_end_year), AM52+AM71-AM72,""),"") ->  | BS70: =IFERROR(IF(AND(teus_allowed=2,BS45>=base_end_year,BS45<=target_end_year), BS52+BS71-BS72,""),"") ->  | CY70: =IFERROR(IF(AND(teus_allowed=2,CY45>=base_end_year,CY45<=target_end_year), CY52+CY71-CY72,""),"") -> 
A71: TEU | F71: units anticipated to be sold/actually sold in the target year/period
A72: TEU | F72: units anticipated to be retired/actually retired in the target year/period
A73: HIDE
A74: HIDE | Z74: no | AA74: no | AB74: no | AC74: no | AD74: no | AE74: no | AF74: no | AG74: no | AH74: no | AI74: no | AJ74: no | AK74: no | AL74: no | AM74: no | AN74: no | AO74: no | AP74: no | AQ74: no | AR74: no | AS74: no | AT74: no | AU74: no | AV74: no | AW74: no | AX74: no | AY74: no | AZ74: no | BA74: no | BB74: no | BC74: no | BD74: no | BE74: no | BF74: no | BG74: no | BH74: no | BI74: no | BJ74: no | BK74: no | BL74: no | BM74: no | BN74: no | BO74: no | BP74: no | BQ74: no | BR74: no | BS74: no | BT74: no | BU74: no | BV74: no | BW74: no | BX74: no | BY74: no | BZ74: no | CA74: no | CB74: no | CC74: no | CD74: no | CE74: no | CF74: no | CG74: no | CH74: no | CI74: no | CJ74: no | CK74: no | CL74: no | CM74: no | CN74: no | CO74: no | CP74: no | CQ74: no | CR74: no | CS74: no | CT74: no | CU74: no | CV74: no | CW74: no | CX74: no | CY74: no | CZ74: no | DA74: no | DB74: no | DC74: no | DD74: no | DE74: no | DF74: no | DG74: no | DH74: no | DI74: no | DJ74: no | DK74: no | DL74: no | DM74: no | DN74: no | DO74: no | DP74: no | DQ74: no | DR74: no
A75: HIDE | Z75: no | AA75: no | AB75: no | AC75: no | AD75: no | AE75: no | AF75: no | AG75: no | AH75: no | AI75: no | AJ75: no | AK75: no | AL75: no | AM75: no | AN75: no | AO75: no | AP75: no | AQ75: no | AR75: no | AS75: no | AT75: no | AU75: no | AV75: no | AW75: no | AX75: no | AY75: no | AZ75: no | BA75: no | BB75: no | BC75: no | BD75: no | BE75: no | BF75: no | BG75: no | BH75: no | BI75: no | BJ75: no | BK75: no | BL75: no | BM75: no | BN75: no | BO75: no | BP75: no | BQ75: no | BR75: no | BS75: no | BT75: no | BU75: no | BV75: no | BW75: no | BX75: no | BY75: no | BZ75: no | CA75: no | CB75: no | CC75: no | CD75: no | CE75: no | CF75: no | CG75: no | CH75: no | CI75: no | CJ75: no | CK75: no | CL75: no | CM75: no | CN75: no | CO75: no | CP75: no | CQ75: no | CR75: no | CS75: no | CT75: no | CU75: no | CV75: no | CW75: no | CX75: no | CY75: no | CZ75: no | DA75: no | DB75: no | DC75: no | DD75: no | DE75: no | DF75: no | DG75: no | DH75: no | DI75: no | DJ75: no | DK75: no | DL75: no | DM75: no | DN75: no | DO75: no | DP75: no | DQ75: no | DR75: no
A76: HIDE
A77: ACT | D77: =IF(land_sector <> 3, "Equation 9.1", "Equation 9.2") -> Equation 9.1 | F77: Accountable/reporting emissions | G77: =IF($G$78="yes",$G$46+$G$71-$G$72+$G$50,"") ->  | H77: =IF($H$78="yes",$H$46+$H$71-$H$72+$H$50,"") ->  | I77: =IF($I$78="yes",$I$46+$I$71-$I$72+$I$50,"") -> 0 | J77: =IF($J$78="yes",$J$46+$J$71-$J$72+$J$50,"") ->  | K77: =IF($K$78="yes",$K$46+$K$71-$K$72+$K$50,"") ->  | L77: =IF($L$78="yes",$L$46+$L$71-$L$72+$L$50,"") ->  | M77: =IF($M$78="yes",$M$46+$M$71-$M$72+$M$50,"") ->  | N77: =IF($N$78="yes",$N$46+$N$71-$N$72+$N$50,"") ->  | O77: =IF($O$78="yes",$O$46+$O$71-$O$72+$O$50,"") ->  | P77: =IF($P$78="yes",$P$46+$P$71-$P$72+$P$50,"") ->  | Q77: =IF($Q$78="yes",$Q$46+$Q$71-$Q$72+$Q$50,"") ->  | R77: =IF($R$78="yes",$R$46+$R$71-$R$72+$R$50,"") -> 0 | S77: =IF($S$78="yes",$S$46+$S$71-$S$72+$S$50,"") -> 0 | T77: =IF($T$78="yes",$T$46+$T$71-$T$72+$T$50,"") -> 0 | U77: =IF($U$78="yes",$U$46+$U$71-$U$72+$U$50,"") ->  | V77: =IF($V$78="yes",$V$46+$V$71-$V$72+$V$50,"") -> 0 | W77: =IF($W$78="yes",$W$46+$W$71-$W$72+$W$50,"") ->  | X77: =IF($X$78="yes",$X$46+$X$71-$X$72+$X$50,"") ->  | Y77: =IF($Y$78="yes",$Y$46+$Y$71-$Y$72+$Y$50,"") ->  | Z77: =IF(AND(Z45>=target_start_year, Z46<>"",Z45<>""),Z46+Z71-Z72,"") ->  | AX77: =IF(AND(AX45>=target_start_year, AX46<>"",AX45<>""),AX46+AX71-AX72,"") ->  | CD77: =IF(AND(CD45>=target_start_year, CD46<>"",CD45<>""),CD46+CD71-CD72,"") ->  | DJ77: =IF(AND(DJ45>=target_start_year, DJ46<>"",DJ45<>""),DJ46+DJ71-DJ72,"") -> 
F78: Display accountable/reporting emissions on graph | G78: no | H78: no | I78: yes | J78: no | K78: no | L78: no | M78: no | N78: no | O78: no | P78: no | Q78: no | R78: yes | S78: yes | T78: yes | U78: no | V78: yes | W78: no | X78: no | Y78: no

Sheet Assessing Progress(fl)
B10: FIXED-LEVEL GOAL | K10: =IF(K39<>"", K39,"") ->  | L10: =IF(L39<>"", L39,"") ->  | M10: =IF(M39<>"", M39,"") -> 
B11: =IF(land_sector=1, "with land sector included in goal boundary",IF(land_sector =2, "with land sector as a sectoral goal", IF(land_sector = 3, "with land sector as an offset", IF(land_sector =4,"with land sector not accounted for","")))) -> with land sector not accounted for
B20: ="Goal level " & ROUND(E67,1) & " MtCO2e" -> Goal level 0 MtCO2e
D45: Information on equations | F45: (figures in MtCO2e) | G45: 2005 | H45: 2006 | I45: 2007 | J45: 2008 | K45: 2009 | L45: 2010 | M45: 2011
F46: =IF(land_sector <>3, "Reporting year emissions", "Reporting year emissions") -> Reporting year emissions | S46: =IF($S$78 = "yes",VLOOKUP(2014,data_lookup_table,16,FALSE),"") -> 80 | DD46: =IF(AND(DD45>year_goal_adopted,DD73="yes"),VLOOKUP(DD45,data_lookup_table,16,FALSE)+DD50,"") -> 
A47: HIDE | F47: Land Sector (land-based accounting) | G47: =IF($G$78 = "yes", VLOOKUP($G$45,data_lookup_table,19,FALSE),"") ->  | H47: =IF($H$78 = "yes", VLOOKUP($H$45,data_lookup_table,19,FALSE),"") ->  | I47: =IF($I$78 = "yes", VLOOKUP($I$45,data_lookup_table,19,FALSE),"") ->  | J47: =IF($J$78 = "yes", VLOOKUP($J$45,data_lookup_table,19,FALSE),"") ->  | K47: =IF($K$78 = "yes", VLOOKUP($K$45,data_lookup_table,19,FALSE),"") ->  | L47: =IF($L$78 = "yes", VLOOKUP($L$45,data_lookup_table,19,FALSE),"") ->  | M47: =IF($M$78 = "yes", VLOOKUP($M$45,data_lookup_table,19,FALSE),"") ->  | N47: =IF($N$78 = "yes", VLOOKUP($N$45,data_lookup_table,19,FALSE),"") ->  | O47: =IF($O$78 = "yes", VLOOKUP($O$45,data_lookup_table,19,FALSE),"") ->  | P47: =IF($P$78 = "yes", VLOOKUP($P$45,data_lookup_table,19,FALSE),"") ->  | Q47: =IF($Q$78 = "yes", VLOOKUP($Q$45,data_lookup_table,19,FALSE),"") ->  | R47: =IF($R$78 = "yes", VLOOKUP($R$45,data_lookup_table,19,FALSE),"") ->  | S47: =IF($S$78 = "yes", VLOOKUP($S$45,data_lookup_table,19,FALSE),"") ->  | T47: =IF($T$78 = "yes", VLOOKUP($T$45,data_lookup_table,19,FALSE),"") ->  | U47: =IF($U$78 = "yes", VLOOKUP($U$45,data_lookup_table,19,FALSE),"") ->  | V47: =IF(AND(V45>base_end_year, V73="yes"),VLOOKUP(V45,data_lookup_table,19,FALSE),"") ->  | AJ47: =IF(AND(AJ45>base_end_year, AJ73="yes"),VLOOKUP(AJ45,data_lookup_table,19,FALSE),"") ->  | CV47: =IF(AND(CV45>base_end_year, CV73="yes"),VLOOKUP(CV45,data_lookup_table,19,FALSE),"") -> 
A48: HIDE | F48: Land Sector (activity-based accounting) | G48: =IF($G$78 = "yes", VLOOKUP($G$45,data_lookup_table,20,FALSE),"") ->  | H48: =IF($H$78 = "yes", VLOOKUP($H$45,data_lookup_table,20,FALSE),"") ->  | I48: =IF($I$78 = "yes", VLOOKUP($I$45,data_lookup_table,20,FALSE),"") ->  | J48: =IF($J$78 = "yes", VLOOKUP($J$45,data_lookup_table,20,FALSE),"") ->  | K48: =IF($K$78 = "yes", VLOOKUP($K$45,data_lookup_table,20,FALSE),"") ->  | L48: =IF($L$78 = "yes", VLOOKUP($L$45,data_lookup_table,20,FALSE),"") ->  | M48: =IF($M$78 = "yes", VLOOKUP($M$45,data_lookup_table,20,FALSE),"") ->  | N48: =IF($N$78 = "yes", VLOOKUP($N$45,data_lookup_table,20,FALSE),"") ->  | O48: =IF($O$78 = "yes", VLOOKUP($O$45,data_lookup_table,20,FALSE),"") ->  | P48: =IF($P$78 = "yes", VLOOKUP($P$45,data_lookup_table,20,FALSE),"") ->  | Q48: =IF($Q$78 = "yes", VLOOKUP($Q$45,data_lookup_table,20,FALSE),"") ->  | R48: =IF($R$78 = "yes", VLOOKUP($R$45,data_lookup_table,20,FALSE),"") ->  | S48: =IF($S$78 = "yes", VLOOKUP($S$45,data_lookup_table,20,FALSE),"") ->  | T48: =IF($T$78 = "yes", VLOOKUP($T$45,data_lookup_table,20,FALSE),"") ->  | U48: =IF($U$78 = "yes", VLOOKUP($U$45,data_lookup_table,20,FALSE),"") ->  | V48: =IF(IF(V45>base_end_year, V73="yes"),VLOOKUP(V45,data_lookup_table,20,FALSE),"") ->  | AJ48: =IF(IF(AJ45>base_end_year, AJ73="yes"),VLOOKUP(AJ45,data_lookup_table,20,FALSE),"") ->  | CV48: =IF(IF(CV45>base_end_year, CV73="yes"),VLOOKUP(CV45,data_lookup_table,20,FALSE),"") -> 
A49: LAN | D49: Equation 8.3 | F49: Net land sector emissions in reporting year (land as offset) | G49: =IF(AND(G45>year_goal_adopted,land_sector=3),IF(land_method=1,G47,G48),IF(G45>year_goal_adopted,0,"")) ->  | H49: 0 | I49: 0 | J49: 0 | K49: 0 | L49: 0 | M49: 0 | U49: =IF(AND(U45>year_goal_adopted,land_sector=3),IF(land_method=1,U47,U48),IF(U45>year_goal_adopted,0,"")) ->  | AJ49: =IF(AND(AJ45>year_goal_adopted,land_sector=3),IF(land_method=1,AJ47,AJ48),IF(AJ45>year_goal_adopted,0,"")) ->  | CV49: =IF(AND(CV45>year_goal_adopted,land_sector=3),IF(land_method=1,CV47,CV48),IF(CV45>year_goal_adopted,0,"")) -> 
A50: LAN | D50: =IF(land_accounting=1, "Equation 8.4", IF(land_accounting = 2, "Equation 8.5", IF(land_accounting = 3, "Equation 8.6",""))) -> Equation 8.6 | F50: =IF(land_accounting=1, "Change in net land sector emissions (relative to year goal adopted)", IF(land_accounting = 2, "Change in net land sector emissions (without reference to year goal adopted)", IF(land_accounting = 3, "Change in net land sector emissions (forward looking baseline method)",""))) -> Change in net land sector emissions (forward looking baseline method) | S50: =IF(AND(land_sector=3,$S$45>year_goal_adopted,$S$78= "yes"),IF(land_accounting=1,$S$49-$G$60,IF(land_accounting=2,$S$49,$S$49-VLOOKUP($S$45,data_lookup_table,34,FALSE))), 0) -> 0 | V50: =IF(AND(land_sector=3,V45>year_goal_adopted, V73="yes"), IF(land_accounting = 1, V49-$G$60, IF(land_accounting = 2, V49, V49-VLOOKUP(V45,data_lookup_table,34,FALSE))),"") ->  | AM50: =IF(AND(land_sector=3,AM45>year_goal_adopted, AM73="yes"), IF(land_accounting = 1, AM49-$G$60, IF(land_accounting = 2, AM49, AM49-VLOOKUP(AM45,data_lookup_table,34,FALSE))),"") ->  | BS50: =IF(AND(land_sector=3,BS45>year_goal_adopted, BS73="yes"), IF(land_accounting = 1, BS49-$G$60, IF(land_accounting = 2, BS49, BS49-VLOOKUP(BS45,data_lookup_table,34,FALSE))),"") ->  | CY50: =IF(AND(land_sector=3,CY45>year_goal_adopted, CY73="yes"), IF(land_accounting = 1, CY49-$G$60, IF(land_accounting = 2, CY49, CY49-VLOOKUP(CY45,data_lookup_table,34,FALSE))),"") -> 
D51: =IF(land_sector <> 3, "Equation 8.2","Equation 8.7") -> Equation 8.2 | E51: =E61 -> 0 | F51: Changes in emissions since start of goal period | S51: =IF($S$78 = "yes",$S$46-$E$57+$S$50,"") -> 80 | DD51: =IF(AND(DD73="yes",DD45>year_goal_adopted),DD46-$E$57,"") -> 
D52: =IF(land_sector = 3, "Equation 8.10", "Equation 8.9") -> Equation 8.9 | F52: Additional reductions needed to meet the goal level | S52: =IF($S$78 = "yes",$S$46-$E$66+$S$50,"") ->  | DD52: =IF(AND(DD46<>"", DD45>year_goal_adopted),DD46-$E$67,"") -> 
A53: HIDE | F53: Out-of-jurisdiction emissions (excluding land sector) | G53: =IF(AND(G73="yes",G45<>""),IF(jurisdiction <> no_ooj,VLOOKUP(G45,data_lookup_table,32,FALSE),0),"") ->  | L53: 0 | BS53: =IF(AND(BS73="yes",BS45<>""),IF(jurisdiction <> no_ooj,VLOOKUP(BS45,data_lookup_table,32,FALSE),0),"") -> 
A54: OOL | F54: Out-of_jurisdiction emissions (net land sector) | G54: =IF(AND(G73="yes",G45<>""),IF(jurisdiction <> no_ooj,VLOOKUP(G45,data_lookup_table,33,FALSE),0),"") ->  | L54: 0 | BS54: =IF(AND(BS73="yes",BS45<>""),IF(jurisdiction <> no_ooj,VLOOKUP(BS45,data_lookup_table,33,FALSE),0),"") -> 
A55: OOJ | F55: =IF(land_sector = 3,"Out-of-jurisdiction emissions (excl net land emissions)", "Out-of-jurisdiction emissions (incl. net land sector emissions)") -> Out-of-jurisdiction emissions (incl. net land sector emissions) | G55: =IFERROR(IF(land_sector = 3,G53,G53+G54),0) -> 0 | H55: 0 | I55: 0 | J55: 0 | K55: 0 | L55: 0 | M55: 0 | N55: 0 | O55: 0 | P55: 0 | Q55: 0 | R55: 0 | S55: 0 | T55: 0 | U55: 0 | V55: 0 | W55: 0 | X55: 0 | Y55: 0 | Z55: 0 | AA55: 0 | AB55: 0 | AC55: 0 | AD55: 0 | AE55: 0 | AF55: 0 | AG55: 0 | AH55: 0 | AI55: 0 | AJ55: 0 | AK55: 0 | AL55: 0 | AM55: =IFERROR(IF(land_sector = 3,AM53,AM53+AM54),0) -> 0 | AN55: 0 | AO55: 0 | AP55: 0 | AQ55: 0 | AR55: 0 | AS55: 0 | AT55: 0 | AU55: 0 | AV55: 0 | AW55: 0 | AX55: 0 | AY55: 0 | AZ55: 0 | BA55: 0 | BB55: 0 | BC55: 0 | BD55: 0 | BE55: 0 | BF55: 0 | BG55: 0 | BH55: 0 | BI55: 0 | BJ55: 0 | BK55: 0 | BL55: 0 | BM55: 0 | BN55: 0 | BO55: 0 | BP55: 0 | BQ55: 0 | BR55: 0 | BS55: =IFERROR(IF(land_sector = 3,BS53,BS53+BS54),0) -> 0 | BT55: 0 | BU55: 0 | BV55: 0 | BW55: 0 | BX55: 0 | BY55: 0 | BZ55: 0 | CA55: 0 | CB55: 0 | CC55: 0 | CD55: 0 | CE55: 0 | CF55: 0 | CG55: 0 | CH55: 0 | CI55: 0 | CJ55: 0 | CK55: 0 | CL55: 0 | CM55: 0 | CN55: 0 | CO55: 0 | CP55: 0 | CQ55: 0 | CR55: 0 | CS55: 0 | CT55: 0 | CU55: 0 | CV55: 0 | CW55: 0 | CX55: 0 | CY55: =IFERROR(IF(land_sector = 3,CY53,CY53+CY54),0) -> 0 | CZ55: 0 | DA55: 0 | DB55: 0 | DC55: 0 | DD55: 0 | DE55: 0 | DF55: 0 | DG55: 0 | DH55: 0 | DI55: 0 | DJ55: 0 | DK55: 0 | DL55: 0 | DM55: 0
A56: HIDE | F56: not used | L56: =IF(jurisdiction=yes_set_single_goal,L54,0) -> 0 | M56: 0 | N56: 0 | O56: 0 | P56: 0 | Q56: 0 | R56: 0 | S56: 0 | T56: 0 | U56: 0 | V56: 0 | W56: 0 | X56: 0 | Y56: 0 | Z56: 0 | AA56: 0 | AB56: 0 | AC56: 0 | AD56: 0 | AE56: 0 | AF56: 0 | AG56: 0 | AH56: 0 | AI56: 0 | AJ56: 0 | AK56: 0 | AL56: 0 | AM56: 0 | AN56: 0 | AO56: 0 | AP56: 0 | AQ56: 0 | AR56: 0 | AS56: 0 | AT56: 0 | AU56: 0 | AV56: 0 | AW56: 0 | AX56: 0 | AY56: 0 | AZ56: 0 | BA56: 0 | BB56: 0 | BC56: 0 | BD56: 0 | BE56: 0 | BF56: 0 | BG56: 0 | BH56: 0 | BI56: 0 | BJ56: 0 | BK56: 0 | BL56: 0 | BM56: 0 | BN56: 0 | BO56: 0 | BP56: 0 | BQ56: 0 | BR56: 0 | BS56: =IF(jurisdiction=yes_set_single_goal,BS54,0) -> 0 | BT56: 0 | BU56: 0 | BV56: 0 | BW56: 0 | BX56: 0 | BY56: 0 | BZ56: 0 | CA56: 0 | CB56: 0 | CC56: 0 | CD56: 0 | CE56: 0 | CF56: 0 | CG56: 0 | CH56: 0 | CI56: 0 | CJ56: 0 | CK56: 0 | CL56: 0 | CM56: 0 | CN56: 0 | CO56: 0 | CP56: 0 | CQ56: 0 | CR56: 0 | CS56: 0 | CT56: 0 | CU56: 0 | CV56: 0 | CW56: 0 | CX56: 0 | CY56: 0 | CZ56: 0 | DA56: 0 | DB56: 0 | DC56: 0 | DD56: 0 | DE56: 0 | DF56: 0 | DG56: 0 | DH56: 0 | DI56: 0 | DJ56: 0 | DK56: 0 | DL56: 0 | DM56: 0
E57: =total_adopted_year_emissions -> 0 | F57: =IF(land_sector=3,"Year goal adopted emissions",IF(land_sector=4,"Year goal adopted emissions","Year goal adopted emissions")) -> Year goal adopted emissions | G57: =IF(AND(G74="yes", G45=year_goal_adopted),total_adopted_year_emissions,"") -> 0 | H57: =IF(AND(H74="yes", H45=year_goal_adopted),VLOOKUP(H45,data_lookup_table,8,FALSE) - H60+H64,"") ->  | AN57: =IF(AND(AN74="yes", AN45=year_goal_adopted),VLOOKUP(AN45,data_lookup_table,8,FALSE) - AN60+AN64,"") ->  | BT57: =IF(AND(BT74="yes", BT45=year_goal_adopted),VLOOKUP(BT45,data_lookup_table,8,FALSE) - BT60+BT64,"") ->  | CZ57: =IF(AND(CZ74="yes", CZ45=year_goal_adopted),VLOOKUP(CZ45,data_lookup_table,8,FALSE) - CZ60+CZ64,"") -> 
A58: HIDE | F58: Land Sector (land-based accounting) | G58: =IF(AND(G45=year_goal_adopted,G74="yes"),land_sector_adopted_year_emissions,"") -> -20 | AM58: =IF(AND(AM45=year_goal_adopted,AM74="yes"),land_sector_adopted_year_emissions,"") ->  | BS58: =IF(AND(BS45=year_goal_adopted,BS74="yes"),land_sector_adopted_year_emissions,"") ->  | CY58: =IF(AND(CY45=year_goal_adopted,CY74="yes"),land_sector_adopted_year_emissions,"") -> 
A59: HIDE | F59: Land Sector (activity-based accounting) | G59: =G58 -> -20 | H59: =H58 ->  | BT59: =BT58 -> 
A60: LAN | E60: =IFERROR(AVERAGEIF(G60:DM60,"<>"""""""),0) -> 0 | F60: Net land sector emissions (year goal adopted) | G60: =IF(AND(land_sector = 3,G74="yes"), IF(land_method = 1, G58,G59),0) -> 0
A61: HIDE | E61: =IF(land_sector = 3, E57+E60, E57) -> 0 | F61: average base year emissions | G61: =IF(G45<>"",$E$61,NA()) -> 0 | H61: 0 | I61: 0 | J61: 0 | K61: 0 | L61: 0 | M61: 0 | BS61: =IF(BS45<>"",$E$61,NA()) -> 
A62: OOJ | F62: =IF(land_sector=4,"Out-of-jurisdiction emissions",IF(land_sector=3,"Out-of-jurisdiction emissions (excluding land sector)","Out-of-jurisdiction emissions (including land sector)")) -> Out-of-jurisdiction emissions | G62: =IF(G74="yes",IF(jurisdiction <> no_ooj,ooj_adopted_year_excl_land,0),"") -> 0 | H62: =IF(H74="yes",IF(jurisdiction <> no_ooj,VLOOKUP(H45,data_lookup_table,7,FALSE),0),"") ->  | BS62: =IF(BS74="yes",IF(jurisdiction <> no_ooj,VLOOKUP(BS45,data_lookup_table,7,FALSE),0),"") -> 
A63: OOL | F63: Out-of_jurisdiction emissions (net land sector) | G63: =IF(G74="yes",IF(jurisdiction =yes_set_separate_goals,ooj_adopted_year_land,""),0) ->  | H63: =IF(H74="yes",IF(jurisdiction <> no_ooj,VLOOKUP(H45,data_lookup_table,12,FALSE),0),"") ->  | BS63: =IF(BS74="yes",IF(jurisdiction <> no_ooj,VLOOKUP(BS45,data_lookup_table,12,FALSE),0),"") -> 
A64: HIDE | F64: OOJ emissions to add to Reporting year total (excl net land emissions) | G64: =IF(jurisdiction=yes_set_single_goal,G62,0) -> 0 | H64: 0 | I64: 0 | J64: 0 | K64: 0 | L64: 0 | M64: 0 | N64: 0 | O64: 0 | P64: 0 | Q64: 0 | R64: 0 | S64: 0 | T64: =IF(jurisdiction=yes_set_single_goal,T62,0) -> 0 | U64: 0 | V64: 0 | W64: 0 | X64: 0 | Y64: 0 | Z64: 0 | AA64: 0 | AB64: 0 | AC64: 0 | AD64: 0 | AE64: 0 | AF64: 0 | AG64: 0 | AH64: 0 | AI64: 0 | AJ64: 0 | AK64: 0 | AL64: 0 | AM64: 0 | AN64: 0 | AO64: 0 | AP64: 0 | AQ64: 0 | AR64: 0 | AS64: 0 | AT64: 0 | AU64: 0 | AV64: 0 | AW64: 0 | AX64: 0 | AY64: 0 | AZ64: 0 | BA64: 0 | BB64: 0 | BC64: 0 | BD64: 0 | BE64: 0 | BF64: 0 | BG64: 0 | BH64: 0 | BI64: 0 | BJ64: 0 | BK64: 0 | BL64: 0 | BM64: 0 | BN64: 0 | BO64: 0 | BP64: 0 | BQ64: 0 | BR64: 0 | BS64: =IF(jurisdiction=yes_set_single_goal,BS62,0) -> 0 | BT64: 0 | BU64: 0 | BV64: 0 | BW64: 0 | BX64: 0 | BY64: 0 | BZ64: 0 | CA64: 0 | CB64: 0 | CC64: 0 | CD64: 0 | CE64: 0 | CF64: 0 | CG64: 0 | CH64: 0 | CI64: 0 | CJ64: 0 | CK64: 0 | CL64: 0 | CM64: 0 | CN64: 0 | CO64: 0 | CP64: 0 | CQ64: 0 | CR64: 0 | CS64: 0 | CT64: 0 | CU64: 0 | CV64: 0 | CW64: 0 | CX64: 0 | CY64: 0 | CZ64: 0 | DA64: 0 | DB64: 0 | DC64: 0 | DD64: 0 | DE64: 0 | DF64: 0 | DG64: 0 | DH64: 0 | DI64: 0 | DJ64: 0 | DK64: 0 | DL64: 0 | DM64: 0
A65: HIDE | F65: OOJ emissions to add to Net land sector emissions | G65: 0 | H65: 0 | I65: 0 | J65: 0 | K65: 0 | L65: 0 | M65: 0 | N65: 0 | O65: 0 | P65: 0 | Q65: 0 | R65: 0 | S65: 0 | T65: =IF(jurisdiction=yes_set_single_goal,T63,0) -> 0 | U65: 0 | V65: 0 | W65: 0 | X65: 0 | Y65: 0 | Z65: 0 | AA65: 0 | AB65: 0 | AC65: 0 | AD65: 0 | AE65: 0 | AF65: 0 | AG65: 0 | AH65: 0 | AI65: 0 | AJ65: 0 | AK65: 0 | AL65: 0 | AM65: 0 | AN65: 0 | AO65: 0 | AP65: 0 | AQ65: 0 | AR65: 0 | AS65: 0 | AT65: 0 | AU65: 0 | AV65: 0 | AW65: 0 | AX65: 0 | AY65: 0 | AZ65: 0 | BA65: 0 | BB65: 0 | BC65: 0 | BD65: 0 | BE65: 0 | BF65: 0 | BG65: 0 | BH65: 0 | BI65: 0 | BJ65: 0 | BK65: 0 | BL65: 0 | BM65: 0 | BN65: 0 | BO65: 0 | BP65: 0 | BQ65: 0 | BR65: 0 | BS65: 0 | BT65: 0 | BU65: 0 | BV65: 0 | BW65: 0 | BX65: 0 | BY65: 0 | BZ65: 0 | CA65: 0 | CB65: 0 | CC65: 0 | CD65: 0 | CE65: 0 | CF65: 0 | CG65: 0 | CH65: 0 | CI65: 0 | CJ65: 0 | CK65: 0 | CL65: 0 | CM65: 0 | CN65: 0 | CO65: 0 | CP65: 0 | CQ65: 0 | CR65: 0 | CS65: 0 | CT65: 0 | CU65: 0 | CV65: 0 | CW65: 0 | CX65: 0 | CY65: 0 | CZ65: 0 | DA65: 0 | DB65: 0 | DC65: 0 | DD65: 0 | DE65: 0 | DF65: 0 | DG65: 0 | DH65: 0 | DI65: 0 | DJ65: 0 | DK65: 0 | DL65: 0 | DM65: 0
E66: =AVERAGEIF(G66:DM66,"<>""""""") ->  | F66: Allowable target year emissions | G66: =IF(AND(G45>=target_start_year,G45<=target_end_year),VLOOKUP(G45,data_lookup_table,4,FALSE),"") ->  | AM66: =IF(AND(AM45>=target_start_year,AM45<=target_end_year),VLOOKUP(AM45,data_lookup_table,4,FALSE),"") ->  | BS66: =IF(AND(BS45>=target_start_year,BS45<=target_end_year),VLOOKUP(BS45,data_lookup_table,4,FALSE),"") ->  | CY66: =IF(AND(CY45>=target_start_year,CY45<=target_end_year),VLOOKUP(CY45,data_lookup_table,4,FALSE),"") -> 
A67: OOJ | F67: Out-of-jurisdiction allowable target year emissions | G67: =IF(AND($G$45>=target_start_year,$G$45<=target_end_year),VLOOKUP($G$45,data_lookup_table,35,FALSE),"") ->  | H67: =IF(AND($H$45>=target_start_year,$H$45<=target_end_year),VLOOKUP($H$45,data_lookup_table,35,FALSE),"") ->  | I67: =IF(AND($I$45>=target_start_year,$I$45<=target_end_year),VLOOKUP($I$45,data_lookup_table,35,FALSE),"") ->  | J67: =IF(AND($J$45>=target_start_year,$J$45<=target_end_year),VLOOKUP($J$45,data_lookup_table,35,FALSE),"") ->  | K67: =IF(AND($K$45>=target_start_year,$K$45<=target_end_year),VLOOKUP($K$45,data_lookup_table,35,FALSE),"") ->  | L67: =IF(AND($L$45>=target_start_year,$L$45<=target_end_year),VLOOKUP($L$45,data_lookup_table,35,FALSE),"") ->  | M67: =IF(AND($M$45>=target_start_year,$M$45<=target_end_year),VLOOKUP($M$45,data_lookup_table,35,FALSE),"") ->  | N67: =IF(AND($N$45>=target_start_year,$N$45<=target_end_year),VLOOKUP($N$45,data_lookup_table,35,FALSE),"") ->  | O67: =IF(AND($O$45>=target_start_year,$O$45<=target_end_year),VLOOKUP($O$45,data_lookup_table,35,FALSE),"") ->  | P67: =IF(AND($P$45>=target_start_year,$P$45<=target_end_year),VLOOKUP($P$45,data_lookup_table,35,FALSE),"") ->  | Q67: =IF(AND($Q$45>=target_start_year,$Q$45<=target_end_year),VLOOKUP($Q$45,data_lookup_table,35,FALSE),"") ->  | R67: =IF(AND($R$45>=target_start_year,$R$45<=target_end_year),VLOOKUP($R$45,data_lookup_table,35,FALSE),"") ->  | S67: =IF(AND($S$45>=target_start_year,$S$45<=target_end_year),VLOOKUP($S$45,data_lookup_table,35,FALSE),"") ->  | T67: =IF(AND($T$45>=target_start_year,$T$45<=target_end_year),VLOOKUP($T$45,data_lookup_table,35,FALSE),"") ->  | U67: =IF(AND($U$45>=target_start_year,$U$45<=target_end_year),VLOOKUP($U$45,data_lookup_table,35,FALSE),"") -> 
A68: HIDE | F68: Goal level | H68: =$E$66 ->  | DN68: =$E$66 -> 
A69: TEU | D69: Equation 8.11 | F69: Emissions reductions needed to achieve goal with use of units | S69: =IF($S$78 = "yes",$S$52+$S$70-$S$71,"") ->  | DD69: =IFERROR(IF(AND(teus_allowed=2,DD45>=base_end_year,DD45<=target_end_year), DD52+DD70-DD71,""),"") -> 
A70: TEU | F70: units anticipated to be/actually sold in the target year/period
A71: TEU | F71: units anticipated to be/actually retired in the target year/period
A72: HIDE | F72: Reporting year (incl net land but excl TEUs) | S72: =IF($S$78 = "yes",VLOOKUP(2014,data_lookup_table,16,FALSE)+$S$50,"") -> 80
A73: HIDE | F73: Display reporting year emissions | G73: no | H73: no | I73: no | J73: no | K73: no | L73: yes | M73: no | N73: no | O73: no | P73: no | Q73: no | R73: no | S73: no | T73: no | U73: no | V73: no | W73: no | X73: no | Y73: no | Z73: no | AA73: no | AB73: no | AC73: no | AD73: no | AE73: no | AF73: no | AG73: no | AH73: no | AI73: no | AJ73: no | AK73: no | AL73: no | AM73: no | AN73: no | AO73: no | AP73: no | AQ73: no | AR73: no | AS73: no | AT73: no | AU73: no | AV73: no | AW73: no | AX73: no | AY73: no | AZ73: no | BA73: no | BB73: no | BC73: no | BD73: no | BE73: no | BF73: no | BG73: no | BH73: no | BI73: no | BJ73: no | BK73: no | BL73: no | BM73: no | BN73: no | BO73: no | BP73: no | BQ73: no | BR73: no | BS73: no | BT73: no | BU73: no | BV73: no | BW73: no | BX73: no | BY73: no | BZ73: no | CA73: no | CB73: no | CC73: no | CD73: no | CE73: no | CF73: no | CG73: no | CH73: no | CI73: no | CJ73: no | CK73: no | CL73: no | CM73: no | CN73: no | CO73: no | CP73: no | CQ73: no | CR73: no | CS73: no | CT73: no | CU73: no | CV73: no | CW73: no | CX73: no | CY73: no | CZ73: no | DA73: no | DB73: no | DC73: no | DD73: no | DE73: no | DF73: no | DG73: no | DH73: no | DI73: no | DJ73: no | DK73: no | DL73: no | DM73: no | DO73: no | DP73: no | DQ73: no
A74: HIDE | F74: Display base year scenario emissions | G74: yes | H74: no | I74: no | J74: no | K74: no | L74: no | M74: no | N74: no | O74: no | P74: no | Q74: no | R74: no | S74: no | T74: no | U74: no | V74: no | W74: no | X74: no | Y74: no | Z74: no | AA74: no | AB74: no | AC74: no | AD74: no | AE74: no | AF74: no | AG74: no | AH74: no | AI74: no | AJ74: no | AK74: no | AL74: no | AM74: no | AN74: no | AO74: no | AP74: no | AQ74: no | AR74: no | AS74: no | AT74: no | AU74: no | AV74: no | AW74: no | AX74: no | AY74: no | AZ74: no | BA74: no | BB74: no | BC74: no | BD74: no | BE74: no | BF74: no | BG74: no | BH74: no | BI74: no | BJ74: no | BK74: no | BL74: no | BM74: no | BN74: no | BO74: no | BP74: no | BQ74: no | BR74: no | BS74: no | BT74: no | BU74: no | BV74: no | BW74: no | BX74: no | BY74: no | BZ74: no | CA74: no | CB74: no | CC74: no | CD74: no | CE74: no | CF74: no | CG74: no | CH74: no | CI74: no | CJ74: no | CK74: no | CL74: no | CM74: no | CN74: no | CO74: no | CP74: no | CQ74: no | CR74: no | CS74: no | CT74: no | CU74: no | CV74: no | CW74: no | CX74: no | CY74: no | CZ74: no | DA74: no | DB74: no | DC74: no | DD74: no | DE74: no | DF74: no | DG74: no | DH74: no | DI74: no | DJ74: no | DK74: no | DL74: no | DM74: no | DO74: no | DP74: no | DQ74: no
A75: HIDE | F75: Display allowable target year emissions | G75: no | H75: no | I75: no | J75: no | K75: no | L75: no | M75: no | N75: no | O75: no | P75: no | Q75: no | R75: no | S75: no | T75: no | U75: no | V75: no | W75: no | X75: no | Y75: no | Z75: no | AA75: no | AB75: no | AC75: no | AD75: no | AE75: no | AF75: no | AG75: no | AH75: no | AI75: no | AJ75: no | AK75: no | AL75: no | AM75: no | AN75: no | AO75: no | AP75: no | AQ75: no | AR75: no | AS75: no | AT75: no | AU75: no | AV75: no | AW75: no | AX75: no | AY75: no | AZ75: no | BA75: no | BB75: no | BC75: no | BD75: no | BE75: no | BF75: no | BG75: no | BH75: no | BI75: no | BJ75: no | BK75: no | BL75: no | BM75: no | BN75: no | BO75: no | BP75: no | BQ75: no | BR75: no | BS75: no | BT75: no | BU75: no | BV75: no | BW75: no | BX75: no | BY75: no | BZ75: no | CA75: no | CB75: no | CC75: no | CD75: no | CE75: no | CF75: no | CG75: no | CH75: no | CI75: no | CJ75: no | CK75: no | CL75: no | CM75: no | CN75: no | CO75: no | CP75: no | CQ75: no | CR75: no | CS75: no | CT75: no | CU75: no | CV75: no | CW75: no | CX75: no | CY75: no | CZ75: no | DA75: no | DB75: no | DC75: no | DD75: no | DE75: no | DF75: no | DG75: no | DH75: no | DI75: no | DJ75: no | DK75: no | DL75: no | DM75: no | DO75: no | DP75: no | DQ75: no
A76: HIDE
A77: ACT | D77: =IF(land_sector = 3, "Equation 9.2", "Equation 9.1") -> Equation 9.1 | F77: Accountable/reporting emissions | G77: =IF($G$78="yes",$G$46+$G$70-$G$71+$G$50,"") ->  | H77: =IF($H$78="yes",$H$46+$H$70-$H$71+$H$50,"") ->  | I77: =IF($I$78="yes",$I$46+$I$70-$I$71+$I$50,"") ->  | J77: =IF($J$78="yes",$J$46+$J$70-$J$71+$J$50,"") ->  | K77: =IF($K$78="yes",$K$46+$K$70-$K$71+$K$50,"") ->  | L77: =IF($L$78="yes",$L$46+$L$70-$L$71+$L$50,"") ->  | M77: =IF($M$78="yes",$M$46+$M$70-$M$71+$M$50,"") ->  | N77: =IF($N$78="yes",$N$46+$N$70-$N$71+$N$50,"") -> 0 | O77: =IF($O$78="yes",$O$46+$O$70-$O$71+$O$50,"") -> 0 | P77: =IF($P$78="yes",$P$46+$P$70-$P$71+$P$50,"") -> 0 | Q77: =IF($Q$78="yes",$Q$46+$Q$70-$Q$71+$Q$50,"") ->  | R77: =IF($R$78="yes",$R$46+$R$70-$R$71+$R$50,"") ->  | S77: =IF($S$78="yes",$S$46+$S$70-$S$71+$S$50,"") -> 80 | T77: =IF($T$78="yes",$T$46+$T$70-$T$71+$T$50,"") ->  | U77: =IF($U$78="yes",$U$46+$U$70-$U$71+$U$50,"") ->  | V77: =IF(AND(V46<>"", V45>= target_start_year), V46,"") ->  | AM77: =IF(AND(AM46<>"", AM45>= target_start_year), AM46,"") ->  | BS77: =IF(AND(BS46<>"", BS45>= target_start_year), BS46,"") ->  | CY77: =IF(AND(CY46<>"", CY45>= target_start_year), CY46,"") -> 
F78: Display accountable/reporting emissions on graph | G78: no | H78: no | I78: no | J78: no | K78: no | L78: no | M78: no | N78: yes | O78: yes | P78: yes | Q78: no | R78: no | S78: yes | T78: no | U78: no

Sheet Assessing Progress(byi)
B10: BASE YEAR INTENSITY GOAL
B11: =IF(land_sector=1, "with land sector included in goal boundary",IF(land_sector =2, "with land sector as a sectoral goal", IF(land_sector = 3, "with land sector as an offset", IF(land_sector =4,"with land sector not accounted for","")))) -> with land sector not accounted for
B12: =IF(land_sector=3,IF(land_accounting=1,"accounted relative to base year/period",IF(land_accounting=2,"accounting without reference to base year/period",IF(land_accounting=3,"with forward-looking baseline accounting method",land_accounting))),"") -> 
D43: Information on equations
F45: (figures in MtCO2e unless stated) | G45: 2002 | H45: 2003 | I45: 2004 | J45: 2005 | K45: 2006 | L45: 2007 | M45: 2008 | N45: 2009 | O45: 2010
D46: =IF(land_sector<>3,"Equations 8.1","Equations 8.1") -> Equations 8.1 | F46: ="Reporting year emissions intensity (MtCO2e/" & lov & ")" -> Reporting year emissions intensity (MtCO2e/$000's)
F47: ="Level of output in the reporting year (" & lov & ")" -> Level of output in the reporting year ($000's)
F48: =IF(land_sector=3,"Reporting year emissions (incl net land sector emissions)","Reporting year emissions") -> Reporting year emissions
A49: NLAN | D49: Equation 8.2 | F49: Changes in emissions since the start of the goal period
A50: HIDE | F50: Land Sector (land-based accounting) | G50: 0 | H50: 0 | I50: 0 | J50: 0 | K50: 0 | L50: 0 | M50: 0 | N50: 0 | O50: 0
A51: HIDE | F51: Land Sector (activity-based accounting) | G51: 0 | H51: 0 | I51: 0 | J51: 0 | K51: 0 | L51: 0 | M51: 0 | N51: 0 | O51: 0
A52: HIDE | F52: Forward-looking baseline accounting method | G52: 0 | H52: 0 | I52: 0 | J52: 0 | K52: 0 | L52: 0 | M52: 0 | N52: 0 | O52: 0
A53: HIDE | F53: Net land sector emissions (land as offset)
A54: LAN | D54: =IF(land_accounting=1,"Equation 8.4",IF(land_accounting = 2, "Equation 8.5", "Equation 8.6")) -> Equation 8.6 | F54: =IF(land_accounting=1,"Change in net land sector emissions (relative to base year/period)", IF(land_accounting = 2, "Change in net land sector emissions (without reference to base year/period)", "Change in net land sector emissions (forward-looking baseline scenario)")) -> Change in net land sector emissions (forward-looking baseline scenario)
D55: =IF(land_sector <> 3, " ","Equation 8.8") ->  | E55: =E68 ->  | F55: Changes in emissions intensity since start of goal period (MtCO2e/level of output)
D56: =IF(land_sector = 3, "Equation 8.10", "Equation 8.9") -> Equation 8.9 | F56: Additional reductions needed to meet the goal level
A57: OOJ | F57: =IF(land_sector = 4, "Out-of-jurisdiction emissions", IF(land_sector = 3, "Out-of-jurisdiction emissions (excluding land sector)", "Out-of-jurisdiction emissions (including land sector emissions)")) -> Out-of-jurisdiction emissions | G57: =IF(AND($G$86="yes",$G$45<>""),IF(jurisdiction <> no_ooj,VLOOKUP($G$45,data_lookup_table,32,FALSE),0),"") ->  | H57: =IF(AND($H$86="yes",$H$45<>""),IF(jurisdiction <> no_ooj,VLOOKUP($H$45,data_lookup_table,32,FALSE),0),"") ->  | I57: =IF(AND($I$86="yes",$I$45<>""),IF(jurisdiction <> no_ooj,VLOOKUP($I$45,data_lookup_table,32,FALSE),0),"") ->  | J57: =IF(AND($J$86="yes",$J$45<>""),IF(jurisdiction <> no_ooj,VLOOKUP($J$45,data_lookup_table,32,FALSE),0),"") ->  | K57: =IF(AND($K$86="yes",$K$45<>""),IF(jurisdiction <> no_ooj,VLOOKUP($K$45,data_lookup_table,32,FALSE),0),"") ->  | L57: =IF(AND($L$86="yes",$L$45<>""),IF(jurisdiction <> no_ooj,VLOOKUP($L$45,data_lookup_table,32,FALSE),0),"") ->  | M57: =IF(AND($M$86="yes",$M$45<>""),IF(jurisdiction <> no_ooj,VLOOKUP($M$45,data_lookup_table,32,FALSE),0),"") ->  | N57: =IF(AND($N$86="yes",$N$45<>""),IF(jurisdiction <> no_ooj,VLOOKUP($N$45,data_lookup_table,32,FALSE),0),"") ->  | O57: =IF(AND($O$86="yes",$O$45<>""),IF(jurisdiction <> no_ooj,VLOOKUP($O$45,data_lookup_table,32,FALSE),0),"") -> 
A58: OOL | F58: Out-of_jurisdiction emissions (net land sector) | G58: =IF(AND($G$86="yes",$G$45<>""),IF(jurisdiction <> no_ooj,VLOOKUP($G$45,data_lookup_table,33,FALSE),0),"") ->  | H58: =IF(AND($H$86="yes",$H$45<>""),IF(jurisdiction <> no_ooj,VLOOKUP($H$45,data_lookup_table,33,FALSE),0),"") ->  | I58: =IF(AND($I$86="yes",$I$45<>""),IF(jurisdiction <> no_ooj,VLOOKUP($I$45,data_lookup_table,33,FALSE),0),"") ->  | J58: =IF(AND($J$86="yes",$J$45<>""),IF(jurisdiction <> no_ooj,VLOOKUP($J$45,data_lookup_table,33,FALSE),0),"") ->  | K58: =IF(AND($K$86="yes",$K$45<>""),IF(jurisdiction <> no_ooj,VLOOKUP($K$45,data_lookup_table,33,FALSE),0),"") ->  | L58: =IF(AND($L$86="yes",$L$45<>""),IF(jurisdiction <> no_ooj,VLOOKUP($L$45,data_lookup_table,33,FALSE),0),"") ->  | M58: =IF(AND($M$86="yes",$M$45<>""),IF(jurisdiction <> no_ooj,VLOOKUP($M$45,data_lookup_table,33,FALSE),0),"") ->  | N58: =IF(AND($N$86="yes",$N$45<>""),IF(jurisdiction <> no_ooj,VLOOKUP($N$45,data_lookup_table,33,FALSE),0),"") ->  | O58: =IF(AND($O$86="yes",$O$45<>""),IF(jurisdiction <> no_ooj,VLOOKUP($O$45,data_lookup_table,33,FALSE),0),"") -> 
A59: HIDE | F59: OOJ emissions to add to Reporting year total (excl net land emissions) | G59: =IF(jurisdiction=yes_set_single_goal,$G$57,0) -> 0 | H59: =IF(jurisdiction=yes_set_single_goal,$H$57,0) -> 0 | I59: =IF(jurisdiction=yes_set_single_goal,$I$57,0) -> 0 | J59: =IF(jurisdiction=yes_set_single_goal,$J$57,0) -> 0 | K59: =IF(jurisdiction=yes_set_single_goal,$K$57,0) -> 0 | L59: =IF(jurisdiction=yes_set_single_goal,$L$57,0) -> 0 | M59: =IF(jurisdiction=yes_set_single_goal,$M$57,0) -> 0 | N59: =IF(jurisdiction=yes_set_single_goal,$N$57,0) -> 0 | O59: =IF(jurisdiction=yes_set_single_goal,$O$57,0) -> 0
A60: HIDE | F60: OOJ emissions to add to Net land sector emissions | G60: =IF(jurisdiction=yes_set_single_goal,$G$58,0) -> 0 | H60: =IF(jurisdiction=yes_set_single_goal,$H$58,0) -> 0 | I60: =IF(jurisdiction=yes_set_single_goal,$I$58,0) -> 0 | J60: =IF(jurisdiction=yes_set_single_goal,$J$58,0) -> 0 | K60: =IF(jurisdiction=yes_set_single_goal,$K$58,0) -> 0 | L60: =IF(jurisdiction=yes_set_single_goal,$L$58,0) -> 0 | M60: =IF(jurisdiction=yes_set_single_goal,$M$58,0) -> 0 | N60: =IF(jurisdiction=yes_set_single_goal,$N$58,0) -> 0 | O60: =IF(jurisdiction=yes_set_single_goal,$O$58,0) -> 0
E61: =D63/D62 ->  | F61: Base year emissions intensity (MtCO2e/level of output) | G61: =$G$63/$G$62 -> 
D62: =SUM(G62:DM62) -> 0 | E62: =IFERROR(AVERAGEIF(G62:DM62,"<>"""""""),0) -> 0 | F62: ="Level of output in the base year/base period (" & lov & ")" -> Level of output in the base year/base period ($000's) | G62: 0
D63: =SUM(G63:DM63) -> 0 | E63: =IFERROR(ROUND(AVERAGEIF(G63:DM63,"<>"""""""),2),0) -> 0 | F63: Base year emissions | G63: 0
A64: HIDE | F64: Land Sector (land-based accounting) | G64: =IF($G$82="yes",VLOOKUP($G$45,data_lookup_table,9,FALSE),"") ->  | H64: =IF($H$82="yes",VLOOKUP($H$45,data_lookup_table,9,FALSE),"") ->  | I64: =IF($I$82="yes",VLOOKUP($I$45,data_lookup_table,9,FALSE),"") ->  | J64: =IF($J$82="yes",VLOOKUP($J$45,data_lookup_table,9,FALSE),"") ->  | K64: =IF($K$82="yes",VLOOKUP($K$45,data_lookup_table,9,FALSE),"") ->  | L64: =IF($L$82="yes",VLOOKUP($L$45,data_lookup_table,9,FALSE),"") ->  | M64: =IF($M$82="yes",VLOOKUP($M$45,data_lookup_table,9,FALSE),"") ->  | N64: =IF($N$82="yes",VLOOKUP($N$45,data_lookup_table,9,FALSE),"") ->  | O64: =IF($O$82="yes",VLOOKUP($O$45,data_lookup_table,9,FALSE),"") -> 
A65: HIDE | F65: Land Sector (activity-based accounting) | G65: =IF($G$82="yes",VLOOKUP($G$45,data_lookup_table,10,FALSE),"") ->  | H65: =IF($H$82="yes",VLOOKUP($H$45,data_lookup_table,10,FALSE),"") ->  | I65: =IF($I$82="yes",VLOOKUP($I$45,data_lookup_table,10,FALSE),"") ->  | J65: =IF($J$82="yes",VLOOKUP($J$45,data_lookup_table,10,FALSE),"") ->  | K65: =IF($K$82="yes",VLOOKUP($K$45,data_lookup_table,10,FALSE),"") ->  | L65: =IF($L$82="yes",VLOOKUP($L$45,data_lookup_table,10,FALSE),"") ->  | M65: =IF($M$82="yes",VLOOKUP($M$45,data_lookup_table,10,FALSE),"") ->  | N65: =IF($N$82="yes",VLOOKUP($N$45,data_lookup_table,10,FALSE),"") ->  | O65: =IF($O$82="yes",VLOOKUP($O$45,data_lookup_table,10,FALSE),"") -> 
A66: LAN | E66: =IFERROR(AVERAGEIF(G66:DM66,"<>"""""""),0) -> -100 | F66: Base year net land sector emissions (land as offset) | G66: -100
A67: HIDE | F67: Base year emissions (excl. net land sector emissions) | G67: 0
E68: =IF(land_sector = 3, (E61+E66)/E62, E61/E62) ->  | F68: Average base year emissions intensity (MtCO2e/level of output) | G68: =IFERROR(IF($G$45<>"",$E$61,NA()),NA()) ->  | H68: =IFERROR(IF($H$45<>"",$E$61,NA()),NA()) ->  | I68: =IFERROR(IF($I$45<>"",$E$61,NA()),NA()) ->  | J68: =IFERROR(IF($J$45<>"",$E$61,NA()),NA()) ->  | K68: =IFERROR(IF($K$45<>"",$E$61,NA()),NA()) ->  | L68: =IFERROR(IF($L$45<>"",$E$61,NA()),NA()) ->  | M68: =IFERROR(IF($M$45<>"",$E$61,NA()),NA()) ->  | N68: =IFERROR(IF($N$45<>"",$E$61,NA()),NA()) ->  | O68: =IFERROR(IF($O$45<>"",$E$61,NA()),NA()) -> 
A69: OOJ | E69: =E61/E62 ->  | F69: =IF(land_sector = 4, "Out-of-jurisdiction emissions", IF(land_sector = 3, "Out-of-jurisdiction emissions (excluding land sector)", "Out-of-jurisdiction emissions (including land sector emissions)")) -> Out-of-jurisdiction emissions
A70: OOL | F70: Out-of_jurisdiction emissions (net land sector)
A71: HIDE | G71: =IF(jurisdiction=yes_set_single_goal,$G$69,0) -> 0 | H71: =IF(jurisdiction=yes_set_single_goal,$H$69,0) -> 0 | I71: =IF(jurisdiction=yes_set_single_goal,$I$69,0) -> 0 | J71: =IF(jurisdiction=yes_set_single_goal,$J$69,0) -> 0 | K71: =IF(jurisdiction=yes_set_single_goal,$K$69,0) -> 0 | L71: =IF(jurisdiction=yes_set_single_goal,$L$69,0) -> 0 | M71: =IF(jurisdiction=yes_set_single_goal,$M$69,0) -> 0 | N71: =IF(jurisdiction=yes_set_single_goal,$N$69,0) -> 0 | O71: =IF(jurisdiction=yes_set_single_goal,$O$69,0) -> 0
A72: HIDE | G72: =IF(jurisdiction=yes_set_single_goal,$G$70,0) -> 0 | H72: =IF(jurisdiction=yes_set_single_goal,$H$70,0) -> 0 | I72: =IF(jurisdiction=yes_set_single_goal,$I$70,0) -> 0 | J72: =IF(jurisdiction=yes_set_single_goal,$J$70,0) -> 0 | K72: =IF(jurisdiction=yes_set_single_goal,$K$70,0) -> 0 | L72: =IF(jurisdiction=yes_set_single_goal,$L$70,0) -> 0 | M72: =IF(jurisdiction=yes_set_single_goal,$M$70,0) -> 0 | N72: =IF(jurisdiction=yes_set_single_goal,$N$70,0) -> 0 | O72: =IF(jurisdiction=yes_set_single_goal,$O$70,0) -> 0
D73: Equation 7.2 | E73: =IFERROR(ROUND(AVERAGEIF(G73:DM73,"<>"""""""),2),0) -> 0 | F73: Allowable emissions intensity in the target year (MtCO2e/level of output) | O73: 0
F74: Goal level (MtCO2e/level of output) | G74: =IFERROR(IF($G$45<>"",$E$73,NA()),NA()) -> 0 | H74: =IFERROR(IF($H$45<>"",$E$73,NA()),NA()) -> 0 | I74: =IFERROR(IF($I$45<>"",$E$73,NA()),NA()) -> 0 | J74: =IFERROR(IF($J$45<>"",$E$73,NA()),NA()) -> 0 | K74: =IFERROR(IF($K$45<>"",$E$73,NA()),NA()) -> 0 | L74: =IFERROR(IF($L$45<>"",$E$73,NA()),NA()) -> 0 | M74: =IFERROR(IF($M$45<>"",$E$73,NA()),NA()) -> 0 | N74: =IFERROR(IF($N$45<>"",$E$73,NA()),NA()) -> 0 | O74: =IFERROR(IF($O$45<>"",$E$73,NA()),NA()) -> 0
F75: ="Project level of output in target year (" & lov & ")" -> Project level of output in target year ($000's) | O75: 0
D76: Equation 7.1 | F76: Allowable emissions in the target year | O76: 0
A77: TEU | D77: Equation 8.11 | F77: Emissions reductions needed to achieve goal with use of units
A78: TEU | F78: units anticipated to be sold in the target year/period
A79: TEU | F79: units anticipated to be retired in the target year/period
A80: HIDE | F80: Goal level (MtCO2e)
A81: OOJ | F81: Out-of-jurisdiction emissions intensity in the target year/period (MtCO2e/level of output) | O81: 6
A82: OOJ | F82: Out-of-jurisdiction emissions in the target year/period (MtCO2e) | O82: 0
A83: HIDE | F83: Display allowable target year emissions
A84: ACT | D84: =IF(land_sector = 3, "Equation 9.2","Equation 9.1") -> Equation 9.1 | F84: Accountable emissions
A85: ACT | D85: =IF(land_sector = 3, "Equation 9.3","Equation 9.4") -> Equation 9.4 | F85: ="Accountable/reporting year emissions intensity (MtCO2e/" & lov & ")" -> Accountable/reporting year emissions intensity (MtCO2e/$000's)
F86: Display accountable/reporting year emissions intensity on graph | G86: no | H86: no | I86: no | J86: no | K86: no | L86: no | M86: no | N86: no | O86: no

Sheet Assessing Progress(bs)
B9: BASELINE SCENARIO GOAL
B10: =IF(land_sector=1, "with land sector included in goal boundary",IF(land_sector =2, "with land sector as a sectoral goal", IF(land_sector = 3, "with land sector as an offset", IF(land_sector =4,"with land sector not accounted for","")))) -> with land sector not accounted for
B11: =IF(land_sector <> 4, IF(land_method = 1, "Land based accounting", "Activity based accounting"),0) -> 0
B12: =IF(land_sector=3,IF(land_accounting=1,"accounted relative to base year/period",IF(land_accounting=2,"accounted without reference to base year/period",IF(land_accounting=3,"with forward-looking baseline",land_accounting))),"") -> 
B13: =IF(teus_allowed = 2, "Transferable emission units permited", "Transferable emission units not permitted") -> Transferable emission units not permitted
D36: Information on equations | F36: (in MtCO2e) | G36: 2010 | H36: 2011 | I36: 2012 | J36: 2013 | K36: 2014 | L36: 2015
F37: =IF(land_sector=4, "Reporting year emissions", IF(land_sector = 3, "Reporting year emissions (excl. net land sector emissions)", "Reporting year emissions (incl. any net land sector emissions")) -> Reporting year emissions | I37: =IF($I$63="yes", VLOOKUP($I$36,data_lookup_table,16,FALSE),"") -> 0 | S37: =IF($S$63="yes", VLOOKUP($S$36,data_lookup_table,16,FALSE),"") ->  | V37: =IF($V$58="yes", VLOOKUP($V$36,data_lookup_table,16,FALSE) +$V$41,"") ->  | W37: =IF($W$58="yes", VLOOKUP($W$36,data_lookup_table,16,FALSE) +$W$41,"") ->  | X37: =IF($X$58="yes", VLOOKUP($X$36,data_lookup_table,16,FALSE) +$X$41,"") ->  | Y37: =IF($Y$58="yes", VLOOKUP($Y$36,data_lookup_table,16,FALSE) +$Y$41,"") ->  | Z37: =IF($Z$58="yes", VLOOKUP($Z$36,data_lookup_table,16,FALSE) +$Z$41,"") ->  | AA37: =IF($AA$58="yes", VLOOKUP($AA$36,data_lookup_table,16,FALSE) +$AA$41,"") ->  | AB37: =IF($AB$58="yes", VLOOKUP($AB$36,data_lookup_table,16,FALSE) +$AB$41,"") ->  | AC37: =IF($AC$58="yes", VLOOKUP($AC$36,data_lookup_table,16,FALSE) +$AC$41,"") ->  | AD37: =IF($AD$58="yes", VLOOKUP($AD$36,data_lookup_table,16,FALSE) +$AD$41,"") ->  | AE37: =IF($AE$58="yes", VLOOKUP($AE$36,data_lookup_table,16,FALSE) +$AE$41,"") ->  | AF37: =IF($AF$58="yes", VLOOKUP($AF$36,data_lookup_table,16,FALSE) +$AF$41,"") ->  | AG37: =IF($AG$58="yes", VLOOKUP($AG$36,data_lookup_table,16,FALSE) +$AG$41,"") ->  | AH37: =IF($AH$58="yes", VLOOKUP($AH$36,data_lookup_table,16,FALSE) +$AH$41,"") ->  | AI37: =IF($AI$58="yes", VLOOKUP($AI$36,data_lookup_table,16,FALSE) +$AI$41,"") ->  | AJ37: =IF($AJ$58="yes", VLOOKUP($AJ$36,data_lookup_table,16,FALSE) +$AJ$41,"") ->  | AK37: =IF($AK$58="yes", VLOOKUP($AK$36,data_lookup_table,16,FALSE) +$AK$41,"") ->  | AL37: =IF($AL$58="yes", VLOOKUP($AL$36,data_lookup_table,16,FALSE) +$AL$41,"") ->  | AM37: =IF($AM$58="yes", VLOOKUP($AM$36,data_lookup_table,16,FALSE) +$AM$41,"") ->  | AN37: =IF($AN$58="yes", VLOOKUP($AN$36,data_lookup_table,16,FALSE) +$AN$41,"") ->  | AO37: =IF($AO$58="yes", VLOOKUP($AO$36,data_lookup_table,16,FALSE) +$AO$41,"") ->  | AP37: =IF($AP$58="yes", VLOOKUP($AP$36,data_lookup_table,16,FALSE) +$AP$41,"") ->  | AQ37: =IF($AQ$58="yes", VLOOKUP($AQ$36,data_lookup_table,16,FALSE) +$AQ$41,"") ->  | AR37: =IF($AR$58="yes", VLOOKUP($AR$36,data_lookup_table,16,FALSE) +$AR$41,"") ->  | AS37: =IF($AS$58="yes", VLOOKUP($AS$36,data_lookup_table,16,FALSE) +$AS$41,"") ->  | AT37: =IF($AT$58="yes", VLOOKUP($AT$36,data_lookup_table,16,FALSE) +$AT$41,"") ->  | AU37: =IF($AU$58="yes", VLOOKUP($AU$36,data_lookup_table,16,FALSE) +$AU$41,"") ->  | AV37: =IF($AV$58="yes", VLOOKUP($AV$36,data_lookup_table,16,FALSE) +$AV$41,"") ->  | AW37: =IF($AW$58="yes", VLOOKUP($AW$36,data_lookup_table,16,FALSE) +$AW$41,"") ->  | AX37: =IF($AX$58="yes", VLOOKUP($AX$36,data_lookup_table,16,FALSE) +$AX$41,"") ->  | AY37: =IF($AY$58="yes", VLOOKUP($AY$36,data_lookup_table,16,FALSE) +$AY$41,"") ->  | AZ37: =IF($AZ$58="yes", VLOOKUP($AZ$36,data_lookup_table,16,FALSE) +$AZ$41,"") ->  | BA37: =IF($BA$58="yes", VLOOKUP($BA$36,data_lookup_table,16,FALSE) +$BA$41,"") ->  | BB37: =IF($BB$58="yes", VLOOKUP($BB$36,data_lookup_table,16,FALSE) +$BB$41,"") ->  | BC37: =IF($BC$58="yes", VLOOKUP($BC$36,data_lookup_table,16,FALSE) +$BC$41,"") ->  | BD37: =IF($BD$58="yes", VLOOKUP($BD$36,data_lookup_table,16,FALSE) +$BD$41,"") ->  | BE37: =IF($BE$58="yes", VLOOKUP($BE$36,data_lookup_table,16,FALSE) +$BE$41,"") ->  | BF37: =IF($BF$58="yes", VLOOKUP($BF$36,data_lookup_table,16,FALSE) +$BF$41,"") ->  | BG37: =IF($BG$58="yes", VLOOKUP($BG$36,data_lookup_table,16,FALSE) +$BG$41,"") ->  | BH37: =IF($BH$58="yes", VLOOKUP($BH$36,data_lookup_table,16,FALSE) +$BH$41,"") ->  | BI37: =IF($BI$58="yes", VLOOKUP($BI$36,data_lookup_table,16,FALSE) +$BI$41,"") ->  | BJ37: =IF($BJ$58="yes", VLOOKUP($BJ$36,data_lookup_table,16,FALSE) +$BJ$41,"") ->  | BK37: =IF($BK$58="yes", VLOOKUP($BK$36,data_lookup_table,16,FALSE) +$BK$41,"") ->  | BL37: =IF($BL$58="yes", VLOOKUP($BL$36,data_lookup_table,16,FALSE) +$BL$41,"") ->  | BM37: =IF($BM$58="yes", VLOOKUP($BM$36,data_lookup_table,16,FALSE) +$BM$41,"") ->  | BN37: =IF($BN$58="yes", VLOOKUP($BN$36,data_lookup_table,16,FALSE) +$BN$41,"") ->  | BO37: =IF($BO$58="yes", VLOOKUP($BO$36,data_lookup_table,16,FALSE) +$BO$41,"") ->  | BP37: =IF($BP$58="yes", VLOOKUP($BP$36,data_lookup_table,16,FALSE) +$BP$41,"") ->  | BQ37: =IF($BQ$58="yes", VLOOKUP($BQ$36,data_lookup_table,16,FALSE) +$BQ$41,"") ->  | BR37: =IF($BR$58="yes", VLOOKUP($BR$36,data_lookup_table,16,FALSE) +$BR$41,"") ->  | BS37: =IF($BS$58="yes", VLOOKUP($BS$36,data_lookup_table,16,FALSE) +$BS$41,"") ->  | BT37: =IF($BT$58="yes", VLOOKUP($BT$36,data_lookup_table,16,FALSE) +$BT$41,"") ->  | BU37: =IF($BU$58="yes", VLOOKUP($BU$36,data_lookup_table,16,FALSE) +$BU$41,"") ->  | BV37: =IF($BV$58="yes", VLOOKUP($BV$36,data_lookup_table,16,FALSE) +$BV$41,"") ->  | BW37: =IF($BW$58="yes", VLOOKUP($BW$36,data_lookup_table,16,FALSE) +$BW$41,"") ->  | BX37: =IF($BX$58="yes", VLOOKUP($BX$36,data_lookup_table,16,FALSE) +$BX$41,"") ->  | BY37: =IF($BY$58="yes", VLOOKUP($BY$36,data_lookup_table,16,FALSE) +$BY$41,"") ->  | BZ37: =IF($BZ$58="yes", VLOOKUP($BZ$36,data_lookup_table,16,FALSE) +$BZ$41,"") ->  | CA37: =IF($CA$58="yes", VLOOKUP($CA$36,data_lookup_table,16,FALSE) +$CA$41,"") ->  | CB37: =IF($CB$58="yes", VLOOKUP($CB$36,data_lookup_table,16,FALSE) +$CB$41,"") ->  | CC37: =IF($CC$58="yes", VLOOKUP($CC$36,data_lookup_table,16,FALSE) +$CC$41,"") ->  | CD37: =IF($CD$58="yes", VLOOKUP($CD$36,data_lookup_table,16,FALSE) +$CD$41,"") ->  | CE37: =IF($CE$58="yes", VLOOKUP($CE$36,data_lookup_table,16,FALSE) +$CE$41,"") ->  | CF37: =IF($CF$58="yes", VLOOKUP($CF$36,data_lookup_table,16,FALSE) +$CF$41,"") ->  | CG37: =IF($CG$58="yes", VLOOKUP($CG$36,data_lookup_table,16,FALSE) +$CG$41,"") ->  | CH37: =IF($CH$58="yes", VLOOKUP($CH$36,data_lookup_table,16,FALSE) +$CH$41,"") ->  | CI37: =IF($CI$58="yes", VLOOKUP($CI$36,data_lookup_table,16,FALSE) +$CI$41,"") ->  | CJ37: =IF($CJ$58="yes", VLOOKUP($CJ$36,data_lookup_table,16,FALSE) +$CJ$41,"") ->  | CK37: =IF($CK$58="yes", VLOOKUP($CK$36,data_lookup_table,16,FALSE) +$CK$41,"") ->  | CL37: =IF($CL$58="yes", VLOOKUP($CL$36,data_lookup_table,16,FALSE) +$CL$41,"") ->  | CM37: =IF($CM$58="yes", VLOOKUP($CM$36,data_lookup_table,16,FALSE) +$CM$41,"") ->  | CN37: =IF($CN$58="yes", VLOOKUP($CN$36,data_lookup_table,16,FALSE) +$CN$41,"") ->  | CO37: =IF($CO$58="yes", VLOOKUP($CO$36,data_lookup_table,16,FALSE) +$CO$41,"") ->  | CP37: =IF($CP$58="yes", VLOOKUP($CP$36,data_lookup_table,16,FALSE) +$CP$41,"") ->  | CQ37: =IF($CQ$58="yes", VLOOKUP($CQ$36,data_lookup_table,16,FALSE) +$CQ$41,"") ->  | CR37: =IF($CR$58="yes", VLOOKUP($CR$36,data_lookup_table,16,FALSE) +$CR$41,"") ->  | CS37: =IF($CS$58="yes", VLOOKUP($CS$36,data_lookup_table,16,FALSE) +$CS$41,"") ->  | CT37: =IF(CT58="yes", VLOOKUP(CT36,data_lookup_table,16,FALSE)+CT40,"") ->  | DI37: =IF(DI58="yes", VLOOKUP(DI36,data_lookup_table,16,FALSE)+DI40,"") ->  | DJ37: =IF(DJ58="yes", VLOOKUP(DJ36,data_lookup_table,16,FALSE)+DJ40,"") ->  | DK37: =IF(DK58="yes", VLOOKUP(DK36,data_lookup_table,16,FALSE)+DK40,"") ->  | DL37: =IF(DL58="yes", VLOOKUP(DL36,data_lookup_table,16,FALSE)+DL40,"") ->  | DM37: =IF(DM58="yes", VLOOKUP(DM36,data_lookup_table,16,FALSE)+DM40,"") -> 
A38: HIDE | F38: Land Sector (land-based accounting) | I38: =IF($I$63="yes",2,"") -> 2 | S38: =IF($S$63="yes",-30,"") -> -30
A39: HIDE | F39: Land Sector (activity-based accounting) | I39: -20 | S39: -20
A40: LAN | D40: ="Equation 8.3" -> Equation 8.3 | F40: Net land sector emissions in reporting year (land as offset) | I40: 0 | S40: =IF($S$63="yes",$S$38,"") -> -30
A41: LAN | D41: =IF(land_accounting = 1, "Equation 8.4", IF(land_accounting =2, "Equation 8.5", IF(land_accounting=3, "Equation 8.6"))) -> Equation 8.6 | F41: =IF(land_accounting=1,"Change in net land sector emissions (relative to start of goal period)",IF(land_accounting=2,"Change in net land sector emissions (without reference to baseline scenario)",IF(land_accounting=3,"Change in net land sector emissions (forward-looking baseline)"))) -> Change in net land sector emissions (forward-looking baseline) | I41: =IF($I$63="yes",$I$40 - $I$62,0) -> 0 | S41: =IF($S$63="yes",$S$40 - $S$62,0) -> -30 | CT41: =IF(CT37=0,0, IF(land_sector = 3, IF(land_accounting=1,CT40-$G$45,IF(land_accounting=2,CT40,IF(land_accounting=3,CT40-CT45,0))), CT37-$G$54+CT40)) ->  | CU41: =IF(CU37=0,0, IF(land_sector = 3, IF(land_accounting=1,CU40-$G$45,IF(land_accounting=2,CU40,IF(land_accounting=3,CU40-CU45,0))), CU37-$G$54+CU40)) ->  | CV41: =IF(CV37=0,0, IF(land_sector = 3, IF(land_accounting=1,CV40-$G$45,IF(land_accounting=2,CV40,IF(land_accounting=3,CV40-CV45,0))), CV37-$G$54+CV40)) ->  | CW41: =IF(CW37=0,0, IF(land_sector = 3, IF(land_accounting=1,CW40-$G$45,IF(land_accounting=2,CW40,IF(land_accounting=3,CW40-CW45,0))), CW37-$G$54+CW40)) ->  | CX41: =IF(CX37=0,0, IF(land_sector = 3, IF(land_accounting=1,CX40-$G$45,IF(land_accounting=2,CX40,IF(land_accounting=3,CX40-CX45,0))), CX37-$G$54+CX40)) ->  | CY41: =IF(CY37=0,0, IF(land_sector = 3, IF(land_accounting=1,CY40-$G$45,IF(land_accounting=2,CY40,IF(land_accounting=3,CY40-CY45,0))), CY37-$G$54+CY40)) -> 
F42: =IF(land_sector<>4, "Baseline scenario emissions (incl. any net land sector emissions)", "Baseline scenario emissions") -> Baseline scenario emissions | G42: 15 | H42: 20 | I42: 29 | J42: 30 | K42: 28 | L42: 27
A43: HIDE | F43: Land Sector (land-based accounting) | G43: 5 | H43: 5 | I43: 5 | J43: 5 | K43: 5 | L43: 5 | M43: 12 | N43: 0 | O43: 999888777 | P43: 0 | Q43: 12345 | R43: 100 | S43: 0 | T43: 0 | U43: 0 | V43: 0 | W43: 0 | X43: 33 | Y43: 3 | Z43: 3 | AA43: 0 | AB43: 0 | AC43: 0 | AD43: 0 | AE43: 0 | AF43: 0 | AG43: 0 | AH43: 0 | AI43: 0 | AJ43: 0 | AK43: 0 | AL43: 0 | AM43: 0 | AN43: 0 | AO43: 0 | AP43: 0 | AQ43: 0 | AR43: 0 | AS43: 0 | AT43: 0 | AU43: 0 | AV43: 0 | AW43: 0 | AX43: 0 | AY43: 0 | AZ43: 0 | BA43: 0 | BB43: 0 | BC43: 0 | BD43: 0 | BE43: 0 | BF43: 0 | BG43: 0 | BH43: 0 | BI43: 0 | BJ43: 0 | BK43: 0 | BL43: 0 | BM43: 0 | BN43: 0 | BO43: 0 | BP43: 0 | BQ43: 0 | BR43: 0 | BS43: 0 | BT43: 0 | BU43: 0 | BV43: 0 | BW43: 0 | BX43: 0 | BY43: 0 | BZ43: 0 | CA43: 0 | CB43: 0 | CC43: 0 | CD43: 0 | CE43: 0 | CF43: 0 | CG43: 0 | CH43: 0 | CI43: 0 | CJ43: 0 | CK43: 0 | CL43: 0 | CM43: 0 | CN43: 0 | CO43: 0 | CP43: 0 | CQ43: 0 | CT43: =IF(CT36<>"",VLOOKUP(CT36,data_lookup_table,24,FALSE),"") ->  | CU43: =IF(CU36<>"",VLOOKUP(CU36,data_lookup_table,24,FALSE),"") ->  | CV43: =IF(CV36<>"",VLOOKUP(CV36,data_lookup_table,24,FALSE),"") ->  | CW43: =IF(CW36<>"",VLOOKUP(CW36,data_lookup_table,24,FALSE),"") ->  | CX43: =IF(CX36<>"",VLOOKUP(CX36,data_lookup_table,24,FALSE),"") ->  | CY43: =IF(CY36<>"",VLOOKUP(CY36,data_lookup_table,24,FALSE),"") -> 
A44: HIDE | F44: Land Sector (activity-based accounting) | G44: 5 | H44: 5 | I44: 5 | J44: 5 | K44: 5 | L44: 5 | M44: 0 | N44: 0 | O44: 0 | P44: 0 | Q44: 0 | R44: 0 | S44: 0 | T44: 0 | U44: 0 | V44: -14 | W44: -12 | X44: -12 | Y44: -11 | Z44: -12 | AA44: 11 | AB44: 11 | AC44: 11 | AD44: 11 | AE44: 11 | AF44: 11 | AG44: 11 | AH44: 11 | AI44: 11 | AJ44: 11 | AK44: 11 | AL44: 11 | AM44: 11 | AN44: 11 | AO44: 11 | AP44: 11 | AQ44: 11 | AR44: 11 | AS44: 11 | AT44: 11 | AU44: 11 | AV44: 11 | AW44: 11 | AX44: 11 | AY44: 11 | AZ44: 11 | BA44: 11 | BB44: 11 | BC44: 11 | BD44: 11 | BE44: 11 | BF44: 11 | BG44: 11 | BH44: 11 | BI44: 11 | BJ44: 11 | BK44: 11 | BL44: 11 | BM44: 11 | BN44: 11 | BO44: 11 | BP44: 11 | BQ44: 11 | BR44: 11 | BS44: 11 | BT44: 11 | BU44: 11 | BV44: 11 | BW44: 11 | BX44: 11 | BY44: 11 | BZ44: 11 | CA44: 11 | CB44: 11 | CC44: 11 | CD44: 11 | CE44: 11 | CF44: 11 | CG44: 11 | CH44: 11 | CI44: 11 | CJ44: 11 | CK44: 11 | CL44: 11 | CM44: 11 | CN44: 11 | CO44: 11 | CP44: 11 | CQ44: 11 | CT44: =IF(CT36<>"",VLOOKUP(CT36,data_lookup_table,25,FALSE),"") ->  | CU44: =IF(CU36<>"",VLOOKUP(CU36,data_lookup_table,25,FALSE),"") ->  | CV44: =IF(CV36<>"",VLOOKUP(CV36,data_lookup_table,25,FALSE),"") ->  | CW44: =IF(CW36<>"",VLOOKUP(CW36,data_lookup_table,25,FALSE),"") ->  | CX44: =IF(CX36<>"",VLOOKUP(CX36,data_lookup_table,25,FALSE),"") ->  | CY44: =IF(CY36<>"",VLOOKUP(CY36,data_lookup_table,25,FALSE),"") -> 
A45: LAN | F45: Net land sector emissions (baseline scenario) | G45: =IF(land_method=1,G43,G44) -> 5 | H45: 5 | I45: 5 | J45: 5 | K45: 5 | L45: 5 | M45: 12 | N45: 0 | O45: 999888777 | P45: 0 | Q45: 12345 | R45: 100 | S45: 0 | T45: 0 | U45: 0 | V45: 0 | W45: 0 | X45: 33 | Y45: 3 | Z45: 3 | AA45: 0 | AB45: 0 | AC45: 0 | AD45: 0 | AE45: 0 | AF45: 0 | AG45: 0 | AH45: 0 | AI45: 0 | AJ45: 0 | AK45: 0 | AL45: 0 | AM45: 0 | AN45: 0 | AO45: 0 | AP45: 0 | AQ45: 0 | AR45: 0 | AS45: 0 | AT45: 0 | AU45: 0 | AV45: 0 | AW45: 0 | AX45: 0 | AY45: 0 | AZ45: 0 | BA45: 0 | BB45: 0 | BC45: 0 | BD45: 0 | BE45: 0 | BF45: 0 | BG45: 0 | BH45: 0 | BI45: 0 | BJ45: 0 | BK45: 0 | BL45: 0 | BM45: 0 | BN45: 0 | BO45: 0 | BP45: 0 | BQ45: 0 | BR45: 0 | BS45: =IF(land_method=1,BS43,BS44) -> 0 | BT45: 0 | BU45: 0 | BV45: 0 | BW45: 0 | BX45: 0 | BY45: 0 | BZ45: 0 | CA45: 0 | CB45: 0 | CC45: 0 | CD45: 0 | CE45: 0 | CF45: 0 | CG45: 0 | CH45: 0 | CI45: 0 | CJ45: 0 | CK45: 0 | CL45: 0 | CM45: 0 | CN45: 0 | CO45: 0 | CP45: 0 | CQ45: 0 | CR45: 0 | CS45: 0
D46: =IF(land_sector = 3, "Equation 8.7", "Equation 8.2") -> Equation 8.2 | F46: Change in in emissions since the start of the goal period | I46: =IF($I$63="yes", VLOOKUP(2012, data_lookup_table, 16, FALSE) - $G$54,"") -> -15 | S46: =IF($S$63="yes", VLOOKUP(2014, data_lookup_table, 16, FALSE) - ($G$54 - $G$55) + $S$41,"") -> 40
D47: =IF(land_sector = 3, "Equation 8.10","Equation 8.9") -> Equation 8.9 | F47: Additional emission reductions needed to achieve goal | I47: =IFERROR($I$37-$I$50,"") -> -10 | S47: =IFERROR($S$37-$S$50,"") -> 
A48: HIDE
F49: Allowable target year emissions | L49: =VLOOKUP($L$36, data_lookup_table, 4, FALSE) -> 10
A50: HIDE | E50: =AVERAGEIF(G49:DM49,"<>""""") -> 10 | F50: Goal Level | H50: =$E$50 -> 10 | I50: =$E$50 -> 10 | J50: =$E$50 -> 10 | K50: =$E$50 -> 10 | L50: =$E$50 -> 10
A51: TEU | D51: ="Equation 8.11" -> Equation 8.11 | F51: Emissions reductions needed to achieve goal taking into account use of units | I51: =IFERROR($I$47+$I$52-$I$53,"") -> -10 | S51: =IFERROR($S$47+$S$52-$S$53,"") ->  | CT51: =IF(teus_allowed=2,CT52-CT53,0) -> 0 | CU51: =IF(teus_allowed=2,CU52-CU53,0) -> 0 | CV51: =IF(teus_allowed=2,CV52-CV53,0) -> 0 | CW51: =IF(teus_allowed=2,CW52-CW53,0) -> 0 | CX51: =IF(teus_allowed=2,CX52-CX53,0) -> 0 | CY51: =IF(teus_allowed=2,CY52-CY53,0) -> 0 | CZ51: 0 | DA51: 0 | DB51: 0 | DC51: 0 | DD51: 0 | DE51: 0 | DF51: 0 | DG51: 0 | DH51: 0 | DI51: 0 | DJ51: 0 | DK51: 0 | DL51: 0
A52: TEU | F52: units anticipated to be sold in the target year
A53: TEU | F53: units anticipated to be retired in the target year
F54: =IF(land_sector<>4, "Start year (incl. any net land sector emissions)", "Start year") -> Start year | G54: =G42 -> 15
A55: LAN | F55: Net land sector emissions (base start year) | G55: =G44 -> 5
A56: OOJ | F56: out of juridiction emissions allowable target year emissions | L56: 0 | O56: =IF(O36<>"",IF(jurisdiction = yes_set_single_goal,VLOOKUP(O36,data_lookup_table,24,FALSE),0),0) -> 0 | P56: 0 | Q56: 0 | R56: 0 | S56: 0 | T56: 0 | U56: 0 | V56: 0 | W56: 0 | X56: 0 | Y56: 0 | Z56: 0 | AA56: 0 | AB56: 0 | AC56: 0 | AD56: 0 | AE56: 0 | AF56: 0 | AG56: 0 | AH56: 0 | AI56: 0 | AJ56: 0 | AK56: 0 | AL56: 0 | AM56: =IF(AM36<>"",IF(jurisdiction = yes_set_single_goal,VLOOKUP(AM36,data_lookup_table,24,FALSE),0),0) -> 0 | AN56: 0 | AO56: 0 | AP56: 0 | AQ56: 0 | AR56: 0 | AS56: 0 | AT56: 0 | AU56: 0 | AV56: 0 | AW56: 0 | AX56: 0 | AY56: 0 | AZ56: 0 | BA56: 0 | BB56: 0 | BC56: 0 | BD56: 0 | BE56: 0 | BF56: 0 | BG56: 0 | BH56: 0 | BI56: 0 | BJ56: 0 | BK56: 0 | BL56: 0 | BM56: 0 | BN56: 0 | BO56: 0 | BP56: 0 | BQ56: 0 | BR56: 0 | BS56: =IF(BS36<>"",IF(jurisdiction = yes_set_single_goal,VLOOKUP(BS36,data_lookup_table,24,FALSE),0),0) -> 0 | BT56: 0 | BU56: 0 | BV56: 0 | BW56: 0 | BX56: 0 | BY56: 0 | BZ56: 0 | CA56: 0 | CB56: 0 | CC56: 0 | CD56: 0 | CE56: 0 | CF56: 0 | CG56: 0 | CH56: 0 | CI56: 0 | CJ56: 0 | CK56: 0 | CL56: 0 | CM56: 0 | CN56: 0 | CO56: 0 | CP56: 0 | CQ56: 0 | CR56: 0 | CS56: 0 | CT56: 0 | CU56: 0 | CV56: 0 | CW56: 0 | CX56: 0 | CY56: =IF(CY36<>"",IF(jurisdiction = yes_set_single_goal,VLOOKUP(CY36,data_lookup_table,24,FALSE),0),0) -> 0 | CZ56: 0 | DA56: 0 | DB56: 0 | DC56: 0 | DD56: 0 | DE56: 0 | DF56: 0 | DG56: 0 | DH56: 0 | DI56: 0 | DJ56: 0 | DK56: 0 | DL56: 0
A57: OOL | F57: out-of-juridiction net land sector emissions
A58: HIDE
A59: HIDE
A60: HIDE
A61: ACT | D61: =IF(land_sector = 3, "Equation 9.2", "Equation 9.1") -> Equation 9.1 | F61: Accountable/reporting year emissions | I61: =IF($I$63="yes",$I$37+$I$52-$I$53+$I$41,"") -> 0 | S61: =IF($S$63="yes",$S$37+$S$52-$S$53+$S$41,"") -> 
A62: HIDE | K62: -70
F63: Display accountable/reporting year emissions on graph | G63: no | H63: no | I63: yes | J63: no | K63: no | L63: no | M63: yes | N63: no | O63: no | P63: no | Q63: no | R63: no | S63: yes | T63: no | U63: no
A64: HIDE
A65: HIDE | F65: base year graph
G77: yes | H77: yes | I77: yes | J77: yes | K77: yes | L77: yes | M77: yes | N77: yes | O77: yes | P77: yes | Q77: yes | R77: yes | S77: yes | T77: yes | U77: yes | V77: yes | W77: yes | X77: yes | Y77: yes | Z77: yes | AA77: yes | AB77: yes | AC77: yes | AD77: yes | AE77: yes | AF77: yes | AG77: yes | AH77: yes | AI77: yes | AJ77: yes | AK77: yes | AL77: yes | AM77: yes | AN77: yes | AO77: yes | AP77: yes | AQ77: yes | AR77: yes | AS77: yes | AT77: yes | AU77: yes | AV77: yes | AW77: yes | AX77: yes | AY77: yes | AZ77: yes | BA77: yes | BB77: yes | BC77: yes | BD77: yes | BE77: yes | BF77: yes | BG77: yes | BH77: yes | BI77: yes | BJ77: yes | BK77: yes | BL77: yes | BM77: yes | BN77: yes | BO77: yes | BP77: yes | BQ77: yes | BR77: yes | BS77: yes | BT77: yes | BU77: yes | BV77: yes | BW77: yes | BX77: yes | BY77: yes | BZ77: yes | CA77: yes | CB77: yes | CC77: yes | CD77: yes | CE77: yes | CF77: yes | CG77: yes | CH77: yes | CI77: yes | CJ77: yes | CK77: yes | CL77: yes | CM77: yes | CN77: yes | CO77: yes | CP77: yes | CQ77: yes | CR77: yes | CS77: yes | CT77: yes | CU77: yes | CV77: yes | CW77: yes | CX77: yes | CY77: yes | CZ77: yes | DA77: yes | DB77: yes | DC77: yes | DD77: yes | DE77: yes | DF77: yes | DG77: yes | DH77: yes | DI77: yes | DJ77: yes | DK77: yes | DL77: yes

Sheet ATEmissions(bye)
B10: Allowable emissions represent the maximum quantity of emissions that may be emitted in the target year or target period consistent with achieving your mitigation goal.
B11: ='DefineGoalLevel(bye)'!B13 -> You have previously selected a base year emissions goal with a base year of 2010 and with a target year of 2020.
B13: Allowable emissions for base year emissions goals are calculated using the following general formula (Equation 7.1):
B14: Allowable emissions in the target year (MtCO2e) = base year emissions (MtCO2e) - [Base year emissions (MtCO2e) x percent reduction]
B15: Note that reductions can also be expressed in absolute terms in MtCO2e and multi-year target goals can be expressed as averages
B19: Target Year | C19: Base year emissions (MtCO2e) | D19: Goal Level | E19: Units | F19: Allowable Target Emissions (MtCO2e)
B20: 2020 | C20: 0 | D20: 0 | E20: MtCO2e | F20: 0

Sheet ATEmissions(fl)
B10: Allowable emissions represent the maximum quantity of emissions that may be emitted in the target year or target period consistent with achieving your mitigation goal.
B11: ='DefineGoalLevel(fl)'!B13 -> You have previously selected a fixed-level goal with a target year of 2011.
B13: Allowable emissions for fixed-level goals are calculated using the following general formula:
B14: Allowable emissions in the target year (MtCO2e) = absolute quantity of emissions specified by the goal level (MtCO2e)
B15: =IF(AND(mygt=3, target_period_value =2),"Average annual emissions are calculated below for each year in the target period. However, this does not imply that these emissions levels must be met for each year of the target period","") -> 
B19: Target Year | C19: Goal Level | D19: Units | E19: Allowable Target Emissions (MtCO2e)
B20: 2011 | C20: 0 | D20: MtCO2e | E20: 0

Sheet ATEmissions(byi)
B10: Allowable emissions represent the maximum quantity of emissions that may be emitted in the target year or target period consistent with achieving your mitigation goal.
B12: ='DefineGoalLevel(byi)'!B13 -> You have previously selected a base year intensity goal with a base year of 2002 and with a target year of 2010.
B14: Allowable emissions intensity in the target year is calculated using the following formula (Equation 7.2). Note that the goal level can also be expressed in terms of absolute reductions (in MtCO2e/level of output).
D19: unit of variable
D20: $000's
B21: Target Year | C21: Base year emissions intensity (MtCO2e/level of output) | D21: Goal Level | E21: Units | F21: Allowable emissions intensity (MtCO2e/level of output) | G21: Projected level of output | H21: Allowable emissions (MtCO2e)
B22: 2010 | C22: 0 | D22: 0 | E22: MtCO2e/level of output | F22: 0 | G22: 0 | H22: =$F$22*$G$22 -> 0

Sheet ATEmissions(bs)
B10: Allowable emissions represent the maximum quantity of emissions that may be emitted in the target year or target period consistent with achieving your mitigation goal.
B11: ='DefineGoalLevel(bs)'!B13 -> You have previously selected a baseline scenario goal with a target year of 2015.
B13: Allowable emissions for baseline scenario goals are calculated using the following general formula:
B14: Allowable emissions in the target year (MtCO2e) = projected baseline scenario emissions (MtCO2e) in the target year - [Projected baseline scenario emissions in the target year (MtCO2e) x percent reduction]
B15: Note that reductions can also be expressed in absolute terms in MtCO2e and that multi-year target goals can be expressed as averages
B19: Target Year | C19: Projected baseline scenario emissions (MtCO2e) | D19: Goal Level | E19: Units | F19: Allowable Target Year Emissions (MtCO2e)
B20: 2015 | C20: 22 | D20: 12 | E20: MtCO2e | F20: 10
B131: =IF(B130<>"",IF(NOT(B130+1 > target_end_year),B130+1,""),"") -> 
B145: =IF(B144<>"",IF(NOT(B144+1 > target_end_year),B144+1,""),"") -> 

Sheet Reporting
A10: H1 | C10: Summary Report
A11: H1 | C11: This page summarizes the information that shall be publicly reported in order for a goal assessment to be in
A12: H1 | C12: conformance with the GHG Protocol Mitigation Goal Standard. Information entered elsewhere is replicated here.
A13: H1 | C13: Note: there are also additional reporting requirements indicated by the light blue data entry fields. | D13: Response
A14: T | C14: Goal Boundaries
A15: H1 | C15: ='Define Goal Boundaries'!B12 -> Which inventory method or guidelines have you used? | D15: ='Define Goal Boundaries'!C12 -> IPCC Guidelines
A16: H1 | C16: ='Define Goal Boundaries'!B15 -> Which global warming potential (GWP) values have you used? | D16: ='Define Goal Boundaries'!C15 -> IPCC Fifth Assessment Report
A17: H1 | C17: Goal level | D17: 2020 | E17: 0 | F17: MtCO2e
A19: H | C19: ='Define Goal Boundaries'!B20 -> Geographic area(s) included in the goal boundary | D19: =IF('Define Goal Boundaries'!C20<>"",'Define Goal Boundaries'!C20,"") -> 
A20: H | C20: Any geographic areas excluded from the goal boundary | D20: =IF('Define Goal Boundaries'!C23<>"",'Define Goal Boundaries'!C23,"") -> 
A21: H3 | C21: Any revisions to the goal boundary and any changes to the goal type, goal level, or a change from a single-year to a multi-year goal, and any recalculations made, including recalculated and original values | D21: =IF('Define Goal Boundaries'!C23<>"",'Define Goal Boundaries'!C23,"") -> 
A22: H2 | B22: sec | C22: ='Define Goal Boundaries'!B27&" "&'Define Goal Boundaries'!B28 -> Sectors and subsectors included in the goal boundary, including definitions of covered sectors and subsectors
A23: HIDE
A24: HIDE
A25: HIDE
A26: HIDE | D26: Total Emissions this is total Stationary energy (GPC) stationary e t Residential buildings (GPC) the last one
A27: HIDE
A28: HIDE
A29: HIDE
A30: HIDE
A31: HIDE
A32: HIDE
A33: HIDE
A34: HIDE
A35: HIDE
A36: HIDE
A37: HIDE
A38: HIDE
A39: HIDE
A40: HIDE
A41: HIDE
A42: HIDE
A43: HIDE
A44: HIDE
A45: HIDE
A46: HIDE
A47: HIDE
A48: HIDE
A49: HIDE
A50: HIDE
A51: H | C51: ='Define Goal Boundaries'!B57 -> Any sectors excluded from the goal boundary, with justification | D51: =IF('Define Goal Boundaries'!C57<>"", 'Define Goal Boundaries'!C57,"") -> 
A52: H | C52: ='Define Goal Boundaries'!B59 -> Any out-of-sector emissions included in the sectoral goal boundary (for users with sectoral goals) | D52: =IF('Define Goal Boundaries'!C59<>"",'Define Goal Boundaries'!C59,"") -> 
A53: H | C53: ='Define Goal Boundaries'!B61 -> Treatment of emissions and removals from land sector | D53: =IF('Define Goal Boundaries'!C61<>"",'Define Goal Boundaries'!C61,"")&IF('Define Goal Boundaries'!F61<>"", ", " & 'Define Goal Boundaries'!F61 & " method","") -> Do not account for the land sector
A54: H1 | C54: ='Define Goal Boundaries'!B63 -> Are out-of-jurisdiction emissions included? | D54: =IF('Define Goal Boundaries'!C63<>"",'Define Goal Boundaries'!C63,"") -> no
A55: H | C55: ='Define Goal Boundaries'!B65 & " (if relevant)" -> Which out-of-jurisdiction emissions are included (if relevant) | D55: =IF('Define Goal Boundaries'!C65<>"",'Define Goal Boundaries'!C65,"") -> 
A56: H1 | C56: ='Define Goal Boundaries'!B68 -> Are all seven Kyoto Protocol gases included in goal boundary? | D56: =IF('Define Goal Boundaries'!C68<>"",'Define Goal Boundaries'!C68,"") -> yes
A57: H | C57: ='Define Goal Boundaries'!B70 -> List which gases are included in the goal boundary and a justification for why certain gases are excluded | D57: =IF('Define Goal Boundaries'!C70<>"",'Define Goal Boundaries'!C70,"") -> 
A58: H1 | C58: Mitigation goal type | D58: =IF(goal_type_value=1,"base year emissions",IF(goal_type_value=2,"fixed-level",IF(goal_type_value=3,"base year intensity","baseline scenario emissions"))) -> base year emissions
A59: H | C59: Rationale for any excluded territories and an indication of the magnitude of emissions (in MtCO2e) associated with the excluded territories (optional reporting information) | D59: =IF('Define Goal Boundaries'!C74<>"",'Define Goal Boundaries'!C74,"") -> 
A60: H1 | C60: Do sectors definitions deviate from the most recent IPCC Guidelines? (optional reporting information) | D60: =IF('Define Goal Boundaries'!C76<>"",'Define Goal Boundaries'!C76,"") -> no
A61: H | C61: If IPCC defined sectors were not used, please provide an explanation for why they were not used and information on the alternative sector definitions, including an explanation of how non-IPCC sector definitions correspond to IPCC definitions | D61: =IF('Define Goal Boundaries'!C79<>"",'Define Goal Boundaries'!C79,"") -> 
A62: H | C62: The goal level for non-land sectors and the goal level with the effect of the land sector included (optional reporting information) | D62: =IF(goal_type_value = 1, 'DefineGoalLevel(bye)'!H13, IF(goal_type_value=2, 'DefineGoalLevel(fl)'!G13, IF(goal_type_value=3, 'DefineGoalLevel(byi)'!G12, 'DefineGoalLevel(bs)'!G13))) -> 
A63: H1 | C63: Goal boundaries reporting requirements | D63: Full goal boundary reporting requirements can be printed from here
A64: H1 | C64: Mitigation goal reporting requirements | D64: Full mitigation goal reporting requirements can be printed from here
A65: H1
A66: T | C66: Goal time frame (Section 4.4)
A67: H1 | C67: The base year or base period | D67: =IF(base_start_year<>0,IF(base_period_value=1,base_start_year,base_start_year&" to "&base_end_year),"n/a") -> 2010
A68: H1 | C68: Whether the goal is a single-year goal or a multi-year goal | D68: =IF(target_period_value = 2, "Multi-year goal", "Single year goal") -> Single year goal
A69: H | C69: ="If single-year is chosen, the target year. If a multi-year goal is chosen, the target period and whether the goal is an average, annual," & CHAR(10) & "or cumulative multi-year goal." -> If single-year is chosen, the target year. If a multi-year goal is chosen, the target period and whether the goal is an average, annual, or cumulative multi-year goal. | D69: =IF(target_period_value=1,target_start_year,target_start_year&" to "&target_end_year) -> 2020 | E69: =IF(target_period_value=2,IF(mygt=1,"average multi-year goal",IF(mygt=2,"annual multi-year goal",IF(mygt=3,"cumulative multi-year goal",""))),"") -> 
A70: H1 | C70: The length of the goal period | D70: =IF(goal_type_value=4,target_end_year-target_start_year,IF(goal_type_value = 3, target_end_year-base_start_year, IF(goal_type_value = 2, target_end_year-year_goal_adopted, IF(goal_type_value=2,target_end_year-year_goal_adopted,"")))) & " years" -> years
A71: H3 | C71: Additional comments (optional)
A72: H1
A73: T | C73: Use of transferable emissions units (Section 4.5)
A74: H1 | C74: Is it permissible to use transferable emission units to meet the mitigation goal? | D74: ='Transferable Emission Units'!G11 -> no
A75: te | C75: Transferable emission units reporting requirements | D75: Full transferable emission unit reporting requirements can be printed from here
A76: te | C76: Additional comments (optional)
A77: H1
A78: H1
A79: bei | B79: T | C79: Base year emissions (for base year emissions goals and base year intensity goals) (Section 5.1.1)
A80: bei | B80: H | C80: Complete GHG inventory for the base year or base period, and the calculation methods used including a breakdown by gas and tonnes of carbon dioxide equivalent (in MtCO2e) | D80: Base year emissions inventories can be printed out from here
A81: bei | B81: H1 | C81: The percentage of total inventory emissions that is included in the goal boundary in the base year | D81: ='Define Goal Boundaries'!C18 -> 1
A82: bei | B82: H | C82: Emissions, removals, and net emissions (emissions plus removals) for all selected land-use categories, activities, and pools and fluxes in the base year. Details on the treatment of the land sector can be found below. | D82: Break down into land use categories for each base year can be printed out from here
A83: bei | B83: H3 | C83: ='Base year'!B13 -> Calculation methods used for base year emissions calculations | D83: =IF('Base year'!C13<>"", 'Base year'!C13,"") -> 
A84: bei | B84: H4 | C84: Additional comments (optional)
A85: H1
A86: bi | B86: T | C86: Additional information for base year intensity goals (Section 5.1.2)
A87: bi | B87: H1 | C87: Base year intensity unit of variable | D87: =lov -> $000's
A88: bi | B88: H1 | C88: Base year inventory (including breakdown by gas and with land sector emissions and out-of-jurisdiction emissions, where relevant) | D88: Base year inventories be printed out from here
A89: bi | B89: H3 | C89: ='Base year'!B15 -> Description (optional) | D89: =IF('Base year'!C15<>"", 'Base year'!C15,"") -> 
A90: bi | B90: H3 | C90: Additional comments (optional)
A91: H1
A92: bs | B92: T | C92: Baseline scenario emissions (for baseline scenario goals) (Section 5.2)
A93: bs | B93: H1 | C93: Baseline scenario emissions in the target year or period | D93: Baseline scenario emissions can be printed out from here
A94: bs | B94: H1 | C94: The percentage of total inventory emissions that is included in the goal boundary in the start year | D94: ='Define Goal Boundaries'!C18 -> 1
A95: bs | B95: H | C95: The model used to develop the goal baseline scenario | D95: =Baseline!C13 -> 
A96: bs | B96: H1 | C96: Whether the baseline scenario is static or dynamic | D96: =IF(goal_type_value = 4,'Describe Goal Type'!E27,"n/a") -> n/a
A97: bs | B97: H1 | C97: Time frame for the baseline scenario, including the start year or start period | D97: =baseline_start_year & " to " & target_end_year -> 2010 to 2023
A98: bs | B98: H | C98: Data sources and calculation methods used | D98: =Baseline!C15 -> 
A99: bs | B99: H | C99: Key emissions drivers included in the baseline scenario | D99: =Baseline!C17 -> 
A100: bs | B100: H | C100: Assumptions for key emissions drivers included in the baseline scenario | D100: =Baseline!C19 -> 
A101: bs | B101: H | C101: All sources of data used to develop the baseline scenario, including data for key drivers (projected and historical), emission factors, and assumptions | D101: =Baseline!C21 -> 
A102: bs | B102: H | C102: Justification for the choice of whether to develop new baseline data and assumptions or to use published baseline data and assumptions | D102: =Baseline!C23 -> 
A103: bs | B103: H1 | C103: The cutoff year for the inclusion of policies–-that is, the year after which no new policies or actions are included in the baseline scenario | D103: =Baseline!C25 -> 
A104: bs | B104: H | C104: Key policies and actions included in the baseline scenario | D104: =Baseline!C27 -> 
A105: bs | B105: H | C105: Any additional methods and assumptions used to estimate the effects of key included policies and actions on emissions | D105: =Baseline!C29 -> 
A106: bs | B106: H | C106: Any significant policies excluded from the baseline scenario, with justification | D106: =Baseline!C31 -> 
A107: bs | B107: H | C107: A quantitative estimate or qualitative description of the uncertainty of the results, as well as the range of results from sensitivity analysis for key parameters and assumptions | D107: =Baseline!C33 -> 0
A108: bs | B108: H | C108: All calculation methods used, including any use of special accounting provisions, such as those associated with natural disturbances | D108: =Baseline!C35 -> 
A109: bsd | B109: H | C109: Any recalculations made during the goal period, which drivers were updated, updated values alongside original values, and recalculated emissions alongside the orginal values.
A110: bsd | B110: H | C110: Any recalculations of allowable emissions and recalculated allowable emissions alongside the original values.
A111: bs | B111: H | C111: At the end of the goal period, projected trends in emissions drivers (developed at the start of the goal period) alongside the actual trend in those same emissions drivers (compiled at the end of the goal period)
A112: bs | B112: H3 | C112: Additional comments (optional)
A113: H1
A114: T | C114: Accounting for the land sector (Chapter 6)
A115: H1 | C115: Treatment of land sector emissions | D115: ='Define Goal Boundaries'!C61 -> Do not account for the land sector
A116: ls | B116: H1 | C116: Land sector reporting requirements | D116: Full land sector reporting requirements can be printed out from here
A117: ls | B117: H3 | C117: Additional comments (optional)
A119: T | C119: Calculation of allowable emissions in the target year or period (Chapter 7)
A120: H1 | C120: =IF(goal_type_value=3, "Allowable emissions intensity in the target year(s)", "Allowable emissions in the target year(s)") -> Allowable emissions in the target year(s) | D120: Year | E120: =IF(goal_type_value = 3, "Emissions Intensity", "Allowable Emissions") -> Allowable Emissions | F120: Units
A121: H1 | B121: ae | C121: Allowable emissions | D121: 2020 | E121: 0 | F121: MtCO2e
A122: te | B122: H3 | C122: The type, vintage, and quantity (in terms of tonnes of carbon dioxide equivalent) of transferable emissions units retired and sold in the target year, relevant year of the target period, or over the target period
A123: bi | B123: H3 | C123: Data sources or method used to estimate the level of output in the target year(s)
A124: H3 | C124: Any emissions recalculations, including recalculations of base year emissions, base year emissions intensity, baseline scenario emissions, and allowable emissions or emissions intensity, and the recalculated values alongside the original values
A125: H3 | C125: Additional comments (optional)
A126: H1
A127: aga | B127: T | C127: Assessing Goal Achievement (Chapter 9)
A128: H1 | C128: Complete GHG inventories for target years (including land sector emissions reporting where relevant) | D128: Full inventories for all reporting years can be printed out from here
A129: H1 | C129: An assessment of progress towards goal achievement (including information on transferable emission uints where relevant) | D129: Summary data, equations and graph can be printed out from here
A130: H1
A131: T | C131: Verification (Chapter 10)
A132: H3 | C132: Has the goal assessment been verified, and if so, the type of verification performed (first party or third party), the relevant competencies of the verifier(s), and the opinion issued by the verifier
A133: H3 | B133: x | C133: For users receiving first-party verification, how potential conflicts of interest were avoided during the verification process (optional reporting information)
A134: H3 | C134: What plan of action will the party being verified put in place to address any discrepancues or fulfill the recommendations? (optional reporting information)
A135: x | B135: x
A147: x

Sheet data
M3: =target_end_year-base_start_year -> 13
M6: =base_start_year -> 2010
H7: =SUM(J19:J24)/SUM(O19:O24) ->  | L7: start year | M7: 70 | N7: 0 | O7: 0 | Q7: 0 | R7: 0 | S7: 0
L8: goal level | M8: 85 | N8: 85 | O8: 85 | Q8: 85 | R8: 85 | S8: 85
L9: baseline scenario emissions | M9: 70 | N9: 75 | O9: 80 | Q9: 85 | R9: 90 | S9: 95
L10: target year | M10: 0 | N10: 0 | O10: 0 | Q10: 0 | R10: 0 | S10: 85
C15: data_lookup_table | F15: Target year | G15: Target year | H15: Target year | I15: base year | J15: base year | K15: base year | L15: base year | M15: base year | N15: base year | O15: base year | P15: base year | Q15: reporting year | X15: Baseline scenario | Y15: Baseline scenario | Z15: Baseline scenario | AA15: Baseline scenario | AB15: Baseline scenario | AC15: Baseline scenario | AD15: Baseline scenario | AF15: Base Year | AG15: Base Year | AH15: Reporting Year | AK15: Allowable target emissions (OOJ) | AO15: LOO (IJ)
C16: 1 | D16: 2 | E16: 3 | F16: 4 | G16: 5 | H16: 6 | I16: 7 | J16: 8 | K16: 9 | L16: 10 | M16: 11 | N16: 12 | O16: 13 | P16: 14 | Q16: 15 | R16: 16 | S16: 17 | T16: 18 | U16: 19 | V16: 20 | W16: 21 | X16: 22 | Y16: 23 | Z16: 24 | AA16: 25 | AB16: 26 | AC16: 27 | AD16: 28 | AE16: 29 | AF16: 30 | AG16: 31 | AH16: 32 | AI16: 33 | AJ16: 34 | AK16: 35 | AL16: 36 | AM16: 37 | AN16: 38 | AO16: 39
D17: used for bye, fl, byi and bs | G17: used when sep ooj goal | I17: OOJ total | J17: base year emissions (excl any OOJ) | K17: land sector only - method 1 | L17: land sector - method 2 | M17: emissions intensity | N17: OOJ Land sector | O17: level of output | P17: level of output units | Q17: inventory name | R17: MtCO2e | S17: level of output | T17: level of output units | U17: land - method 1 | V17: land - method 2 | X17: Total (OOJ+IJ) | Y17: Total - IJ | Z17: Total OOJ | AA17: net land sector method 1 | AB17: net land sector method 2 | AF17: Base year net of any land sector emissions (using chosen method) | AH17: OOJ (excl land sector) | AI17: OOJ land sector | AJ17: net land sector emissions baseline scenrio (chosen method) | AK17: OOJ goal level | AL17: OOJ Target LOO | AM17: LOO (OOJ) | AN17: allowable emissions
C18: Year | D18: Goal level value | E18: Goal level units | F18: calculated allowable targ emissions | G18: OOJ | H18: calc. allowable targ intensity | I18: MtCO2e | J18: MtCO2e | K18: MtCO2e | L18: MtCO2e | N18: MtCO2e | X18: MtCO2e | Y18: MtCO2e | Z18: MtCO2e | AA18: MtCO2e | AB18: =AA18 -> MtCO2e
C19: =lists!B17 -> 1990 | D19: 0 | E19: MtCO2e | F19: 0 | G19: 0 | H19: 0 | I19: 0 | J19: 0 | K19: 0 | L19: 0 | M19: 0 | N19: 0 | O19: 0 | P19: $000's GDP | Q19: 0 | R19: 0 | S19: 0 | T19: $000's GDP | U19: 0 | V19: 0 | W19: 0 | X19: 0 | Y19: 0 | Z19: 0 | AA19: 0 | AB19: 0 | AC19: 0 | AD19: 0 | AE19: 0 | AF19: 0 | AG19: 0 | AH19: 0 | AI19: 0 | AJ19: 0 | AK19: 0 | AL19: 0 | AM19: 0 | AN19: 0 | AO19: 0
C20: =lists!B18 -> 1991 | D20: 0 | E20: MtCO2e | F20: 0 | G20: 0 | H20: 0 | I20: 0 | J20: 0 | K20: 0 | L20: 0 | M20: 0 | N20: 0 | O20: 0 | P20: $000's GDP | Q20: 0 | R20: 0 | S20: 0 | T20: $000's GDP | U20: 0 | V20: 0 | W20: 0 | X20: 0 | Y20: 0 | Z20: 0 | AA20: 0 | AB20: 0 | AC20: 0 | AD20: 0 | AE20: 0 | AF20: 0 | AG20: 0 | AH20: 0 | AI20: 0 | AJ20: 0 | AK20: 0 | AL20: 0 | AM20: 0 | AN20: 0 | AO20: 0
C21: =lists!B19 -> 1992 | D21: 0 | E21: MtCO2e | F21: 0 | G21: 0 | H21: 0 | I21: 0 | J21: 0 | K21: 0 | L21: 0 | M21: 0 | N21: 0 | O21: 0 | P21: $000's GDP | Q21: 0 | R21: 0 | S21: 0 | T21: $000's GDP | U21: 0 | V21: 0 | W21: 0 | X21: 0 | Y21: 0 | Z21: 0 | AA21: 0 | AB21: 0 | AC21: 0 | AD21: 0 | AE21: 0 | AF21: 0 | AG21: 0 | AH21: 0 | AI21: 0 | AJ21: 0 | AK21: 0 | AL21: 0 | AM21: 0 | AN21: 0 | AO21: 0
C22: =lists!B20 -> 1993 | D22: 0 | E22: MtCO2e | F22: 0 | G22: 0 | H22: 0 | I22: 0 | J22: 0 | K22: 0 | L22: 0 | M22: 0 | N22: 0 | O22: 0 | P22: $000's GDP | Q22: 0 | R22: 0 | S22: 0 | T22: $000's GDP | U22: 0 | V22: 0 | W22: 0 | X22: 0 | Y22: 0 | Z22: 0 | AA22: 0 | AB22: 0 | AC22: 0 | AD22: 0 | AE22: 0 | AF22: 0 | AG22: 0 | AH22: 0 | AI22: 0 | AJ22: 0 | AK22: 0 | AL22: 0 | AM22: 0 | AN22: 0 | AO22: 0
C23: =lists!B21 -> 1994 | D23: 0 | E23: MtCO2e | F23: 0 | G23: 0 | H23: 0 | I23: 0 | J23: 0 | K23: 0 | L23: 0 | M23: 0 | N23: 0 | O23: 0 | P23: $000's GDP | Q23: 0 | R23: 0 | S23: 0 | T23: $000's GDP | U23: 0 | V23: 0 | W23: 0 | X23: 0 | Y23: 0 | Z23: 0 | AA23: 0 | AB23: 0 | AC23: 0 | AD23: 0 | AE23: 0 | AF23: 0 | AG23: 0 | AH23: 0 | AI23: 0 | AJ23: 0 | AK23: 0 | AL23: 0 | AM23: 0 | AN23: 0 | AO23: 0
C24: =lists!B22 -> 1995 | D24: 0 | E24: MtCO2e | F24: 0 | G24: 0 | H24: 0 | I24: 0 | J24: 0 | K24: 0 | L24: 0 | M24: 0 | N24: 0 | O24: 0 | P24: $000's GDP | Q24: 0 | R24: 0 | S24: 0 | T24: $000's GDP | U24: 0 | V24: 0 | W24: 0 | X24: 0 | Y24: 0 | Z24: 0 | AA24: 0 | AB24: 0 | AC24: 0 | AD24: 0 | AE24: 0 | AF24: 0 | AG24: 0 | AH24: 0 | AI24: 0 | AJ24: 0 | AK24: 0 | AL24: 0 | AM24: 0 | AN24: 0 | AO24: 0
C25: =lists!B23 -> 1996 | D25: 0 | E25: MtCO2e | F25: 0 | G25: 0 | H25: 0 | I25: 0 | J25: 0 | K25: 0 | L25: 0 | M25: 0 | N25: 0 | O25: 0 | P25: $000's GDP | Q25: 0 | R25: 0 | S25: 0 | T25: $000's GDP | U25: 0 | V25: 0 | W25: 0 | X25: 0 | Y25: 0 | Z25: 0 | AA25: 0 | AB25: 0 | AC25: 0 | AD25: 0 | AE25: 0 | AF25: 0 | AG25: 0 | AH25: 0 | AI25: 0 | AJ25: 0 | AK25: 0 | AL25: 0 | AM25: 0 | AN25: 0 | AO25: 0
C26: =lists!B24 -> 1997 | D26: 0 | E26: MtCO2e | F26: 0 | G26: 0 | H26: 0 | I26: 0 | J26: 0 | K26: 0 | L26: 0 | M26: 0 | N26: 0 | O26: 0 | P26: $000's GDP | Q26: 0 | R26: 0 | S26: 0 | T26: $000's GDP | U26: 0 | V26: 0 | W26: 0 | X26: 0 | Y26: 0 | Z26: 0 | AA26: 0 | AB26: 0 | AC26: 0 | AD26: 0 | AE26: 0 | AF26: 0 | AG26: 0 | AH26: 0 | AI26: 0 | AJ26: 0 | AK26: 0 | AL26: 0 | AM26: 0 | AN26: 0 | AO26: 0
C27: =lists!B25 -> 1998 | D27: 0 | E27: MtCO2e | F27: 0 | G27: 0 | H27: 0 | I27: 0 | J27: 0 | K27: 0 | L27: 0 | M27: 0 | N27: 0 | O27: 0 | P27: $000's GDP | Q27: 0 | R27: 0 | S27: 0 | T27: $000's GDP | U27: 0 | V27: 0 | W27: 0 | X27: 0 | Y27: 0 | Z27: 0 | AA27: 0 | AB27: 0 | AC27: 0 | AD27: 0 | AE27: 0 | AF27: 0 | AG27: 0 | AH27: 0 | AI27: 0 | AJ27: 0 | AK27: 0 | AL27: 0 | AM27: 0 | AN27: 0 | AO27: 0
C28: =lists!B26 -> 1999 | D28: 0 | E28: MtCO2e | F28: 0 | G28: 0 | H28: 0 | I28: 0 | J28: 0 | K28: 0 | L28: 0 | M28: 0 | N28: 0 | O28: 0 | P28: $000's GDP | Q28: 0 | R28: 0 | S28: 0 | T28: $000's GDP | U28: 0 | V28: 0 | W28: 0 | X28: 0 | Y28: 0 | Z28: 0 | AA28: 0 | AB28: 0 | AC28: 0 | AD28: 0 | AE28: 0 | AF28: 0 | AG28: 0 | AH28: 0 | AI28: 0 | AJ28: 0 | AK28: 0 | AL28: 0 | AM28: 0 | AN28: 0 | AO28: 0
C29: =lists!B27 -> 2000 | D29: 0 | E29: MtCO2e | F29: 0 | G29: 0 | H29: 0 | I29: 0 | J29: 0 | K29: 0 | L29: 0 | M29: 0 | N29: 0 | O29: 0 | P29: $000's GDP | Q29: 0 | R29: 0 | S29: 0 | T29: $000's GDP | U29: 0 | V29: 0 | W29: 0 | X29: 0 | Y29: 0 | Z29: 0 | AA29: 0 | AB29: 0 | AC29: 0 | AD29: 0 | AE29: 0 | AF29: 0 | AG29: 0 | AH29: 0 | AI29: 0 | AJ29: 0 | AK29: 0 | AL29: 0 | AM29: 0 | AN29: 0 | AO29: 0
A30: =AVERAGE(J43:J48) -> 350 | C30: =lists!B28 -> 2001 | D30: 0 | E30: MtCO2e | F30: 0 | G30: 0 | H30: 0 | I30: 0 | J30: 0 | K30: 0 | L30: 0 | M30: 0 | N30: 0 | O30: 0 | P30: $000's GDP | Q30: 0 | R30: 0 | S30: 0 | T30: $000's GDP | U30: 0 | V30: 0 | W30: 0 | X30: 0 | Y30: 0 | Z30: 0 | AA30: 0 | AB30: 0 | AC30: 0 | AD30: 0 | AE30: 0 | AF30: 0 | AG30: 0 | AH30: 0 | AI30: 0 | AJ30: 0 | AK30: 0 | AL30: 0 | AM30: 0 | AN30: 0 | AO30: 0
C31: =lists!B29 -> 2002 | D31: 0 | E31: MtCO2e | F31: 0 | G31: 0 | H31: 0 | I31: 300 | J31: 0 | K31: -100 | L31: -10 | M31: 0 | N31: 100 | O31: 0 | P31: $000's | Q31: 0 | R31: 0 | S31: 0 | T31: $000's GDP | U31: 0 | V31: 0 | W31: 0 | X31: 0 | Y31: 0 | Z31: 0 | AA31: 0 | AB31: 0 | AC31: 0 | AD31: 0 | AE31: 0 | AF31: 0 | AG31: 0 | AH31: 0 | AI31: 0 | AJ31: 0 | AK31: 0 | AL31: 0 | AM31: 0 | AN31: 0 | AO31: 0
C32: =lists!B30 -> 2003 | D32: 0 | E32: MtCO2e | F32: 0 | G32: 0 | H32: 0 | I32: 40 | J32: 90 | K32: 0 | L32: -15 | M32: 1.8 | N32: 50 | O32: 50 | P32: $000's | Q32: 0 | R32: 0 | S32: 0 | T32: $000's GDP | U32: 0 | V32: 0 | W32: 0 | X32: 0 | Y32: 0 | Z32: 0 | AA32: 0 | AB32: 0 | AC32: 0 | AD32: 0 | AE32: 0 | AF32: 0 | AG32: 0 | AH32: 0 | AI32: 0 | AJ32: 0 | AK32: 0 | AL32: 0 | AM32: 0 | AN32: 0 | AO32: 0
C33: =lists!B31 -> 2004 | D33: 0 | E33: MtCO2e | F33: 0 | G33: 0 | H33: 0 | I33: 0 | J33: 0 | K33: 0 | L33: 0 | M33: 0 | N33: 0 | O33: 122 | P33: $000's | Q33: 0 | R33: 0 | S33: 0 | T33: $000's GDP | U33: 0 | V33: 0 | W33: 0 | X33: 0 | Y33: 0 | Z33: 0 | AA33: 0 | AB33: 0 | AC33: 0 | AD33: 0 | AE33: 0 | AF33: 0 | AG33: 0 | AH33: 0 | AI33: 0 | AJ33: 0 | AK33: 0 | AL33: 0 | AM33: 0 | AN33: 0 | AO33: 0
C34: =lists!B32 -> 2005 | D34: 0 | E34: MtCO2e | F34: 0 | G34: 0 | H34: 0 | I34: 70 | J34: 0 | K34: -230 | L34: -30 | M34: 0 | N34: -35 | O34: 115 | P34: $000's | Q34: 0 | R34: 0 | S34: 0 | T34: $000's GDP | U34: 0 | V34: 0 | W34: 0 | X34: 0 | Y34: 0 | Z34: 0 | AA34: 0 | AB34: 0 | AC34: 0 | AD34: 0 | AE34: 0 | AF34: 0 | AG34: 0 | AH34: 0 | AI34: 0 | AJ34: 0 | AK34: 0 | AL34: 0 | AM34: 0 | AN34: 0 | AO34: 0
C35: =lists!B33 -> 2006 | D35: 0 | E35: MtCO2e | F35: 0 | G35: 0 | H35: 0 | I35: 65 | J35: 600 | K35: -240 | L35: -400 | M35: 0 | N35: -35 | O35: 0 | P35: $000's | Q35: 0 | R35: 0 | S35: 0 | T35: $000's GDP | U35: 0 | V35: 0 | W35: 0 | X35: 0 | Y35: 0 | Z35: 0 | AA35: 0 | AB35: 0 | AC35: 0 | AD35: 0 | AE35: 0 | AF35: 0 | AG35: 0 | AH35: 0 | AI35: 0 | AJ35: 0 | AK35: 0 | AL35: 0 | AM35: 0 | AN35: 0 | AO35: 0
C36: =lists!B34 -> 2007 | D36: 0 | E36: MtCO2e | F36: 0 | G36: 0 | H36: 0 | I36: 60 | J36: 500 | K36: -250 | L36: -400 | M36: 0 | N36: -30 | O36: 0 | P36: $000's | Q36: 0 | R36: 0 | S36: 0 | T36: $000's GDP | U36: 0 | V36: 0 | W36: 0 | X36: 0 | Y36: 0 | Z36: 0 | AA36: 0 | AB36: 0 | AC36: 0 | AD36: 0 | AE36: 0 | AF36: 0 | AG36: 0 | AH36: 0 | AI36: 0 | AJ36: 0 | AK36: 0 | AL36: 0 | AM36: 0 | AN36: 0 | AO36: 0
C37: =lists!B35 -> 2008 | D37: 0 | E37: MtCO2e | F37: 0 | G37: 0 | H37: 0 | I37: 55 | J37: 400 | K37: 15 | L37: -400 | M37: 0 | N37: -25 | O37: 0 | P37: $000's | Q37: 0 | R37: 0 | S37: 0 | T37: $000's GDP | U37: 0 | V37: 0 | W37: 0 | X37: 0 | Y37: 0 | Z37: 0 | AA37: 0 | AB37: 0 | AC37: 0 | AD37: 0 | AE37: 0 | AF37: 0 | AG37: 0 | AH37: 0 | AI37: 0 | AJ37: 0 | AK37: 0 | AL37: 0 | AM37: 0 | AN37: 0 | AO37: 0
C38: =lists!B36 -> 2009 | D38: 0 | E38: MtCO2e | F38: 0 | G38: 0 | H38: 0 | I38: 50 | J38: 300 | K38: 15 | L38: -400 | M38: 0 | N38: -20 | O38: 0 | P38: $000's | Q38: 0 | R38: 0 | S38: 0 | T38: $000's GDP | U38: 0 | V38: 0 | W38: 0 | X38: 0 | Y38: 0 | Z38: 0 | AA38: 0 | AB38: 0 | AC38: 0 | AD38: 0 | AE38: 0 | AF38: 0 | AG38: 0 | AH38: 0 | AI38: 0 | AJ38: 0 | AK38: 0 | AL38: 0 | AM38: 0 | AN38: 0 | AO38: 0
C39: =lists!B37 -> 2010 | D39: 0 | E39: MtCO2e/level of output | F39: 0 | G39: 0 | H39: 0 | I39: 300 | J39: 0 | K39: -100 | L39: -10 | M39: 0 | N39: 100 | O39: 0 | P39: $000's | Q39: 0 | R39: 80 | S39: 12 | T39: $000's | U39: -10 | V39: -20 | W39: 0 | X39: 0 | Y39: 10 | Z39: 0 | AA39: 5 | AB39: 5 | AC39: 0 | AD39: 0 | AE39: 0 | AF39: 0 | AG39: 0 | AH39: 3 | AI39: 0 | AJ39: 0 | AL39: 6 | AM39: 0 | AN39: 0 | AO39: 0
C40: =lists!B38 -> 2011 | D40: 15 | E40: MtCO2e | F40: 0 | G40: 0 | H40: -10.5 | I40: 40 | J40: 90 | K40: 0 | L40: -15 | M40: 1.8 | N40: 50 | O40: 50 | P40: $000's | Q40: 0 | R40: 0 | S40: 0 | T40: $000's GDP | U40: 0 | V40: 0 | W40: 0 | X40: 0 | Y40: 15 | Z40: 0 | AA40: 5 | AB40: 5 | AC40: 0 | AD40: 0 | AE40: 0 | AF40: 0 | AG40: 0 | AH40: 0 | AI40: 0 | AJ40: 0 | AL40: 6 | AM40: 0 | AN40: 0 | AO40: 0
C41: =lists!B39 -> 2012 | D41: 15 | E41: MtCO2e | F41: 8.5 | G41: 0 | H41: -10.5 | I41: 0 | J41: 0 | K41: 0 | L41: 0 | M41: 0 | N41: 0 | O41: 122 | P41: $000's | Q41: 0 | R41: 0 | S41: 0 | T41: 0 | U41: 2 | V41: -20 | W41: 0 | X41: 0 | Y41: 24 | Z41: 0 | AA41: 5 | AB41: 5 | AC41: 0 | AD41: 0 | AE41: 0 | AF41: 0 | AG41: 0 | AH41: 3 | AI41: 0 | AJ41: 10 | AL41: 6 | AM41: 0 | AN41: 0 | AO41: 0
C42: =lists!B40 -> 2013 | D42: 15 | E42: MtCO2e | F42: 8.5 | G42: 0 | H42: -10.5 | I42: 70 | J42: 0 | K42: -230 | L42: -30 | M42: 0 | N42: -35 | O42: 115 | P42: $000's | Q42: 0 | R42: 0 | S42: 0 | T42: $000's GDP | U42: 0 | V42: 0 | W42: 0 | X42: 0 | Y42: 25 | Z42: 0 | AA42: 5 | AB42: 5 | AC42: 0 | AD42: 0 | AE42: 0 | AF42: 0 | AG42: 0 | AH42: 0 | AI42: 0 | AJ42: 0 | AL42: 6 | AM42: 0 | AN42: 0 | AO42: 0
C43: =lists!B41 -> 2014 | D43: 15 | E43: MtCO2e | F43: 8.5 | G43: 0 | H43: -10.5 | I43: 65 | J43: 600 | K43: -240 | L43: -400 | M43: 0 | N43: -35 | O43: 0 | P43: $000's | Q43: 0 | R43: 80 | S43: 0 | T43: 0 | U43: -10 | V43: -20 | W43: 0 | X43: 0 | Y43: 23 | Z43: 0 | AA43: 5 | AB43: 5 | AC43: 0 | AD43: 0 | AE43: 0 | AF43: 0 | AG43: 0 | AH43: 3 | AI43: 0 | AJ43: 0 | AL43: 6 | AM43: 0 | AN43: 0 | AO43: 0
C44: =lists!B42 -> 2015 | D44: 12 | E44: MtCO2e | F44: 10 | G44: 0 | H44: -14 | I44: 60 | J44: 500 | K44: -250 | L44: -400 | M44: 0 | N44: -30 | O44: 0 | P44: $000's | Q44: 0 | R44: 0 | S44: 0 | T44: $000's GDP | U44: 0 | V44: 0 | W44: 0 | X44: 0 | Y44: 22 | Z44: 0 | AA44: 5 | AB44: 5 | AC44: 0 | AD44: 0 | AE44: 0 | AF44: 0 | AG44: 0 | AH44: 0 | AI44: 0 | AJ44: 0 | AK44: 0 | AL44: 6 | AM44: 0 | AN44: 0 | AO44: 0
C45: =lists!B43 -> 2016 | D45: 12 | E45: MtCO2e | F45: 0 | G45: 0 | H45: -14 | I45: 55 | J45: 400 | K45: 15 | L45: -400 | M45: 0 | N45: -25 | O45: 0 | P45: $000's | Q45: 0 | R45: 0 | S45: 0 | T45: $000's GDP | U45: 0 | V45: 0 | W45: 0 | X45: 0 | Y45: 0 | Z45: 0 | AA45: 0 | AB45: 0 | AC45: 0 | AD45: 0 | AE45: 0 | AF45: 0 | AG45: 0 | AH45: 0 | AI45: 0 | AJ45: 0 | AK45: 0 | AL45: 6 | AM45: 0 | AN45: 0 | AO45: 0
C46: =lists!B44 -> 2017 | D46: 0 | E46: MtCO2e | F46: 0 | G46: 0 | H46: 0 | I46: 50 | J46: 300 | K46: 15 | L46: -400 | M46: 0 | N46: -20 | O46: 0 | P46: $000's | Q46: 0 | R46: 0 | S46: 0 | T46: $000's GDP | U46: 0 | V46: 0 | W46: 0 | X46: 0 | Y46: 0 | Z46: 0 | AA46: 0 | AB46: 0 | AC46: 0 | AD46: 0 | AE46: 0 | AF46: 0 | AG46: 0 | AH46: 0 | AI46: 0 | AJ46: 0 | AK46: 0 | AL46: 0 | AM46: 0 | AN46: 0 | AO46: 0
C47: =lists!B45 -> 2018 | D47: 0 | E47: MtCO2e | F47: 0 | G47: 0 | H47: 0 | I47: 45 | J47: 200 | K47: 15 | L47: -400 | M47: 0 | N47: -15 | O47: 0 | P47: $000's | Q47: 0 | R47: 0 | S47: 0 | T47: $000's GDP | U47: 0 | V47: 0 | W47: 0 | X47: 0 | Y47: 0 | Z47: 0 | AA47: 0 | AB47: 0 | AC47: 0 | AD47: 0 | AE47: 0 | AF47: 0 | AG47: 0 | AH47: 0 | AI47: 0 | AJ47: 0 | AK47: 0 | AL47: 0 | AM47: 0 | AN47: 0 | AO47: 0
C48: =lists!B46 -> 2019 | D48: 0 | E48: MtCO2e | F48: 0 | G48: 0 | H48: 0 | I48: 40 | J48: 100 | K48: 15 | L48: -300 | M48: 0 | N48: -10 | O48: 0 | P48: $000's | Q48: 0 | R48: 80 | S48: 0 | T48: 0 | U48: -10 | V48: -20 | W48: 0 | X48: 0 | Y48: 0 | Z48: 0 | AA48: 0 | AB48: 0 | AC48: 0 | AD48: 0 | AE48: 0 | AF48: 0 | AG48: 0 | AH48: 3 | AI48: 0 | AJ48: 0 | AK48: 0 | AL48: 0 | AM48: 0 | AN48: 0 | AO48: 0
C49: =lists!B47 -> 2020 | D49: 0 | E49: MtCO2e | F49: 0 | H49: 0 | I49: 0 | J49: 0 | K49: 0 | L49: 0 | M49: 0 | N49: 0 | O49: 0 | P49: $000's GDP | Q49: 0 | R49: 0 | S49: 0 | T49: 0 | U49: -10 | V49: -20 | W49: 0 | X49: 0 | Y49: 0 | Z49: 0 | AA49: 0 | AB49: 0 | AC49: 0 | AD49: 0 | AE49: 0 | AF49: 0 | AG49: 0 | AH49: 3 | AI49: 0 | AJ49: 0 | AK49: 0 | AL49: 0 | AM49: 0 | AN49: 0 | AO49: 0
C50: =lists!B48 -> 2021 | D50: 0 | E50: MtCO2e | F50: 0 | G50: 0 | H50: 0 | I50: 0 | J50: 0 | K50: 0 | L50: 0 | M50: 0 | N50: 0 | O50: 0 | P50: $000's GDP | Q50: 0 | R50: 0 | S50: 0 | T50: 0 | U50: -40 | V50: 0 | W50: 0 | X50: 0 | Y50: 0 | Z50: 0 | AA50: 0 | AB50: 0 | AC50: 0 | AD50: 0 | AE50: 0 | AF50: 0 | AG50: 0 | AH50: 0 | AI50: 0 | AJ50: -30 | AK50: 0 | AL50: 0 | AM50: 0 | AN50: 0 | AO50: 0
C51: =lists!B49 -> 2022 | D51: 0 | E51: MtCO2e | F51: 0 | G51: 0 | H51: 0 | I51: 0 | J51: 0 | K51: 0 | L51: 0 | M51: 0 | N51: 0 | O51: 0 | P51: $000's GDP | Q51: 0 | R51: 0 | S51: 0 | T51: 0 | U51: 0 | V51: 0 | W51: 0 | X51: 0 | Y51: 0 | Z51: 0 | AA51: 0 | AB51: 0 | AC51: 0 | AD51: 0 | AE51: 0 | AF51: 0 | AG51: 0 | AH51: 0 | AI51: 0 | AJ51: 0 | AK51: 0 | AL51: 0 | AM51: 0 | AN51: 0 | AO51: 0
C52: =lists!B50 -> 2023 | D52: 0 | E52: MtCO2e | F52: 0 | G52: 0 | H52: 0 | I52: 0 | J52: 0 | K52: 0 | L52: 0 | M52: 0 | N52: 0 | O52: 0 | P52: $000's GDP | Q52: 0 | R52: 0 | S52: 0 | T52: 0 | U52: 0 | V52: 0 | W52: 0 | X52: 0 | Y52: 0 | Z52: 0 | AA52: 0 | AB52: 0 | AC52: 0 | AD52: 0 | AE52: 0 | AF52: 0 | AG52: 0 | AH52: 0 | AI52: 0 | AJ52: 0 | AK52: 0 | AL52: 0 | AM52: 0 | AN52: 0 | AO52: 0
C53: =lists!B51 -> 2024 | D53: 0 | E53: MtCO2e | F53: 0 | G53: 0 | H53: 0 | I53: 0 | J53: 0 | K53: 0 | L53: 0 | M53: 0 | N53: 0 | O53: 0 | P53: $000's GDP | Q53: 0 | R53: 0 | S53: 0 | T53: $000's GDP | U53: 0 | V53: 0 | W53: 0 | X53: 0 | Y53: 0 | Z53: 0 | AA53: 0 | AB53: 0 | AC53: 0 | AD53: 0 | AE53: 0 | AF53: 0 | AG53: 0 | AH53: 0 | AI53: 0 | AJ53: 0 | AK53: 0 | AL53: 0 | AM53: 0 | AN53: 0 | AO53: 0
C54: =lists!B52 -> 2025 | D54: 0 | E54: MtCO2e | F54: 0 | G54: 0 | H54: 0 | I54: 0 | J54: 0 | K54: 0 | L54: 0 | M54: 0 | N54: 0 | O54: 0 | P54: $000's GDP | Q54: 0 | R54: 0 | S54: 0 | T54: $000's GDP | U54: 0 | V54: 0 | W54: 0 | X54: 0 | Y54: 0 | Z54: 0 | AA54: 0 | AB54: 0 | AC54: 0 | AD54: 0 | AE54: 0 | AF54: 0 | AG54: 0 | AH54: 0 | AI54: 0 | AJ54: 0 | AK54: 0 | AL54: 0 | AM54: 0 | AN54: 0 | AO54: 0
C55: =lists!B53 -> 2026 | D55: 0 | E55: MtCO2e | F55: 0 | G55: 0 | H55: 0 | I55: 0 | J55: 0 | K55: 0 | L55: 0 | M55: 0 | N55: 0 | O55: 0 | P55: $000's GDP | Q55: 0 | R55: 0 | S55: 0 | T55: $000's GDP | U55: 0 | V55: 0 | W55: 0 | X55: 0 | Y55: 0 | Z55: 0 | AA55: 0 | AB55: 0 | AC55: 0 | AD55: 0 | AE55: 0 | AF55: 0 | AG55: 0 | AH55: 0 | AI55: 0 | AJ55: 0 | AK55: 0 | AL55: 0 | AM55: 0 | AN55: 0 | AO55: 0
C56: =lists!B54 -> 2027 | D56: 0 | E56: MtCO2e | F56: 0 | G56: 0 | H56: 0 | I56: 0 | J56: 0 | K56: 0 | L56: 0 | M56: 0 | N56: 0 | O56: 0 | P56: $000's GDP | Q56: 0 | R56: 0 | S56: 0 | T56: $000's GDP | U56: 0 | V56: 0 | W56: 0 | X56: 0 | Y56: 0 | Z56: 0 | AA56: 0 | AB56: 0 | AC56: 0 | AD56: 0 | AE56: 0 | AF56: 0 | AG56: 0 | AH56: 0 | AI56: 0 | AJ56: 0 | AK56: 0 | AL56: 0 | AM56: 0 | AN56: 0 | AO56: 0
C57: =lists!B55 -> 2028 | D57: 0 | E57: MtCO2e | F57: 0 | G57: 0 | H57: 0 | I57: 0 | J57: 0 | K57: 0 | L57: 0 | M57: 0 | N57: 0 | O57: 0 | P57: $000's GDP | Q57: 0 | R57: 0 | S57: 0 | T57: $000's GDP | U57: 0 | V57: 0 | W57: 0 | X57: 0 | Y57: 0 | Z57: 0 | AA57: 0 | AB57: 0 | AC57: 0 | AD57: 0 | AE57: 0 | AF57: 0 | AG57: 0 | AH57: 0 | AI57: 0 | AJ57: 0 | AK57: 0 | AL57: 0 | AM57: 0 | AN57: 0 | AO57: 0
C58: =lists!B56 -> 2029 | D58: 0 | E58: MtCO2e | F58: 0 | G58: 0 | H58: 0 | I58: 0 | J58: 0 | K58: 0 | L58: 0 | M58: 0 | N58: 0 | O58: 0 | P58: $000's GDP | Q58: 0 | R58: 0 | S58: 0 | T58: $000's GDP | U58: 0 | V58: 0 | W58: 0 | X58: 0 | Y58: 0 | Z58: 0 | AA58: 0 | AB58: 0 | AC58: 0 | AD58: 0 | AE58: 0 | AF58: 0 | AG58: 0 | AH58: 0 | AI58: 0 | AJ58: 0 | AK58: 0 | AL58: 0 | AM58: 0 | AN58: 0 | AO58: 0
C59: =lists!B57 -> 2030 | D59: 0 | E59: MtCO2e | F59: 0 | G59: 0 | H59: 0 | I59: 0 | J59: 0 | K59: 0 | L59: 0 | M59: 0 | N59: 0 | O59: 0 | P59: $000's GDP | Q59: 0 | R59: 0 | S59: 0 | T59: $000's GDP | U59: 0 | V59: 0 | W59: 0 | X59: 0 | Y59: 0 | Z59: 0 | AA59: 0 | AB59: 0 | AC59: 0 | AD59: 0 | AE59: 0 | AF59: 0 | AG59: 0 | AH59: 0 | AI59: 0 | AJ59: 0 | AK59: 0 | AL59: 0 | AM59: 0 | AN59: 0 | AO59: 0
C60: =lists!B58 -> 2031 | D60: 0 | E60: MtCO2e | F60: 0 | G60: 0 | H60: 0 | I60: 0 | J60: 0 | K60: 0 | L60: 0 | M60: 0 | N60: 0 | O60: 0 | P60: $000's GDP | Q60: 0 | R60: 0 | S60: 0 | T60: $000's GDP | U60: 0 | V60: 0 | W60: 0 | X60: 0 | Y60: 0 | Z60: 0 | AA60: 0 | AB60: 0 | AC60: 0 | AD60: 0 | AE60: 0 | AF60: 0 | AG60: 0 | AH60: 0 | AI60: 0 | AJ60: 0 | AK60: 0 | AL60: 0 | AM60: 0 | AN60: 0 | AO60: 0
C61: =lists!B59 -> 2032 | D61: 0 | E61: MtCO2e | F61: 0 | G61: 0 | H61: 0 | I61: 0 | J61: 0 | K61: 0 | L61: 0 | M61: 0 | N61: 0 | O61: 0 | P61: $000's GDP | Q61: 0 | R61: 0 | S61: 0 | T61: $000's GDP | U61: 0 | V61: 0 | W61: 0 | X61: 0 | Y61: 0 | Z61: 0 | AA61: 0 | AB61: 0 | AC61: 0 | AD61: 0 | AE61: 0 | AF61: 0 | AG61: 0 | AH61: 0 | AI61: 0 | AJ61: 0 | AK61: 0 | AL61: 0 | AM61: 0 | AN61: 0 | AO61: 0
C62: =lists!B60 -> 2033 | D62: 0 | E62: MtCO2e | F62: 0 | G62: 0 | H62: 0 | I62: 0 | J62: 0 | K62: 0 | L62: 0 | M62: 0 | N62: 0 | O62: 0 | P62: $000's GDP | Q62: 0 | R62: 0 | S62: 0 | T62: $000's GDP | U62: 0 | V62: 0 | W62: 0 | X62: 0 | Y62: 0 | Z62: 0 | AA62: 0 | AB62: 0 | AC62: 0 | AD62: 0 | AE62: 0 | AF62: 0 | AG62: 0 | AH62: 0 | AI62: 0 | AJ62: 0 | AK62: 0 | AL62: 0 | AM62: 0 | AN62: 0 | AO62: 0
C63: =lists!B61 -> 2034 | D63: 0 | E63: MtCO2e | F63: 0 | G63: 0 | H63: 0 | I63: 0 | J63: 0 | K63: 0 | L63: 0 | M63: 0 | N63: 0 | O63: 0 | P63: $000's GDP | Q63: 0 | R63: 0 | S63: 0 | T63: $000's GDP | U63: 0 | V63: 0 | W63: 0 | X63: 0 | Y63: 0 | Z63: 0 | AA63: 0 | AB63: 0 | AC63: 0 | AD63: 0 | AE63: 0 | AF63: 0 | AG63: 0 | AH63: 0 | AI63: 0 | AJ63: 0 | AK63: 0 | AL63: 0 | AM63: 0 | AN63: 0 | AO63: 0
C64: =lists!B62 -> 2035 | D64: 0 | E64: MtCO2e | F64: 0 | G64: 0 | H64: 0 | I64: 0 | J64: 0 | K64: 0 | L64: 0 | M64: 0 | N64: 0 | O64: 0 | P64: $000's GDP | Q64: 0 | R64: 0 | S64: 0 | T64: $000's GDP | U64: 0 | V64: 0 | W64: 0 | X64: 0 | Y64: 0 | Z64: 0 | AA64: 0 | AB64: 0 | AC64: 0 | AD64: 0 | AE64: 0 | AF64: 0 | AG64: 0 | AH64: 0 | AI64: 0 | AJ64: 0 | AK64: 0 | AL64: 0 | AM64: 0 | AN64: 0 | AO64: 0
C65: =lists!B63 -> 2036 | D65: 0 | E65: MtCO2e | F65: 0 | G65: 0 | H65: 0 | I65: 0 | J65: 0 | K65: 0 | L65: 0 | M65: 0 | N65: 0 | O65: 0 | P65: $000's GDP | Q65: 0 | R65: 0 | S65: 0 | T65: $000's GDP | U65: 0 | V65: 0 | W65: 0 | X65: 0 | Y65: 0 | Z65: 0 | AA65: 0 | AB65: 0 | AC65: 0 | AD65: 0 | AE65: 0 | AF65: 0 | AG65: 0 | AH65: 0 | AI65: 0 | AJ65: 0 | AK65: 0 | AL65: 0 | AM65: 0 | AN65: 0 | AO65: 0
C66: =lists!B64 -> 2037 | D66: 0 | E66: MtCO2e | F66: 0 | G66: 0 | H66: 0 | I66: 0 | J66: 0 | K66: 0 | L66: 0 | M66: 0 | N66: 0 | O66: 0 | P66: $000's GDP | Q66: 0 | R66: 0 | S66: 0 | T66: $000's GDP | U66: 0 | V66: 0 | W66: 0 | X66: 0 | Y66: 0 | Z66: 0 | AA66: 0 | AB66: 0 | AC66: 0 | AD66: 0 | AE66: 0 | AF66: 0 | AG66: 0 | AH66: 0 | AI66: 0 | AJ66: 0 | AK66: 0 | AL66: 0 | AM66: 0 | AN66: 0 | AO66: 0
C67: =lists!B65 -> 2038 | D67: 0 | E67: MtCO2e | F67: 0 | G67: 0 | H67: 0 | I67: 0 | J67: 0 | K67: 0 | L67: 0 | M67: 0 | N67: 0 | O67: 0 | P67: $000's GDP | Q67: 0 | R67: 0 | S67: 0 | T67: $000's GDP | U67: 0 | V67: 0 | W67: 0 | X67: 0 | Y67: 0 | Z67: 0 | AA67: 0 | AB67: 0 | AC67: 0 | AD67: 0 | AE67: 0 | AF67: 0 | AG67: 0 | AH67: 0 | AI67: 0 | AJ67: 0 | AK67: 0 | AL67: 0 | AM67: 0 | AN67: 0 | AO67: 0
C68: =lists!B66 -> 2039 | D68: 0 | E68: MtCO2e | F68: 0 | G68: 0 | H68: 0 | I68: 0 | J68: 0 | K68: 0 | L68: 0 | M68: 0 | N68: 0 | O68: 0 | P68: $000's GDP | Q68: 0 | R68: 0 | S68: 0 | T68: $000's GDP | U68: 0 | V68: 0 | W68: 0 | X68: 0 | Y68: 0 | Z68: 0 | AA68: 0 | AB68: 0 | AC68: 0 | AD68: 0 | AE68: 0 | AF68: 0 | AG68: 0 | AH68: 0 | AI68: 0 | AJ68: 0 | AK68: 0 | AL68: 0 | AM68: 0 | AN68: 0 | AO68: 0
C69: =lists!B67 -> 2040 | D69: 0 | E69: MtCO2e | F69: 0 | G69: 0 | H69: 0 | I69: 0 | J69: 0 | K69: 0 | L69: 0 | M69: 0 | N69: 0 | O69: 0 | P69: $000's GDP | Q69: 0 | R69: 0 | S69: 0 | T69: $000's GDP | U69: 0 | V69: 0 | W69: 0 | X69: 0 | Y69: 0 | Z69: 0 | AA69: 0 | AB69: 0 | AC69: 0 | AD69: 0 | AE69: 0 | AF69: 0 | AG69: 0 | AH69: 0 | AI69: 0 | AJ69: 0 | AK69: 0 | AL69: 0 | AM69: 0 | AN69: 0 | AO69: 0
C70: =lists!B68 -> 2041 | D70: 0 | E70: MtCO2e | F70: 0 | G70: 0 | H70: 0 | I70: 0 | J70: 0 | K70: 0 | L70: 0 | M70: 0 | N70: 0 | O70: 0 | P70: $000's GDP | Q70: 0 | R70: 0 | S70: 0 | T70: $000's GDP | U70: 0 | V70: 0 | W70: 0 | X70: 0 | Y70: 0 | Z70: 0 | AA70: 0 | AB70: 0 | AC70: 0 | AD70: 0 | AE70: 0 | AF70: 0 | AG70: 0 | AH70: 0 | AI70: 0 | AJ70: 0 | AK70: 0 | AL70: 0 | AM70: 0 | AN70: 0 | AO70: 0
C71: =lists!B69 -> 2042 | D71: 0 | E71: MtCO2e | F71: 0 | G71: 0 | H71: 0 | I71: 0 | J71: 0 | K71: 0 | L71: 0 | M71: 0 | N71: 0 | O71: 0 | P71: $000's GDP | Q71: 0 | R71: 0 | S71: 0 | T71: $000's GDP | U71: 0 | V71: 0 | W71: 0 | X71: 0 | Y71: 0 | Z71: 0 | AA71: 0 | AB71: 0 | AC71: 0 | AD71: 0 | AE71: 0 | AF71: 0 | AG71: 0 | AH71: 0 | AI71: 0 | AJ71: 0 | AK71: 0 | AL71: 0 | AM71: 0 | AN71: 0 | AO71: 0
C72: =lists!B70 -> 2043 | D72: 0 | E72: MtCO2e | F72: 0 | G72: 0 | H72: 0 | I72: 0 | J72: 0 | K72: 0 | L72: 0 | M72: 0 | N72: 0 | O72: 0 | P72: $000's GDP | Q72: 0 | R72: 0 | S72: 0 | T72: $000's GDP | U72: 0 | V72: 0 | W72: 0 | X72: 0 | Y72: 0 | Z72: 0 | AA72: 0 | AB72: 0 | AC72: 0 | AD72: 0 | AE72: 0 | AF72: 0 | AG72: 0 | AH72: 0 | AI72: 0 | AJ72: 0 | AK72: 0 | AL72: 0 | AM72: 0 | AN72: 0 | AO72: 0
C73: =lists!B71 -> 2044 | D73: 0 | E73: MtCO2e | F73: 0 | G73: 0 | H73: 0 | I73: 0 | J73: 0 | K73: 0 | L73: 0 | M73: 0 | N73: 0 | O73: 0 | P73: $000's GDP | Q73: 0 | R73: 0 | S73: 0 | T73: $000's GDP | U73: 0 | V73: 0 | W73: 0 | X73: 0 | Y73: 0 | Z73: 0 | AA73: 0 | AB73: 0 | AC73: 0 | AD73: 0 | AE73: 0 | AF73: 0 | AG73: 0 | AH73: 0 | AI73: 0 | AJ73: 0 | AK73: 0 | AL73: 0 | AM73: 0 | AN73: 0 | AO73: 0
C74: =lists!B72 -> 2045 | D74: 0 | E74: MtCO2e | F74: 0 | G74: 0 | H74: 0 | I74: 0 | J74: 0 | K74: 0 | L74: 0 | M74: 0 | N74: 0 | O74: 0 | P74: $000's GDP | Q74: 0 | R74: 0 | S74: 0 | T74: $000's GDP | U74: 0 | V74: 0 | W74: 0 | X74: 0 | Y74: 0 | Z74: 0 | AA74: 0 | AB74: 0 | AC74: 0 | AD74: 0 | AE74: 0 | AF74: 0 | AG74: 0 | AH74: 0 | AI74: 0 | AJ74: 0 | AK74: 0 | AL74: 0 | AM74: 0 | AN74: 0 | AO74: 0
C75: =lists!B73 -> 2046 | D75: 0 | E75: MtCO2e | F75: 0 | G75: 0 | H75: 0 | I75: 0 | J75: 0 | K75: 0 | L75: 0 | M75: 0 | N75: 0 | O75: 0 | P75: $000's GDP | Q75: 0 | R75: 0 | S75: 0 | T75: $000's GDP | U75: 0 | V75: 0 | W75: 0 | X75: 0 | Y75: 0 | Z75: 0 | AA75: 0 | AB75: 0 | AC75: 0 | AD75: 0 | AE75: 0 | AF75: 0 | AG75: 0 | AH75: 0 | AI75: 0 | AJ75: 0 | AK75: 0 | AL75: 0 | AM75: 0 | AN75: 0 | AO75: 0
C76: =lists!B74 -> 2047 | D76: 0 | E76: MtCO2e | F76: 0 | G76: 0 | H76: 0 | I76: 0 | J76: 0 | K76: 0 | L76: 0 | M76: 0 | N76: 0 | O76: 0 | P76: $000's GDP | Q76: 0 | R76: 0 | S76: 0 | T76: $000's GDP | U76: 0 | V76: 0 | W76: 0 | X76: 0 | Y76: 0 | Z76: 0 | AA76: 0 | AB76: 0 | AC76: 0 | AD76: 0 | AE76: 0 | AF76: 0 | AG76: 0 | AH76: 0 | AI76: 0 | AJ76: 0 | AK76: 0 | AL76: 0 | AM76: 0 | AN76: 0 | AO76: 0
C77: =lists!B75 -> 2048 | D77: 0 | E77: MtCO2e | F77: 0 | G77: 0 | H77: 0 | I77: 0 | J77: 0 | K77: 0 | L77: 0 | M77: 0 | N77: 0 | O77: 0 | P77: $000's GDP | Q77: 0 | R77: 0 | S77: 0 | T77: $000's GDP | U77: 0 | V77: 0 | W77: 0 | X77: 0 | Y77: 0 | Z77: 0 | AA77: 0 | AB77: 0 | AC77: 0 | AD77: 0 | AE77: 0 | AF77: 0 | AG77: 0 | AH77: 0 | AI77: 0 | AJ77: 0 | AK77: 0 | AL77: 0 | AM77: 0 | AN77: 0 | AO77: 0
C78: =lists!B76 -> 2049 | D78: 0 | E78: MtCO2e | F78: 0 | G78: 0 | H78: 0 | I78: 0 | J78: 0 | K78: 0 | L78: 0 | M78: 0 | N78: 0 | O78: 0 | P78: $000's GDP | Q78: 0 | R78: 0 | S78: 0 | T78: $000's GDP | U78: 0 | V78: 0 | W78: 0 | X78: 0 | Y78: 0 | Z78: 0 | AA78: 0 | AB78: 0 | AC78: 0 | AD78: 0 | AE78: 0 | AF78: 0 | AG78: 0 | AH78: 0 | AI78: 0 | AJ78: 0 | AK78: 0 | AL78: 0 | AM78: 0 | AN78: 0 | AO78: 0
C79: =lists!B77 -> 2050 | D79: 0 | E79: MtCO2e | F79: 0 | G79: 0 | H79: 0 | I79: 0 | J79: 0 | K79: 0 | L79: 0 | M79: 0 | N79: 0 | O79: 0 | P79: $000's GDP | Q79: 0 | R79: 0 | S79: 0 | T79: $000's GDP | U79: 0 | V79: 0 | W79: 0 | X79: 0 | Y79: 0 | Z79: 0 | AA79: 0 | AB79: 0 | AC79: 0 | AD79: 0 | AE79: 0 | AF79: 0 | AG79: 0 | AH79: 0 | AI79: 0 | AJ79: 0 | AK79: 0 | AL79: 0 | AM79: 0 | AN79: 0 | AO79: 0
C80: =lists!B78 -> 2051 | D80: 0 | E80: MtCO2e | F80: 0 | G80: 0 | H80: 0 | I80: 0 | J80: 0 | K80: 0 | L80: 0 | M80: 0 | N80: 0 | O80: 0 | P80: $000's GDP | Q80: 0 | R80: 0 | S80: 0 | T80: $000's GDP | U80: 0 | V80: 0 | W80: 0 | X80: 0 | Y80: 0 | Z80: 0 | AA80: 0 | AB80: 0 | AC80: 0 | AD80: 0 | AE80: 0 | AF80: 0 | AG80: 0 | AH80: 0 | AI80: 0 | AJ80: 0 | AK80: 0 | AL80: 0 | AM80: 0 | AN80: 0 | AO80: 0
C81: =lists!B79 -> 2052 | D81: 0 | E81: MtCO2e | F81: 0 | G81: 0 | H81: 0 | I81: 0 | J81: 0 | K81: 0 | L81: 0 | M81: 0 | N81: 0 | O81: 0 | P81: $000's GDP | Q81: 0 | R81: 0 | S81: 0 | T81: $000's GDP | U81: 0 | V81: 0 | W81: 0 | X81: 0 | Y81: 0 | Z81: 0 | AA81: 0 | AB81: 0 | AC81: 0 | AD81: 0 | AE81: 0 | AF81: 0 | AG81: 0 | AH81: 0 | AI81: 0 | AJ81: 0 | AK81: 0 | AL81: 0 | AM81: 0 | AN81: 0 | AO81: 0
C82: =lists!B80 -> 2053 | D82: 0 | E82: MtCO2e | F82: 0 | G82: 0 | H82: 0 | I82: 0 | J82: 0 | K82: 0 | L82: 0 | M82: 0 | N82: 0 | O82: 0 | P82: $000's GDP | Q82: 0 | R82: 0 | S82: 0 | T82: $000's GDP | U82: 0 | V82: 0 | W82: 0 | X82: 0 | Y82: 0 | Z82: 0 | AA82: 0 | AB82: 0 | AC82: 0 | AD82: 0 | AE82: 0 | AF82: 0 | AG82: 0 | AH82: 0 | AI82: 0 | AJ82: 0 | AK82: 0 | AL82: 0 | AM82: 0 | AN82: 0 | AO82: 0
C83: =lists!B81 -> 2054 | D83: 0 | E83: MtCO2e | F83: 0 | G83: 0 | H83: 0 | I83: 0 | J83: 0 | K83: 0 | L83: 0 | M83: 0 | N83: 0 | O83: 0 | P83: $000's GDP | Q83: 0 | R83: 0 | S83: 0 | T83: $000's GDP | U83: 0 | V83: 0 | W83: 0 | X83: 0 | Y83: 0 | Z83: 0 | AA83: 0 | AB83: 0 | AC83: 0 | AD83: 0 | AE83: 0 | AF83: 0 | AG83: 0 | AH83: 0 | AI83: 0 | AJ83: 0 | AK83: 0 | AL83: 0 | AM83: 0 | AN83: 0 | AO83: 0
C84: =lists!B82 -> 2055 | D84: 0 | E84: MtCO2e | F84: 0 | G84: 0 | H84: 0 | I84: 0 | J84: 0 | K84: 0 | L84: 0 | M84: 0 | N84: 0 | O84: 0 | P84: $000's GDP | Q84: 0 | R84: 0 | S84: 0 | T84: $000's GDP | U84: 0 | V84: 0 | W84: 0 | X84: 0 | Y84: 0 | Z84: 0 | AA84: 0 | AB84: 0 | AC84: 0 | AD84: 0 | AE84: 0 | AF84: 0 | AG84: 0 | AH84: 0 | AI84: 0 | AJ84: 0 | AK84: 0 | AL84: 0 | AM84: 0 | AN84: 0 | AO84: 0
C85: =lists!B83 -> 2056 | D85: 0 | E85: MtCO2e | F85: 0 | G85: 0 | H85: 0 | I85: 0 | J85: 0 | K85: 0 | L85: 0 | M85: 0 | N85: 0 | O85: 0 | P85: $000's GDP | Q85: 0 | R85: 0 | S85: 0 | T85: $000's GDP | U85: 0 | V85: 0 | W85: 0 | X85: 0 | Y85: 0 | Z85: 0 | AA85: 0 | AB85: 0 | AC85: 0 | AD85: 0 | AE85: 0 | AF85: 0 | AG85: 0 | AH85: 0 | AI85: 0 | AJ85: 0 | AK85: 0 | AL85: 0 | AM85: 0 | AN85: 0 | AO85: 0
C86: =lists!B84 -> 2057 | D86: 0 | E86: MtCO2e | F86: 0 | G86: 0 | H86: 0 | I86: 0 | J86: 0 | K86: 0 | L86: 0 | M86: 0 | N86: 0 | O86: 0 | P86: $000's GDP | Q86: 0 | R86: 0 | S86: 0 | T86: $000's GDP | U86: 0 | V86: 0 | W86: 0 | X86: 0 | Y86: 0 | Z86: 0 | AA86: 0 | AB86: 0 | AC86: 0 | AD86: 0 | AE86: 0 | AF86: 0 | AG86: 0 | AH86: 0 | AI86: 0 | AJ86: 0 | AK86: 0 | AL86: 0 | AM86: 0 | AN86: 0 | AO86: 0
C87: =lists!B85 -> 2058 | D87: 0 | E87: MtCO2e | F87: 0 | G87: 0 | H87: 0 | I87: 0 | J87: 0 | K87: 0 | L87: 0 | M87: 0 | N87: 0 | O87: 0 | P87: $000's GDP | Q87: 0 | R87: 0 | S87: 0 | T87: $000's GDP | U87: 0 | V87: 0 | W87: 0 | X87: 0 | Y87: 0 | Z87: 0 | AA87: 0 | AB87: 0 | AC87: 0 | AD87: 0 | AE87: 0 | AF87: 0 | AG87: 0 | AH87: 0 | AI87: 0 | AJ87: 0 | AK87: 0 | AL87: 0 | AM87: 0 | AN87: 0 | AO87: 0
C88: =lists!B86 -> 2059 | D88: 0 | E88: MtCO2e | F88: 0 | G88: 0 | H88: 0 | I88: 0 | J88: 0 | K88: 0 | L88: 0 | M88: 0 | N88: 0 | O88: 0 | P88: $000's GDP | Q88: 0 | R88: 0 | S88: 0 | T88: $000's GDP | U88: 0 | V88: 0 | W88: 0 | X88: 0 | Y88: 0 | Z88: 0 | AA88: 0 | AB88: 0 | AC88: 0 | AD88: 0 | AE88: 0 | AF88: 0 | AG88: 0 | AH88: 0 | AI88: 0 | AJ88: 0 | AK88: 0 | AL88: 0 | AM88: 0 | AN88: 0 | AO88: 0
C89: =lists!B87 -> 2060 | D89: 0 | E89: MtCO2e | F89: 0 | G89: 0 | H89: 0 | I89: 0 | J89: 0 | K89: 0 | L89: 0 | M89: 0 | N89: 0 | O89: 0 | P89: $000's GDP | Q89: 0 | R89: 0 | S89: 0 | T89: $000's GDP | U89: 0 | V89: 0 | W89: 0 | X89: 0 | Y89: 0 | Z89: 0 | AA89: 0 | AB89: 0 | AC89: 0 | AD89: 0 | AE89: 0 | AF89: 0 | AG89: 0 | AH89: 0 | AI89: 0 | AJ89: 0 | AK89: 0 | AL89: 0 | AM89: 0 | AN89: 0 | AO89: 0
C90: =lists!B88 -> 2061 | D90: 0 | E90: MtCO2e | F90: 0 | G90: 0 | H90: 0 | I90: 0 | J90: 0 | K90: 0 | L90: 0 | M90: 0 | N90: 0 | O90: 0 | P90: $000's GDP | Q90: 0 | R90: 0 | S90: 0 | T90: $000's GDP | U90: 0 | V90: 0 | W90: 0 | X90: 0 | Y90: 0 | Z90: 0 | AA90: 0 | AB90: 0 | AC90: 0 | AD90: 0 | AE90: 0 | AF90: 0 | AG90: 0 | AH90: 0 | AI90: 0 | AJ90: 0 | AK90: 0 | AL90: 0 | AM90: 0 | AN90: 0 | AO90: 0
C91: =lists!B89 -> 2062 | D91: 0 | E91: MtCO2e | F91: 0 | G91: 0 | H91: 0 | I91: 0 | J91: 0 | K91: 0 | L91: 0 | M91: 0 | N91: 0 | O91: 0 | P91: $000's GDP | Q91: 0 | R91: 0 | S91: 0 | T91: $000's GDP | U91: 0 | V91: 0 | W91: 0 | X91: 0 | Y91: 0 | Z91: 0 | AA91: 0 | AB91: 0 | AC91: 0 | AD91: 0 | AE91: 0 | AF91: 0 | AG91: 0 | AH91: 0 | AI91: 0 | AJ91: 0 | AK91: 0 | AL91: 0 | AM91: 0 | AN91: 0 | AO91: 0
C92: =lists!B90 -> 2063 | D92: 0 | E92: MtCO2e | F92: 0 | G92: 0 | H92: 0 | I92: 0 | J92: 0 | K92: 0 | L92: 0 | M92: 0 | N92: 0 | O92: 0 | P92: $000's GDP | Q92: 0 | R92: 0 | S92: 0 | T92: $000's GDP | U92: 0 | V92: 0 | W92: 0 | X92: 0 | Y92: 0 | Z92: 0 | AA92: 0 | AB92: 0 | AC92: 0 | AD92: 0 | AE92: 0 | AF92: 0 | AG92: 0 | AH92: 0 | AI92: 0 | AJ92: 0 | AK92: 0 | AL92: 0 | AM92: 0 | AN92: 0 | AO92: 0
C93: =lists!B91 -> 2064 | D93: 0 | E93: MtCO2e | F93: 0 | G93: 0 | H93: 0 | I93: 0 | J93: 0 | K93: 0 | L93: 0 | M93: 0 | N93: 0 | O93: 0 | P93: $000's GDP | Q93: 0 | R93: 0 | S93: 0 | T93: $000's GDP | U93: 0 | V93: 0 | W93: 0 | X93: 0 | Y93: 0 | Z93: 0 | AA93: 0 | AB93: 0 | AC93: 0 | AD93: 0 | AE93: 0 | AF93: 0 | AG93: 0 | AH93: 0 | AI93: 0 | AJ93: 0 | AK93: 0 | AL93: 0 | AM93: 0 | AN93: 0 | AO93: 0
C94: =lists!B92 -> 2065 | D94: 0 | E94: MtCO2e | F94: 0 | G94: 0 | H94: 0 | I94: 0 | J94: 0 | K94: 0 | L94: 0 | M94: 0 | N94: 0 | O94: 0 | P94: $000's GDP | Q94: 0 | R94: 0 | S94: 0 | T94: $000's GDP | U94: 0 | V94: 0 | W94: 0 | X94: 0 | Y94: 0 | Z94: 0 | AA94: 0 | AB94: 0 | AC94: 0 | AD94: 0 | AE94: 0 | AF94: 0 | AG94: 0 | AH94: 0 | AI94: 0 | AJ94: 0 | AK94: 0 | AL94: 0 | AM94: 0 | AN94: 0 | AO94: 0
C95: =lists!B93 -> 2066 | D95: 0 | E95: MtCO2e | F95: 0 | G95: 0 | H95: 0 | I95: 0 | J95: 0 | K95: 0 | L95: 0 | M95: 0 | N95: 0 | O95: 0 | P95: $000's GDP | Q95: 0 | R95: 0 | S95: 0 | T95: $000's GDP | U95: 0 | V95: 0 | W95: 0 | X95: 0 | Y95: 0 | Z95: 0 | AA95: 0 | AB95: 0 | AC95: 0 | AD95: 0 | AE95: 0 | AF95: 0 | AG95: 0 | AH95: 0 | AI95: 0 | AJ95: 0 | AK95: 0 | AL95: 0 | AM95: 0 | AN95: 0 | AO95: 0
C96: =lists!B94 -> 2067 | D96: 0 | E96: MtCO2e | F96: 0 | G96: 0 | H96: 0 | I96: 0 | J96: 0 | K96: 0 | L96: 0 | M96: 0 | N96: 0 | O96: 0 | P96: $000's GDP | Q96: 0 | R96: 0 | S96: 0 | T96: $000's GDP | U96: 0 | V96: 0 | W96: 0 | X96: 0 | Y96: 0 | Z96: 0 | AA96: 0 | AB96: 0 | AC96: 0 | AD96: 0 | AE96: 0 | AF96: 0 | AG96: 0 | AH96: 0 | AI96: 0 | AJ96: 0 | AK96: 0 | AL96: 0 | AM96: 0 | AN96: 0 | AO96: 0
C97: =lists!B95 -> 2068 | D97: 0 | E97: MtCO2e | F97: 0 | G97: 0 | H97: 0 | I97: 0 | J97: 0 | K97: 0 | L97: 0 | M97: 0 | N97: 0 | O97: 0 | P97: $000's GDP | Q97: 0 | R97: 0 | S97: 0 | T97: $000's GDP | U97: 0 | V97: 0 | W97: 0 | X97: 0 | Y97: 0 | Z97: 0 | AA97: 0 | AB97: 0 | AC97: 0 | AD97: 0 | AE97: 0 | AF97: 0 | AG97: 0 | AH97: 0 | AI97: 0 | AJ97: 0 | AK97: 0 | AL97: 0 | AM97: 0 | AN97: 0 | AO97: 0
C98: =lists!B96 -> 2069 | D98: 0 | E98: MtCO2e | F98: 0 | G98: 0 | H98: 0 | I98: 0 | J98: 0 | K98: 0 | L98: 0 | M98: 0 | N98: 0 | O98: 0 | P98: $000's GDP | Q98: 0 | R98: 0 | S98: 0 | T98: $000's GDP | U98: 0 | V98: 0 | W98: 0 | X98: 0 | Y98: 0 | Z98: 0 | AA98: 0 | AB98: 0 | AC98: 0 | AD98: 0 | AE98: 0 | AF98: 0 | AG98: 0 | AH98: 0 | AI98: 0 | AJ98: 0 | AK98: 0 | AL98: 0 | AM98: 0 | AN98: 0 | AO98: 0
C99: =lists!B97 -> 2070 | D99: 0 | E99: MtCO2e | F99: 0 | G99: 0 | H99: 0 | I99: 0 | J99: 0 | K99: 0 | L99: 0 | M99: 0 | N99: 0 | O99: 0 | P99: $000's GDP | Q99: 0 | R99: 0 | S99: 0 | T99: $000's GDP | U99: 0 | V99: 0 | W99: 0 | X99: 0 | Y99: 0 | Z99: 0 | AA99: 0 | AB99: 0 | AC99: 0 | AD99: 0 | AE99: 0 | AF99: 0 | AG99: 0 | AH99: 0 | AI99: 0 | AJ99: 0 | AK99: 0 | AL99: 0 | AM99: 0 | AN99: 0 | AO99: 0
C100: =lists!B98 -> 2071 | D100: 0 | E100: MtCO2e | F100: 0 | G100: 0 | H100: 0 | I100: 0 | J100: 0 | K100: 0 | L100: 0 | M100: 0 | N100: 0 | O100: 0 | P100: $000's GDP | Q100: 0 | R100: 0 | S100: 0 | T100: $000's GDP | U100: 0 | V100: 0 | W100: 0 | X100: 0 | Y100: 0 | Z100: 0 | AA100: 0 | AB100: 0 | AC100: 0 | AD100: 0 | AE100: 0 | AF100: 0 | AG100: 0 | AH100: 0 | AI100: 0 | AJ100: 0 | AK100: 0 | AL100: 0 | AM100: 0 | AN100: 0 | AO100: 0
C101: =lists!B99 -> 2072 | D101: 0 | E101: MtCO2e | F101: 0 | G101: 0 | H101: 0 | I101: 0 | J101: 0 | K101: 0 | L101: 0 | M101: 0 | N101: 0 | O101: 0 | P101: $000's GDP | Q101: 0 | R101: 0 | S101: 0 | T101: $000's GDP | U101: 0 | V101: 0 | W101: 0 | X101: 0 | Y101: 0 | Z101: 0 | AA101: 0 | AB101: 0 | AC101: 0 | AD101: 0 | AE101: 0 | AF101: 0 | AG101: 0 | AH101: 0 | AI101: 0 | AJ101: 0 | AK101: 0 | AL101: 0 | AM101: 0 | AN101: 0 | AO101: 0
C102: =lists!B100 -> 2073 | D102: 0 | E102: MtCO2e | F102: 0 | G102: 0 | H102: 0 | I102: 0 | J102: 0 | K102: 0 | L102: 0 | M102: 0 | N102: 0 | O102: 0 | P102: $000's GDP | Q102: 0 | R102: 0 | S102: 0 | T102: $000's GDP | U102: 0 | V102: 0 | W102: 0 | X102: 0 | Y102: 0 | Z102: 0 | AA102: 0 | AB102: 0 | AC102: 0 | AD102: 0 | AE102: 0 | AF102: 0 | AG102: 0 | AH102: 0 | AI102: 0 | AJ102: 0 | AK102: 0 | AL102: 0 | AM102: 0 | AN102: 0 | AO102: 0
C103: =lists!B101 -> 2074 | D103: 0 | E103: MtCO2e | F103: 0 | G103: 0 | H103: 0 | I103: 0 | J103: 0 | K103: 0 | L103: 0 | M103: 0 | N103: 0 | O103: 0 | P103: $000's GDP | Q103: 0 | R103: 0 | S103: 0 | T103: $000's GDP | U103: 0 | V103: 0 | W103: 0 | X103: 0 | Y103: 0 | Z103: 0 | AA103: 0 | AB103: 0 | AC103: 0 | AD103: 0 | AE103: 0 | AF103: 0 | AG103: 0 | AH103: 0 | AI103: 0 | AJ103: 0 | AK103: 0 | AL103: 0 | AM103: 0 | AN103: 0 | AO103: 0
C104: =lists!B102 -> 2075 | D104: 0 | E104: MtCO2e | F104: 0 | G104: 0 | H104: 0 | I104: 0 | J104: 0 | K104: 0 | L104: 0 | M104: 0 | N104: 0 | O104: 0 | P104: $000's GDP | Q104: 0 | R104: 0 | S104: 0 | T104: $000's GDP | U104: 0 | V104: 0 | W104: 0 | X104: 0 | Y104: 0 | Z104: 0 | AA104: 0 | AB104: 0 | AC104: 0 | AD104: 0 | AE104: 0 | AF104: 0 | AG104: 0 | AH104: 0 | AI104: 0 | AJ104: 0 | AK104: 0 | AL104: 0 | AM104: 0 | AN104: 0 | AO104: 0
C105: =lists!B103 -> 2076 | D105: 0 | E105: MtCO2e | F105: 0 | G105: 0 | H105: 0 | I105: 0 | J105: 0 | K105: 0 | L105: 0 | M105: 0 | N105: 0 | O105: 0 | P105: $000's GDP | Q105: 0 | R105: 0 | S105: 0 | T105: $000's GDP | U105: 0 | V105: 0 | W105: 0 | X105: 0 | Y105: 0 | Z105: 0 | AA105: 0 | AB105: 0 | AC105: 0 | AD105: 0 | AE105: 0 | AF105: 0 | AG105: 0 | AH105: 0 | AI105: 0 | AJ105: 0 | AK105: 0 | AL105: 0 | AM105: 0 | AN105: 0 | AO105: 0
C106: =lists!B104 -> 2077 | D106: 0 | E106: MtCO2e | F106: 0 | G106: 0 | H106: 0 | I106: 0 | J106: 0 | K106: 0 | L106: 0 | M106: 0 | N106: 0 | O106: 0 | P106: $000's GDP | Q106: 0 | R106: 0 | S106: 0 | T106: $000's GDP | U106: 0 | V106: 0 | W106: 0 | X106: 0 | Y106: 0 | Z106: 0 | AA106: 0 | AB106: 0 | AC106: 0 | AD106: 0 | AE106: 0 | AF106: 0 | AG106: 0 | AH106: 0 | AI106: 0 | AJ106: 0 | AK106: 0 | AL106: 0 | AM106: 0 | AN106: 0 | AO106: 0
C107: =lists!B105 -> 2078 | D107: 0 | E107: MtCO2e | F107: 0 | G107: 0 | H107: 0 | I107: 0 | J107: 0 | K107: 0 | L107: 0 | M107: 0 | N107: 0 | O107: 0 | P107: $000's GDP | Q107: 0 | R107: 0 | S107: 0 | T107: $000's GDP | U107: 0 | V107: 0 | W107: 0 | X107: 0 | Y107: 0 | Z107: 0 | AA107: 0 | AB107: 0 | AC107: 0 | AD107: 0 | AE107: 0 | AF107: 0 | AG107: 0 | AH107: 0 | AI107: 0 | AJ107: 0 | AK107: 0 | AL107: 0 | AM107: 0 | AN107: 0 | AO107: 0
C108: =lists!B106 -> 2079 | D108: 0 | E108: MtCO2e | F108: 0 | G108: 0 | H108: 0 | I108: 0 | J108: 0 | K108: 0 | L108: 0 | M108: 0 | N108: 0 | O108: 0 | P108: $000's GDP | Q108: 0 | R108: 0 | S108: 0 | T108: $000's GDP | U108: 0 | V108: 0 | W108: 0 | X108: 0 | Y108: 0 | Z108: 0 | AA108: 0 | AB108: 0 | AC108: 0 | AD108: 0 | AE108: 0 | AF108: 0 | AG108: 0 | AH108: 0 | AI108: 0 | AJ108: 0 | AK108: 0 | AL108: 0 | AM108: 0 | AN108: 0 | AO108: 0
C109: =lists!B107 -> 2080 | D109: 0 | E109: MtCO2e | F109: 0 | G109: 0 | H109: 0 | I109: 0 | J109: 0 | K109: 0 | L109: 0 | M109: 0 | N109: 0 | O109: 0 | P109: $000's GDP | Q109: 0 | R109: 0 | S109: 0 | T109: $000's GDP | U109: 0 | V109: 0 | W109: 0 | X109: 0 | Y109: 0 | Z109: 0 | AA109: 0 | AB109: 0 | AC109: 0 | AD109: 0 | AE109: 0 | AF109: 0 | AG109: 0 | AH109: 0 | AI109: 0 | AJ109: 0 | AK109: 0 | AL109: 0 | AM109: 0 | AN109: 0 | AO109: 0
C110: =lists!B108 -> 2081 | D110: 0 | E110: MtCO2e | F110: 0 | G110: 0 | H110: 0 | I110: 0 | J110: 0 | K110: 0 | L110: 0 | M110: 0 | N110: 0 | O110: 0 | P110: $000's GDP | Q110: 0 | R110: 0 | S110: 0 | T110: $000's GDP | U110: 0 | V110: 0 | W110: 0 | X110: 0 | Y110: 0 | Z110: 0 | AA110: 0 | AB110: 0 | AC110: 0 | AD110: 0 | AE110: 0 | AF110: 0 | AG110: 0 | AH110: 0 | AI110: 0 | AJ110: 0 | AK110: 0 | AL110: 0 | AM110: 0 | AN110: 0 | AO110: 0
C111: =lists!B109 -> 2082 | D111: 0 | E111: MtCO2e | F111: 0 | G111: 0 | H111: 0 | I111: 0 | J111: 0 | K111: 0 | L111: 0 | M111: 0 | N111: 0 | O111: 0 | P111: $000's GDP | Q111: 0 | R111: 0 | S111: 0 | T111: $000's GDP | U111: 0 | V111: 0 | W111: 0 | X111: 0 | Y111: 0 | Z111: 0 | AA111: 0 | AB111: 0 | AC111: 0 | AD111: 0 | AE111: 0 | AF111: 0 | AG111: 0 | AH111: 0 | AI111: 0 | AJ111: 0 | AK111: 0 | AL111: 0 | AM111: 0 | AN111: 0 | AO111: 0
C112: =lists!B110 -> 2083 | D112: 0 | E112: MtCO2e | F112: 0 | G112: 0 | H112: 0 | I112: 0 | J112: 0 | K112: 0 | L112: 0 | M112: 0 | N112: 0 | O112: 0 | P112: $000's GDP | Q112: 0 | R112: 0 | S112: 0 | T112: $000's GDP | U112: 0 | V112: 0 | W112: 0 | X112: 0 | Y112: 0 | Z112: 0 | AA112: 0 | AB112: 0 | AC112: 0 | AD112: 0 | AE112: 0 | AF112: 0 | AG112: 0 | AH112: 0 | AI112: 0 | AJ112: 0 | AK112: 0 | AL112: 0 | AM112: 0 | AN112: 0 | AO112: 0
C113: =lists!B111 -> 2084 | D113: 0 | E113: MtCO2e | F113: 0 | G113: 0 | H113: 0 | I113: 0 | J113: 0 | K113: 0 | L113: 0 | M113: 0 | N113: 0 | O113: 0 | P113: $000's GDP | Q113: 0 | R113: 0 | S113: 0 | T113: $000's GDP | U113: 0 | V113: 0 | W113: 0 | X113: 0 | Y113: 0 | Z113: 0 | AA113: 0 | AB113: 0 | AC113: 0 | AD113: 0 | AE113: 0 | AF113: 0 | AG113: 0 | AH113: 0 | AI113: 0 | AJ113: 0 | AK113: 0 | AL113: 0 | AM113: 0 | AN113: 0 | AO113: 0
C114: =lists!B112 -> 2085 | D114: 0 | E114: MtCO2e | F114: 0 | G114: 0 | H114: 0 | I114: 0 | J114: 0 | K114: 0 | L114: 0 | M114: 0 | N114: 0 | O114: 0 | P114: $000's GDP | Q114: 0 | R114: 0 | S114: 0 | T114: $000's GDP | U114: 0 | V114: 0 | W114: 0 | X114: 0 | Y114: 0 | Z114: 0 | AA114: 0 | AB114: 0 | AC114: 0 | AD114: 0 | AE114: 0 | AF114: 0 | AG114: 0 | AH114: 0 | AI114: 0 | AJ114: 0 | AK114: 0 | AL114: 0 | AM114: 0 | AN114: 0 | AO114: 0
C115: =lists!B113 -> 2086 | D115: 0 | E115: MtCO2e | F115: 0 | G115: 0 | H115: 0 | I115: 0 | J115: 0 | K115: 0 | L115: 0 | M115: 0 | N115: 0 | O115: 0 | P115: $000's GDP | Q115: 0 | R115: 0 | S115: 0 | T115: $000's GDP | U115: 0 | V115: 0 | W115: 0 | X115: 0 | Y115: 0 | Z115: 0 | AA115: 0 | AB115: 0 | AC115: 0 | AD115: 0 | AE115: 0 | AF115: 0 | AG115: 0 | AH115: 0 | AI115: 0 | AJ115: 0 | AK115: 0 | AL115: 0 | AM115: 0 | AN115: 0 | AO115: 0
C116: =lists!B114 -> 2087 | D116: 0 | E116: MtCO2e | F116: 0 | G116: 0 | H116: 0 | I116: 0 | J116: 0 | K116: 0 | L116: 0 | M116: 0 | N116: 0 | O116: 0 | P116: $000's GDP | Q116: 0 | R116: 0 | S116: 0 | T116: $000's GDP | U116: 0 | V116: 0 | W116: 0 | X116: 0 | Y116: 0 | Z116: 0 | AA116: 0 | AB116: 0 | AC116: 0 | AD116: 0 | AE116: 0 | AF116: 0 | AG116: 0 | AH116: 0 | AI116: 0 | AJ116: 0 | AK116: 0 | AL116: 0 | AM116: 0 | AN116: 0 | AO116: 0
C117: =lists!B115 -> 2088 | D117: 0 | E117: MtCO2e | F117: 0 | G117: 0 | H117: 0 | I117: 0 | J117: 0 | K117: 0 | L117: 0 | M117: 0 | N117: 0 | O117: 0 | P117: $000's GDP | Q117: 0 | R117: 0 | S117: 0 | T117: $000's GDP | U117: 0 | V117: 0 | W117: 0 | X117: 0 | Y117: 0 | Z117: 0 | AA117: 0 | AB117: 0 | AC117: 0 | AD117: 0 | AE117: 0 | AF117: 0 | AG117: 0 | AH117: 0 | AI117: 0 | AJ117: 0 | AK117: 0 | AL117: 0 | AM117: 0 | AN117: 0 | AO117: 0
C118: =lists!B116 -> 2089 | D118: 0 | E118: MtCO2e | F118: 0 | G118: 0 | H118: 0 | I118: 0 | J118: 0 | K118: 0 | L118: 0 | M118: 0 | N118: 0 | O118: 0 | P118: $000's GDP | Q118: 0 | R118: 0 | S118: 0 | T118: $000's GDP | U118: 0 | V118: 0 | W118: 0 | X118: 0 | Y118: 0 | Z118: 0 | AA118: 0 | AB118: 0 | AC118: 0 | AD118: 0 | AE118: 0 | AF118: 0 | AG118: 0 | AH118: 0 | AI118: 0 | AJ118: 0 | AK118: 0 | AL118: 0 | AM118: 0 | AN118: 0 | AO118: 0
C119: =lists!B117 -> 2090 | D119: 0 | E119: MtCO2e | F119: 0 | G119: 0 | H119: 0 | I119: 0 | J119: 0 | K119: 0 | L119: 0 | M119: 0 | N119: 0 | O119: 0 | P119: $000's GDP | Q119: 0 | R119: 0 | S119: 0 | T119: $000's GDP | U119: 0 | V119: 0 | W119: 0 | X119: 0 | Y119: 0 | Z119: 0 | AA119: 0 | AB119: 0 | AC119: 0 | AD119: 0 | AE119: 0 | AF119: 0 | AG119: 0 | AH119: 0 | AI119: 0 | AJ119: 0 | AK119: 0 | AL119: 0 | AM119: 0 | AN119: 0 | AO119: 0
C120: =lists!B118 -> 2091 | D120: 0 | E120: MtCO2e | F120: 0 | G120: 0 | H120: 0 | I120: 0 | J120: 0 | K120: 0 | L120: 0 | M120: 0 | N120: 0 | O120: 0 | P120: $000's GDP | Q120: 0 | R120: 0 | S120: 0 | T120: $000's GDP | U120: 0 | V120: 0 | W120: 0 | X120: 0 | Y120: 0 | Z120: 0 | AA120: 0 | AB120: 0 | AC120: 0 | AD120: 0 | AE120: 0 | AF120: 0 | AG120: 0 | AH120: 0 | AI120: 0 | AJ120: 0 | AK120: 0 | AL120: 0 | AM120: 0 | AN120: 0 | AO120: 0
C121: =lists!B119 -> 2092 | D121: 0 | E121: MtCO2e | F121: 0 | G121: 0 | H121: 0 | I121: 0 | J121: 0 | K121: 0 | L121: 0 | M121: 0 | N121: 0 | O121: 0 | P121: $000's GDP | Q121: 0 | R121: 0 | S121: 0 | T121: $000's GDP | U121: 0 | V121: 0 | W121: 0 | X121: 0 | Y121: 0 | Z121: 0 | AA121: 0 | AB121: 0 | AC121: 0 | AD121: 0 | AE121: 0 | AF121: 0 | AG121: 0 | AH121: 0 | AI121: 0 | AJ121: 0 | AK121: 0 | AL121: 0 | AM121: 0 | AN121: 0 | AO121: 0
C122: =lists!B120 -> 2093 | D122: 0 | E122: MtCO2e | F122: 0 | G122: 0 | H122: 0 | I122: 0 | J122: 0 | K122: 0 | L122: 0 | M122: 0 | N122: 0 | O122: 0 | P122: $000's GDP | Q122: 0 | R122: 0 | S122: 0 | T122: $000's GDP | U122: 0 | V122: 0 | W122: 0 | X122: 0 | Y122: 0 | Z122: 0 | AA122: 0 | AB122: 0 | AC122: 0 | AD122: 0 | AE122: 0 | AF122: 0 | AG122: 0 | AH122: 0 | AI122: 0 | AJ122: 0 | AK122: 0 | AL122: 0 | AM122: 0 | AN122: 0 | AO122: 0
C123: =lists!B121 -> 2094 | D123: 0 | E123: MtCO2e | F123: 0 | G123: 0 | H123: 0 | I123: 0 | J123: 0 | K123: 0 | L123: 0 | M123: 0 | N123: 0 | O123: 0 | P123: $000's GDP | Q123: 0 | R123: 0 | S123: 0 | T123: $000's GDP | U123: 0 | V123: 0 | W123: 0 | X123: 0 | Y123: 0 | Z123: 0 | AA123: 0 | AB123: 0 | AC123: 0 | AD123: 0 | AE123: 0 | AF123: 0 | AG123: 0 | AH123: 0 | AI123: 0 | AJ123: 0 | AK123: 0 | AL123: 0 | AM123: 0 | AN123: 0 | AO123: 0
C124: =lists!B122 -> 2095 | D124: 0 | E124: MtCO2e | F124: 0 | G124: 0 | H124: 0 | I124: 0 | J124: 0 | K124: 0 | L124: 0 | M124: 0 | N124: 0 | O124: 0 | P124: $000's GDP | Q124: 0 | R124: 0 | S124: 0 | T124: $000's GDP | U124: 0 | V124: 0 | W124: 0 | X124: 0 | Y124: 0 | Z124: 0 | AA124: 0 | AB124: 0 | AC124: 0 | AD124: 0 | AE124: 0 | AF124: 0 | AG124: 0 | AH124: 0 | AI124: 0 | AJ124: 0 | AK124: 0 | AL124: 0 | AM124: 0 | AN124: 0 | AO124: 0
C125: =lists!B123 -> 2096 | D125: 0 | E125: MtCO2e | F125: 0 | G125: 0 | H125: 0 | I125: 0 | J125: 0 | K125: 0 | L125: 0 | M125: 0 | N125: 0 | O125: 0 | P125: $000's GDP | Q125: 0 | R125: 0 | S125: 0 | T125: $000's GDP | U125: 0 | V125: 0 | W125: 0 | X125: 0 | Y125: 0 | Z125: 0 | AA125: 0 | AB125: 0 | AC125: 0 | AD125: 0 | AE125: 0 | AF125: 0 | AG125: 0 | AH125: 0 | AI125: 0 | AJ125: 0 | AK125: 0 | AL125: 0 | AM125: 0 | AN125: 0 | AO125: 0
C126: =lists!B124 -> 2097 | D126: 0 | E126: MtCO2e | F126: 0 | G126: 0 | H126: 0 | I126: 0 | J126: 0 | K126: 0 | L126: 0 | M126: 0 | N126: 0 | O126: 0 | P126: $000's GDP | Q126: 0 | R126: 0 | S126: 0 | T126: $000's GDP | U126: 0 | V126: 0 | W126: 0 | X126: 0 | Y126: 0 | Z126: 0 | AA126: 0 | AB126: 0 | AC126: 0 | AD126: 0 | AE126: 0 | AF126: 0 | AG126: 0 | AH126: 0 | AI126: 0 | AJ126: 0 | AK126: 0 | AL126: 0 | AM126: 0 | AN126: 0 | AO126: 0
C127: =lists!B125 -> 2098 | D127: 0 | E127: MtCO2e | F127: 0 | G127: 0 | H127: 0 | I127: 0 | J127: 0 | K127: 0 | L127: 0 | M127: 0 | N127: 0 | O127: 0 | P127: $000's GDP | Q127: 0 | R127: 0 | S127: 0 | T127: $000's GDP | U127: 0 | V127: 0 | W127: 0 | X127: 0 | Y127: 0 | Z127: 0 | AA127: 0 | AB127: 0 | AC127: 0 | AD127: 0 | AE127: 0 | AF127: 0 | AG127: 0 | AH127: 0 | AI127: 0 | AJ127: 0 | AK127: 0 | AL127: 0 | AM127: 0 | AN127: 0 | AO127: 0
C128: =lists!B126 -> 2099 | D128: 0 | E128: MtCO2e | F128: 0 | G128: 0 | H128: 0 | I128: 0 | J128: 0 | K128: 0 | L128: 0 | M128: 0 | N128: 0 | O128: 0 | P128: $000's GDP | Q128: 0 | R128: 0 | S128: 0 | T128: $000's GDP | U128: 0 | V128: 0 | W128: 0 | X128: 0 | Y128: 0 | Z128: 0 | AA128: 0 | AB128: 0 | AC128: 0 | AD128: 0 | AE128: 0 | AF128: 0 | AG128: 0 | AH128: 0 | AI128: 0 | AJ128: 0 | AK128: 0 | AL128: 0 | AM128: 0 | AN128: 0 | AO128: 0
C129: =lists!B127 -> 2100 | D129: 0 | E129: MtCO2e | F129: 0 | G129: 0 | H129: 0 | I129: 0 | J129: 0 | K129: 0 | L129: 0 | M129: 0 | N129: 0 | O129: 0 | P129: $000's GDP | Q129: 0 | R129: 0 | S129: 0 | T129: $000's GDP | U129: 0 | V129: 0 | W129: 0 | X129: 0 | Y129: 0 | Z129: 0 | AA129: 0 | AB129: 0 | AC129: 0 | AD129: 0 | AE129: 0 | AF129: 0 | AG129: 0 | AH129: 0 | AI129: 0 | AJ129: 0 | AK129: 0 | AL129: 0 | AM129: 0 | AN129: 0 | AO129: 0

Sheet globalvars (hidden)
M1: 1
M2: 2
B5: Global variables
B6: goal_type | C6: 1
B7: base_period | C7: 1
B8: target_period | C8: 1
B9: static_scenario | C9: 0
B10: base_start_year | C10: 2010
B11: base_end_year | C11: 2006
B12: target_start_year | C12: 2020
B13: target_end_year | C13: 2023
B14: mygt | C14: 0
B15: total_inventory_name | M15: 15
B16: total_inventory_year
B17: total_inventory_start_row | C17: 0 | D17: 27
B18: total_inventory_end_row | C18: 0 | D18: 36
B19: goal_inventory_name
B20: goal_inventory_year | C20: 0
B21: goal_inventory_start_row | C21: 0 | D21: 42
B22: goal_inventory_end_row | C22: 0 | D22: 49
B23: land_sector | C23: 4 | E23: this is the treatment of the land sector (3 = land as offset)
B24: land_method | C24: 1 | E24: this is the accounting approach; land-based (1) or activity-based (2) | M24: 24
B25: land_accounting | C25: 3 | E25: this is the accounting method (1= accounting relative to base year/period, 2= accounting without ref to base year/period, 3= forward-looking baseline accounting method)
B26: teus_allowed | C26: 1
B27: total_inventory_total | C27: 0
B28: bs_start_year | C28: 0
B29: max_year | C29: 2100
M31: 31
M40: 40

Sheet lists
P2: jurisdiction_list
B3: base_year_list | D3: GHG_reporting_units_list | G3: GWP_values_list | H3: CO2 | I3: CH4 | J3: N2O | K3: SF6 | L3: NF3 | M3: PFCs | N3: HFCs | P3: yes - set separate goal for out-of-juridication emissions | V3: sector_list
B4: base year | D4: MtCO2e | G4: IPCC Second Assessment Report | H4: 1 | I4: 21 | J4: 310 | K4: 23900 | P4: yes - set single goal covering both in and out-of-jurisdiction emissions | V4: ALL SECTORS | W4: ENERGY | X4: INDUSTRIAL PROCESSES AND PRODUCT USE | Y4: AGRICULTURE, FORESTRY & OTHER LAND USE | Z4: WASTE | AA4: OTHER
B5: base period | D5: ktCO2e | G5: IPCC Third Assessment Report | H5: 1 | I5: 23 | J5: 296 | K5: 22200 | P5: no | V5: All | W5: All | X5: All | Y5: All | Z5: All | AA5: All
D6: tCO2e | G6: IPCC Fourth Assessment Report | H6: 1 | I6: 25 | J6: 298 | K6: 22800 | L6: 17200 | M6: 6500 to 9200 | N6: 140 to 11700 | W6: 1A Fuel Combustion Activities | X6: 2A Mineral Industry | Y6: 3A Livestock | Z6: 4A Solid Waste Disposal | AA6: 5A Indirect N2O Emissions from the Atmospheric Deposition of Nitrogen in NOx and NH3
D7: kgCO2e | G7: IPCC Fifth Assessment Report | H7: 1 | I7: 28 | J7: 265 | K7: 23500 | L7: 16100 | M7: 7390 to 17700 | N7: 12 to 14800 | P7: accounting method_list_fl | W7: 1B Fugitive Emissions from Fuels | X7: 2B Chemical Industry | Y7: 3B Land | Z7: 4B Biological Treatment of Solid Waste | AA7: 5B Other (please specify)
G8: Other (please enter details) | H8: 1 | I8: 2 | J8: 298 | K8: 22800 | L8: 17200 | P8: =N13 -> without reference to base year/period or baseline scenario emissions | W8: 1C Carbon Dioxide Transport and Storage | X8: 2C Metal Industry | Y8: 3C Aggregate Sources and Non-CO2 Emissions Sources on Land | Z8: 4C Incineration and Open Burning of Waste
X9: 2D Non-Energy Products from Fuels and solvent use | Y9: 3D Other | Z9: 4D Wastewater Treatment and Discharge
B10: yes_no_list | D10: goal_type_list | E10: txt string | G10: GHG_category_list_GPC | I10: GHG_category_list2 | K10: Percentage List | P10: accounting_method_list_bye_byi | X10: 2E Electronics Industry | Z10: 4E Other (please specify)
B11: yes | D11: Base year emissions | E11: bye | K11: 0 | N11: accounting_method_list | P11: =N12 -> relative to base year/base period emissions | X11: 2F Product Uses as Substitutes for Ozone Depleting Substances
B12: no | D12: Fixed-level | E12: fl | G12: Total Emissions | I12: Other (please enter details) | K12: 0.01 | N12: relative to base year/base period emissions | P12: =N13 -> without reference to base year/period or baseline scenario emissions | X12: 2G Other Product Manufacture and Use
D13: Base year intensity | E13: byi | G13: Stationary energy (GPC) | I13: Total emissions | K13: 0.02 | N13: without reference to base year/period or baseline scenario emissions
D14: Baseline scenario | E14: bs | G14: Residential buildings (GPC) | I14: Energy (IPCC) | K14: 0.03 | N14: forward-looking baseline | P14: accounting_method_list_bs
G15: Commercial and institutional buildings (GPC) | I15: Industrial Processes and Product Use (IPCC) | K15: 0.04 | P15: =N14 -> forward-looking baseline
B16: year_list | D16: goal_units_list | G16: Manufacturing industries & construction (GPC) | I16: Agriculture,Forestry & Other Land Use (IPCC) | K16: 0.05
B17: 1990 | D17: % | G17: Energy industries (GPC) | I17: Waste (IPCC) | K17: 0.06 | N17: PFC_HFC_lookup | S17: PFC_HFC_list | V17: Stationary energy (GPC)
B18: 1991 | D18: tCO2e | G18: Energy generation supplied to grid (GPC) | I18: Other (please enter details) | K18: 0.07 | N18: CFC-11 | O18: CCl3F | P18: 3800 | Q18: 4660 | S18: =N18 -> CFC-11 | V18: Residential buildings (GPC)
B19: 1992 | D19: ktCO2e | G19: Agriculture, forestry & fishing activities (GPC) | I19: Stationary energy (GPC) | K19: 0.08 | N19: CFC-12 | O19: CCl2F2 | P19: 8100 | Q19: 10200 | S19: =N19 -> CFC-12 | V19: Commercial and institutional buildings (GPC)
B20: 1993 | D20: MtCO2e | G20: Non-specified sources (GPC) | I20: Residential buildings (GPC) | K20: 0.09 | N20: CFC-13 | O20: CClF3 | Q20: 13900 | S20: CFC-13 | V20: Manufacturing industries & construction (GPC)
B21: 1994 | G21: Fugitive emissions from fuel (GPC) | I21: Commercial and institutional buildings (GPC) | K21: 0.1 | N21: CFC-113 | O21: CCl2FCClF2 | P21: 4800 | Q21: 5820 | S21: CFC-113 | V21: Energy industries
B22: 1995 | D22: target_year_list | G22: Transportation (GPC) | I22: Manufacturing industries & construction (GPC) | K22: 0.11 | N22: CFC-114 | O22: CClF2CClF2 | Q22: 8590 | S22: CFC-114 | V22: Energy generation supplied to grid
B23: 1996 | D23: target year | G23: On-road transportation (GPC) | I23: Energy industries (GPC) | K23: 0.12 | N23: CFC-115 | O23: CClF2CF3 | Q23: 7670 | S23: CFC-115 | V23: Agriculture, forestry & fishing activities
B24: 1997 | D24: target period | G24: Railways (GPC) | I24: Energy generation supplied to grid (GPC) | K24: 0.13 | N24: Halon-1301 | O24: CBrF3 | P24: 5400 | Q24: 6290 | S24: Halon-1301 | V24: Non-specified sources
B25: 1998 | G25: Water transport (GPC) | I25: Agriculture, forestry & fishing activities (GPC) | K25: 0.14 | N25: Halon-1211 | O25: CBrClF2 | Q25: 1750 | S25: Halon-1211 | V25: Fugitive emissions from fuel
B26: 1999 | D26: static_list | G26: Aviation (GPC) | I26: Non-specified sources (GPC) | K26: 0.15 | N26: Halon-2402 | O26: CBrF2CBrF2 | Q26: 1470 | S26: Halon-2402 | V26: Transportation
B27: 2000 | D27: static | G27: Off-road transportation (GPC) | I27: Fugitive emissions from fuel (GPC) | K27: 0.16 | N27: Carbon tetrachloride | O27: CCl4 | P27: 1400 | Q27: 1730 | S27: Carbon tetrachloride | V27: On-road transportation
B28: 2001 | D28: dynamic | G28: Waste (GPC) | I28: Transportation (GPC) | K28: 0.17 | N28: Methyl bromide | O28: CH3Br | Q28: 2 | S28: Methyl bromide | V28: Railways
B29: 2002 | G29: Solid waste generated in city - landfill or open dumps (GPC) | I29: On-road transportation (GPC) | K29: 0.18 | N29: Methyl chloroform | O29: CH3CCl3 | P29: 100 | Q29: 160 | S29: Methyl chloroform | V29: Water transport
B30: 2003 | D30: yesdetails_no_list | G30: Solid waste generated outside city - landfill or open dumps (GPC) | I30: Railways (GPC) | K30: 0.19 | N30: HFCF-21 | O30: CHCl2F | Q30: 148 | S30: HFCF-21 | V30: Aviation
B31: 2004 | D31: yes (please provide details) | G31: Solid waste generated in city - biological treatment (GPC) | I31: Water transport (GPC) | K31: 0.2 | N31: HCFC-22 | O31: CHCLF2 | P31: 1500 | Q31: 1760 | S31: HCFC-22 | V31: Off-road transportation
B32: 2005 | D32: no | G32: Solid waste generated outside city - biological treatment (GPC) | I32: Aviation (GPC) | K32: 0.21 | N32: HCFC-123 | O32: CHCl2CF3 | P32: 90 | Q32: 79 | S32: HCFC-123 | V32: Waste
B33: 2006 | D33: don't know | G33: Solid waste generated in city - incinerated/burned in open (GPC) | I33: Off-road transportation (GPC) | K33: 0.22 | N33: HCFC-124 | O33: CHClFCF3 | P33: 470 | Q33: 527 | S33: HCFC-124 | V33: Solid waste generated in city - landfill or open dumps
B34: 2007 | G34: Solid waste generated outside city - incinerated/burned in open (GPC) | I34: Waste (GPC) | K34: 0.23 | N34: HCFC-141b | O34: CH3CCl2F | P34: 600 | Q34: 782 | S34: HCFC-141b | V34: Solid waste generated outside city - landfill or open dumps
B35: 2008 | D35: multi_year_goal_list1 | G35: Wastewater generated in the city (GPC) | I35: Solid waste generated in city - landfill or open dumps (GPC) | K35: 0.24 | N35: HCFC-142b | O35: CH3CClF2 | P35: 1800 | Q35: 1980 | S35: HCFC-142b | V35: Solid waste generated in city - biological treatment
B36: 2009 | D36: average multi-year goal | G36: Wastewater generated outside of city (GPC) | I36: Solid waste generated outside city - landfill or open dumps (GPC) | K36: 0.25 | N36: HCFC-225ca | O36: CHCl2CF2CF3 | Q36: 127 | S36: HCFC-225ca | V36: Solid waste generated outside city - biological treatment
B37: 2010 | D37: annual multi-year goal | G37: Industrial processes (GPC) | I37: Solid waste generated in city - biological treatment (GPC) | K37: 0.26 | N37: HCFC-225cb | O37: CHClFCF2CClF2 | Q37: 525 | S37: HCFC-225cb | V37: Solid waste generated in city - incinerated/burned in open
B38: 2011 | G38: Product use (GPC) | I38: Solid waste generated outside city - biological treatment (GPC) | K38: 0.27 | N38: HFC-23 | O38: CHF3 | P38: 11700 | Q38: 12400 | S38: HFC-23 | V38: Solid waste generated outside city - incinerated/burned in open
B39: 2012 | G39: Agriculture, forestry and other land use (GPC) | I39: Solid waste generated in city - incinerated/burned in open (GPC) | K39: 0.28 | N39: HFC-32 | O39: CH2F2 | P39: 650 | Q39: 677 | S39: HFC-32 | V39: Wastewater generated in the city
B40: 2013 | D40: multi_year_goal_list2 | G40: Livestock (GPC) | I40: Solid waste generated outside city - incinerated/burned in open (GPC) | K40: 0.29 | N40: HFC-41 | O40: CH3F2 | P40: 150 | Q40: 116 | S40: HFC-41 | V40: Wastewater generated outside of city
B41: 2014 | D41: average multi-year goal | G41: Land (GPC) | I41: Wastewater generated in the city (GPC) | K41: 0.3 | N41: HFC-125 | O41: CHF2CF3 | P41: 2800 | Q41: 3170 | S41: HFC-125 | V41: Industrial processes
B42: 2015 | D42: annual multi-year goal | G42: Aggregate sources & non-CO2 emission sources on land (GPC) | I42: Wastewater generated outside of city (GPC) | K42: 0.31 | N42: HFC-134 | O42: CHF2CHF2 | P42: 1000 | Q42: 1120 | S42: HFC-134 | V42: Product use
B43: 2016 | D43: cumulative multi-year goal | G43: Other (please enter details) | I43: Industrial processes (GPC) | K43: 0.32 | N43: HFC-134a | O43: CH2FCF3 | P43: 1300 | Q43: 1300 | S43: HFC-134a | V43: Agriculture, forestry and other land use
B44: 2017 | I44: Product use (GPC) | K44: 0.33 | N44: HFC-143 | O44: CH2FCHF2 | P44: 300 | Q44: 328 | S44: HFC-143 | V44: Livestock
B45: 2018 | I45: Agriculture, forestry and other land use (GPC) | K45: 0.34 | N45: HFC-143a | O45: CH3CF3 | P45: 3800 | Q45: 4800 | S45: HFC-143a | V45: Land
B46: 2019 | D46: teu_list | I46: Livestock (GPC) | K46: 0.35 | N46: HFC-152 | O46: CH2FCH2F | Q46: 16 | S46: HFC-152 | V46: Aggregate sources & non-CO2 emission sources on land
B47: 2020 | D47: Emissions allowances | I47: Land (GPC) | K47: 0.36 | N47: HFC-152a | O47: CH3CHF2 | P47: 140 | Q47: 138 | S47: HFC-152a
B48: 2021 | D48: Offset credits | G48: land_sector_treatment_list | I48: Aggregate sources & non-CO2 emission sources on land (GPC) | K48: 0.37 | N48: HFC-161 | O48: CH3CH2F | Q48: 4 | S48: HFC-161
B49: 2022 | D49: Allowances and credits | G49: Include in the goal boundary | K49: 0.38 | N49: HFC-227ea | O49: CF3CHFCF3 | P49: 2900 | Q49: 3350 | S49: HFC-227ea
B50: 2023 | G50: Sectoral goal | K50: 0.39 | N50: HFC-236cb | O50: CH2FCF2CF3 | Q50: 1210 | S50: HFC-236cb | V50: GHG_category_list_IPCC | AB50: GHG_category_list_current
B51: 2024 | D51: GHG_method_list | G51: Offset | K51: 0.4 | N51: HFC-236ea | O51: CHF2CHFCF3 | Q51: 1330 | S51: HFC-236ea
B52: 2025 | D52: IPCC Guidelines | G52: Do not account for the land sector | K52: 0.41 | N52: HFC-236fa | O52: CF3CH2CF3 | P52: 6300 | Q52: 8060 | S52: HFC-236fa | V52: Total emissions | AB52: Total emissions
B53: 2026 | D53: Global Protocol for Community-Scale GHG Inventories (GPC) | K53: 0.42 | N53: HFC-245ca | O53: CH2FCF2CHF2 | P53: 560 | Q53: 716 | S53: HFC-245ca | V53: Energy (IPCC) | AB53: Energy (IPCC)
B54: 2027 | D54: Other (please enter details) | K54: 0.43 | N54: HFC-245fa | O54: CHF2CH2CF3 | Q54: 858 | S54: HFC-245fa | V54: 1A Fuel Combustion Activities | AB54: 1A Fuel Combustion Activities
B55: 2028 | G55: GHG_included_list | K55: 0.44 | N55: HFC-365mfc | O55: CH3CF2CH2CF3 | Q55: 804 | S55: HFC-365mfc | V55: 1B Fugitive Emissions from Fuels | AB55: 1B Fugitive Emissions from Fuels
B56: 2029 | D56: nodetails_yes_list | G56: All seven Kyoto Protocol gases | K56: 0.45 | N56: HFC-43-10mee | O56: CF3CHFCHFCF2CF3 | P56: 1300 | Q56: 1650 | S56: HFC-43-10mee | V56: 1C Carbon Dioxide Transport and Storage | AB56: 1C Carbon Dioxide Transport and Storage
B57: 2030 | D57: yes | G57: Not all Kyoto Protocol gases included | K57: 0.46 | N57: PFC-14 | O57: CF4 | P57: 6500 | Q57: 6630 | S57: PFC-14 | V57: Industrial Processes and Product Use (IPCC) | AB57: Industrial Processes and Product Use (IPCC)
B58: 2031 | D58: no (please provide details) | K58: 0.47 | N58: PFC-116 | O58: C2F6 | P58: 9200 | Q58: 11100 | S58: PFC-116 | V58: 2A Mineral Industry | AB58: 2A Mineral Industry
B59: 2032 | I59: goal_units_list3 | K59: 0.48 | N59: PFC-218 | O59: C3F8 | P59: 7000 | Q59: 8900 | S59: PFC-218 | V59: 2B Chemical Industry | AB59: 2B Chemical Industry
B60: 2033 | D60: goal_units_list2 | G60: land_use_activities_list | I60: % | K60: 0.49 | N60: PFC-318 | O60: c-C4F8 | P60: 8700 | Q60: 9540 | S60: PFC-318 | V60: 2C Metal Industry | AB60: 2C Metal Industry
B61: 2034 | D61: % | G61: afforestation/reforestation | I61: MtCO2e/level of output | K61: 0.5 | N61: PFC-31-10 | O61: C4F10 | P61: 7000 | Q61: 9200 | S61: PFC-31-10 | V61: 2D Non-Energy Products from Fuels and solvent use | AB61: 2D Non-Energy Products from Fuels and solvent use
B62: 2035 | D62: MtCO2e | G62: deforestation | K62: 0.51 | N62: PFC-41-12 | O62: C5F12 | P62: 7500 | Q62: 8550 | S62: PFC-41-12 | V62: 2E Electronics Industry | AB62: 2E Electronics Industry
B63: 2036 | G63: community forestry | K63: 0.52 | N63: PFC-51-14 | O63: C6F14 | P63: 7400 | Q63: 7910 | S63: PFC-51-14 | V63: 2F Product Uses as Substitutes for Ozone Depleting Substances | AB63: 2F Product Uses as Substitutes for Ozone Depleting Substances
B64: 2037 | D64: land_method_list | G64: sustainable forest management | K64: 0.53 | N64: PCF-91-18 | O64: C10F18 | Q64: 7190 | S64: PCF-91-18 | V64: 2G Other Product Manufacture and Use | AB64: 2G Other Product Manufacture and Use
B65: 2038 | D65: land-based accounting | G65: enhancement of forest carbon stocks | K65: 0.54 | N65: Trifluoromethyl sulfur pentafluoride | O65: SF5CF3 | Q65: 17400 | S65: Trifluoromethyl sulfur pentafluoride | V65: Agriculture,Forestry & Other Land Use (IPCC) | AB65: Agriculture,Forestry & Other Land Use (IPCC)
B66: 2039 | D66: activity-based accounting | G66: protected area management | K66: 0.55 | N66: Perfluorocyclopropane | O66: c-C3F6 | Q66: 9200 | S66: Perfluorocyclopropane | V66: 3A Livestock | AB66: 3A Livestock
B67: 2040 | G67: soil carbon management | K67: 0.56 | N67: HFE-125 | O67: CHF2OCF3 | Q67: 12400 | S67: HFE-125 | V67: 3B Land | AB67: 3B Land
B68: 2041 | G68: cropland/fertilizer/manure application | K68: 0.57 | N68: HFE-134 | O68: CHF2OCHF2 | Q68: 5560 | S68: HFE-134 | V68: 3C Aggregate Sources and Non-CO2 Emissions Sources on Land | AB68: 3C Aggregate Sources and Non-CO2 Emissions Sources on Land
B69: 2042 | D69: achieved_list | G69: agroforestry | K69: 0.58 | N69: HFE-143a | O69: CH3OCF3 | Q69: 523 | S69: HFE-143a | V69: 3D Other | AB69: 3D Other
B70: 2043 | D70: achieved | G70: controlled burning | K70: 0.59 | N70: HCFE-235da2 | O70: CHF2OCHClCF3 | Q70: 491 | S70: HCFE-235da2 | V70: Waste (IPCC) | AB70: Waste (IPCC)
B71: 2044 | D71: not achieved | G71: vegetation management | K71: 0.6 | N71: HFE-245cb2 | O71: CH3OCF2CF3 | Q71: 654 | S71: HFE-245cb2 | V71: 4A Solid Waste Disposal | AB71: 4A Solid Waste Disposal
B72: 2045 | G72: wetland drainage | K72: 0.61 | N72: HFE-245fa2 | O72: CHF2OCH2CF3 | Q72: 812 | S72: HFE-245fa2 | V72: 4B Biological Treatment of Solid Waste | AB72: 4B Biological Treatment of Solid Waste
B73: 2046 | D73: mass_reporting_units_list | G73: wetland rewetting | K73: 0.62 | N73: HFE-347mcc3 | O73: CH3OCF2CF2CF3 | Q73: 530 | S73: HFE-347mcc3 | V73: 4C Incineration and Open Burning of Waste | AB73: 4C Incineration and Open Burning of Waste
B74: 2047 | D74: Mt | G74: other (please enter description) | K74: 0.63 | N74: HFE-347pcf2 | O74: CHF2CF2OCH2CF3 | Q74: 889 | S74: HFE-347pcf2 | V74: 4D Wastewater Treatment and Discharge | AB74: 4D Wastewater Treatment and Discharge
B75: 2048 | D75: kt | K75: 0.64 | N75: HFE-356pcc3 | O75: CH3OCF2CF2CHF2 | Q75: 413 | S75: HFE-356pcc3 | V75: 4E Other (please specify) | AB75: 4E Other (please specify)
B76: 2049 | D76: t | K76: 0.65 | N76: HFE-449sl (HFE-7100) | O76: C4F9OCH3 | Q76: 421 | S76: HFE-449sl (HFE-7100) | V76: Other (please enter details) | AB76: Other (please enter details)
B77: 2050 | D77: kg | G77: land_use_category_list | K77: 0.66 | N77: HFE-569sf2 (HFE-7200) | O77: C4F9OC2H5 | Q77: 57 | S77: HFE-569sf2 (HFE-7200) | V77: 5A Indirect N2O Emissions from the Atmospheric Deposition of Nitrogen in NOx and NH3 | AB77: 5A Indirect N2O Emissions from the Atmospheric Deposition of Nitrogen in NOx and NH3
B78: 2051 | G78: Forestland | K78: 0.67 | N78: HFE-43-10pccc124 (HGalden 1040x) | O78: CHF2OCF2OC2F4OCHF2 | Q78: 2820 | S78: HFE-43-10pccc124 (HGalden 1040x) | V78: 5B Other (please specify) | AB78: 5B Other (please specify)
B79: 2052 | G79: Cropland | K79: 0.68 | N79: HFE-236ca12 (HG-10) | O79: CHF2OCF2OCHF2 | Q79: 5350 | S79: HFE-236ca12 (HG-10)
B80: 2053 | G80: Grassland | K80: 0.69 | N80: HFE-338pcc13(HG-01) | O80: CHF2OCF2CF2OCHF2 | Q80: 2910 | S80: HFE-338pcc13(HG-01)
B81: 2054 | G81: Wetland | K81: 0.7 | N81: HFE-227ea | O81: CF3CHFOCF3 | Q81: 6450 | S81: HFE-227ea
B82: 2055 | G82: Settlement | K82: 0.71 | N82: HFE-236ea2 | O82: CHF2OCHFCF3 | Q82: 1790 | S82: HFE-236ea2
B83: 2056 | G83: Other land | K83: 0.72 | N83: HFE-236fa | O83: CF3CH2OCF3 | Q83: 979 | S83: =N83 -> HFE-236fa
B84: 2057 | K84: 0.73 | N84: HFE-245fa1 | O84: CHF2CH2OCF3 | Q84: 828 | S84: HFE-245fa1
B85: 2058 | K85: 0.74 | N85: HFE263fb2 | O85: CF3CH2OCH3 | Q85: 1 | S85: HFE263fb2
B86: 2059 | K86: 0.75 | N86: HFE-329mcc2 | O86: CHF2CF2OCF2CF3 | Q86: 3070 | S86: HFE-329mcc2
B87: 2060 | K87: 0.76 | N87: HFE-338mcf2 | O87: CF3CH2OCF2CF3 | Q87: 929 | S87: HFE-338mcf2
B88: 2061 | K88: 0.77 | N88: HFE-347mcf2 | O88: CHF2CH2OCF2CF3 | Q88: 854 | S88: HFE-347mcf2
B89: 2062 | K89: 0.78 | N89: HFE-356mec3 | O89: CH3OCF2CHFCF3 | Q89: 387 | S89: HFE-356mec3
B90: 2063 | K90: 0.79 | N90: HFE-356pcf2 | O90: CHF2CH2OCF2CHF2 | Q90: 719 | S90: HFE-356pcf2
B91: 2064 | K91: 0.8 | N91: HFE-356pcf3 | O91: CHF2OCH2CF2CHF2 | Q91: 446 | S91: HFE-356pcf3
B92: 2065 | K92: 0.81 | N92: HFE365mcf3 | O92: CF3CF2CH2OCH3 | Q92: 627 | S92: HFE365mcf3
B93: 2066 | K93: 0.82 | N93: PFPMIE | O93: CF3OCF(CF3)CF2OCF2OCF3 | Q93: 9710 | S93: PFPMIE
B94: 2067 | K94: 0.83 | N94: Chloroform | O94: CHCl3 | P94: 4 | Q94: 16 | S94: Chloroform
B95: 2068 | K95: 0.84 | N95: Methylene chloride | O95: CH2Cl2 | P95: 9 | Q95: 9 | S95: Methylene chloride
B96: 2069 | K96: 0.85 | N96: Methyl choloride | O96: CH3Cl | Q96: 12 | S96: Methyl choloride
B97: 2070 | K97: 0.86 | N97: Halon-1201 | O97: CHBrF2 | Q97: 376 | S97: Halon-1201
B98: 2071 | K98: 0.87 | N98: Other | P98: 0 | Q98: 0 | S98: Other
B99: 2072 | K99: 0.88
B100: 2073 | K100: 0.89
B101: 2074 | K101: 0.9
B102: 2075 | K102: 0.91
B103: 2076 | K103: 0.92
B104: 2077 | K104: 0.93
B105: 2078 | K105: 0.94
B106: 2079 | K106: 0.95
B107: 2080 | K107: 0.96
B108: 2081 | K108: 0.97
B109: 2082 | K109: 0.98
B110: 2083 | K110: 0.99
B111: 2084 | K111: 1
B112: 2085
B113: 2086
B114: 2087
B115: 2088
B116: 2089
B117: 2090
B118: 2091
B119: 2092
B120: 2093
B121: 2094
B122: 2095
B123: 2096
B124: 2097
B125: 2098
B126: 2099
B127: 2100

Sheet PDFstore
